{"text_format":"1","workbook":"xlsx","n_sheets":1,"sheets":["Blad1"],"not_rendered":{"charts":0,"images":7,"macros":1,"external_links":0,"defined_names":1,"comments":0,"pivot_tables":0},"unopened":[],"bounds":{"document_bytes":16777216,"sheet_cells":100000,"rows_first":2000,"rows_last":500,"rows_between":2000,"halvings":0,"cell_chars":16384,"cell_head_chars":4096},"cells_cut":0,"cells_raw":0,"read":"whole","date_system":"1900"}

{"sheet":"Blad1","index":0,"n_rows":2267,"n_cols":15,"rows_kept":2267,"cut":false,"hidden":false,"merged":[[0,2,0,8],[1101,0,1101,1],[1884,0,1884,1],[1997,0,1997,1],[855,0,855,1],[950,0,950,1],[1,4,1,8],[333,9,334,9],[543,1,543,7],[531,1,531,7],[532,1,532,7],[540,1,540,7],[541,1,541,7],[542,1,542,7],[526,1,526,7],[527,1,527,7],[528,1,528,7],[529,1,529,7],[381,0,381,1],[2222,7,2223,7],[2181,0,2182,0],[2238,6,2240,6],[2238,7,2240,7],[391,13,391,14],[405,9,405,11],[530,1,530,7],[758,0,758,1],[1825,1,1825,2],[1726,1,1726,2],[1556,0,1556,1],[1614,0,1614,1],[974,9,978,9],[979,8,980,8],[646,0,646,1],[391,9,391,10],[2268,1,2268,4],[2197,0,2199,0],[2181,1,2182,1],[2197,1,2199,1],[2222,6,2223,6]]}
[null,null,"                                     NY- OCH OMBYGGNADSLISTAN 2023"]
[null,null,null,null,"       Nybyggnad                     Ombyggnad"]
[]
[null,"Arbetsart 10"]
[]
[null,"INNEHÅLL"]
[]
[null,"RIVNING"]
[]
[null,null,null,"Sid"]
[null,"Särskilda bestämmelser",null,18]
[" 10:0","Golv",null,20]
[" 10:1","Väggar",null,22]
[" 10:2","Innertak, trummor",null,24]
[" 10:3","Yttertak",null,24]
[" 10:4","Inredning, sakvaror",null,26]
[" 10:5","Övrigt",null,26]
[]
[]
[]
[null,"Arbetsart 10",null,null,null,null,null,null,null,"Arbetsart 10"]
[]
[null,"SÄRSKILDA BESTÄMMELSER",null,null,null,null,null,null,null,"KOMMENTARER"]
[]
["Punkt","Aktivitet",null,null,null,null,null,null,"Punkt","Aktivitet"]
["A.","Förutsättningar",null,null,null,null,null,null,"A.","Förutsättningar"]
["a)","Tiderna förutsätter att maskinella hjälpmedel tillhandahålls i erforderlig omfattning.",null,null,null,null,null,null,"a)","I tiderna ingår komplettering av rivningsarbeten med handverktyg."]
["b)","Tiderna förutsätter komplett färdigt rivningsarbete."]
["c)","Vid användande av bobcat eller liknande ska särskild hänsyn tagas"," "]
[]
["B.","I tiderna ingår om inte annat angivs",null,null,null,null,null,null,"B.","I tiderna ingår om inte annat angivs"]
["a)","Transport av rivningsmassor till container eller störttrumma."]
["b)","Avstädning och dammsugning i erforderlig omfattning efter rivningsarbetet."]
["c)","Skyddsstämpning i normal omfattning ingår."]
["d)","Källsortering ingår.",null,null,null,null,null,null,"d)","Separation av sammansatta material ingår inte."]
[]
["C.","Mätningsbestämmelser"]
[null,"Rivning av betongkonstruktioner är inte tidsatt"]
[]
[]
["10.3","Arbetsart 10",null,null,null,null,null,null,null,"Arbetsart 10"]
[]
[null,"RIVNING",null,null,"Nybyggnads",null,"Ombyggnads",null,null,"KOMMENTARER"]
[null,null,null,null,"Listan",null,"Listan"]
["Punkt","Aktivitet",null,null,"Avs.","Avs.","Avs.","Avs.","Punkt","Aktivitet"]
[" ","10:0  Golv","Enhet","Tid","Mängd","Tim","Mängd","Tim"]
["001","Överbetong t o m 80 mm","m²",0.4,null,{"$f":"E47*D47","v":0},null,{"$f":"G47*D47","v":0}]
["002","Tillägg mindre ytor < 8 m2","m²",0.15,null,0,null,0,"002","Avser punkt 001."]
["003","Golvmassa i våtutrymme","m²",0.35,null,0,null,0,"003","Avser golvmassa för fuktisolering."]
["004","Träbjälklag","m²",0.3,null,0,null,0]
["005","Parkett ","m²",0.1,null,0,null,0,"005","Avser löst lagda lamellbrädor inkl. papp"]
["006","Parkett eller övriga spontade trägolv","m²",0.25,null,0,null,0,"006","Avser spikad och eller limmad i underlaget inkl. papp"]
["007","Hårda skivor på golv","m²",0.15,null,0,null,0,"007","Avser skivor av spån, träfiber, boardlamell eller liknande."]
["008","Rivning instalations golv","m²",0.2,null,0,null,0,"008","Avser typ Nivell eller Granab. Skivbeklägnad mäts i punkten 007"]
["009","Fyllningsmaterial i bjälklag (lätt) t o m 200 mm","m²",0.05,null,0,null,0,"009","Avser utsugning lätt fyllning såsom spån, torvströ eller liknande."]
["010","Fyllningsmaterial i bjälklag (tung) t o m 200 mm","m²",0.1,null,0,null,0,"010","Avser utsugning tung fyllning såsom sandmaterial eller liknande."]
["011","Flytande golv","m²",0.24,null,0,null,0,"011","Avser plastfolie, frigolit och golvskiva utsugning tung fyllning såsom sandmaterial samt uttransport. "]
["012","Mineralull i bjälklag","m²",0.04,null,0,null,0,"012","Avser lätta skivor och mattor, per lag"]
["013","Löst lagda golvmattor eller plastplattor inkl golvsockel","m²",0.09,null,0,null,0,"013","Borttagning av papp ingår."]
["014","Limmade golvmattor eller plastplattor inkl golvsockel","m²",0.12,null,0,null,0]
["015","Tillägg ytterligare lag golvmattor eller plastmattor","m²",0.03,null,0,null,0]
["016","Keramiska plattor på golv","m²",0.35,null,0,null,0,"016","Borttagning av sättbruk och papp ingår."]
["017","Tillägg mindre ytor < 8 m2","m²",0.15,null,0,null,0,"017","Avser punkt 016"]
[null," "]
[null,null,null,null,"Summa",{"$f":"SUM(F47:F63)","v":0},"Summa",{"$f":"SUM(H47:H63)","v":0}]
[]
[]
[null,"Arbetsart 10",null,null,null,null,null,null,null,"Arbetsart 10"]
[]
[null,"RIVNING",null,null,"Nybyggnads",null,"Ombyggnads",null,null,"KOMMENTARER"]
[null," ",null,null,"Listan",null,"Listan"]
["Punkt","Aktivitet",null,null,"Avs.","Avs.","Avs.","Avs.","Punkt","Aktivitet"]
[null,"10:1  Väggar","Enhet","Tid","Mängd","Tim","Mängd","Tim"]
[101,"Tegel t o m ½-sten","m²",0.65,null,{"$f":"D74*E74","v":0},null,{"$f":"G74*D74","v":0},101,"Avser massiv såväl som håltegel."]
[102,"Tegel t o m 1-sten","m²",1.05,null,0,null,0]
[103,"Tegel t o m 1 ½-sten","m²",1.45,null,0,null,0]
[104,"Tegel ½-sten - 1½-sten med bobcat eller liknande","m²",0.5,null,0,null,0,104," "]
[105,"Rivning platonmatta inkl lister mm","m²",0.05,null,0,null,0]
[106,"Betonghålsten","m²",0.85,null,0,null,0]
[107,"Plankväggar av lbtg eller likvärdigt","m²",0.33,null,0,null,0,107,"Avser lättbetong, lättklinker, lättegel eller liknande."]
[108,"Plankvägg med skivbeklädnad, en sida","m²",0.5,null,0,null,0," "]
[109,"Plankvägg med skivbeklädnad, två sidor","m²",0.6,null,0,null,0]
[110,"Regelvägg med en sida brädbeklädnad ","m²",0.35,null,0,null,0]
[111,"Regelvägg med två sidor brädbeklädnad","m²",0.5,null,0,null,0]
[112,"Regelvägg gips/regel/gips","m²",0.3,null,0,null,0,112,"Avser trä såväl som plåtregel."]
[113,"Tillägg för gips utöver 1 lag per sida och lag","m²",7.0000000000000007E-2,null,0,null,0,113,"Gäller punkt 112"]
[114,"Gipsskivor per lag","m²",7.0000000000000007E-2,null,0,null,0,114,"Gäller ej i samband med pkt 112"]
[115,"Regelvägg beklädd med nät","m²",0.15,null,0,null,0,115,"Avser regelverk av trä eller metall. Dörrar inmäts i ytan."]
[116,"Utvändig panel på vägg","m²",0.24,null,0,null,0,116,"Avser alla typer av utvändig panel."]
[117,"Invändig panel på vägg","m²",0.2,null,0,null,0]
[118,"Lockläkt på vägg","m²",0.09,null,0,null,0]
[119,"Keramiska plattor på vägg","m²",0.35,null,0,null,0,119,"Borttagning av lim, fästmassa eller sättbruk ingår."]
[120,"Tillägg mindre yta < 5m2","m²",0.2,null,0,null,0,120,"Avser punkt 119. Avser sammanhängande väggytor."]
[121,"Våtrumsmatta på vägg","m²",0.1,null,0,null,0,121,"Borttagning av lim, fästmassa eller sättbruk ingår."]
[122,"Fasadplåt","m²",7.0000000000000007E-2,null,0,null,0]
[123,"Fyllningsmaterial i vägg, isol i vägg, per lag tom 120 mm","m²",0.03,null,0,null,0,null," "]
[124,"Tillägg - isolertjocklek över 120 mm","m²",0.02,null,0,null,0,124,"Avser pkt 123"]
[]
[null," ",null,null,"Summa",{"$f":"SUM(F74:F97)","v":0},"Summa",{"$f":"SUM(H74:H97)","v":0}]
[]
[]
[null,"Arbetsart 10",null,null,null,null,null,null,null,"Arbetsart 10"]
[]
[null,"RIVNING",null,null,"Nybyggnads",null,"Ombyggnads",null,null,"KOMMENTARER"]
[null,null,null,null,"Listan",null,"Listan"]
["Punkt","Aktivitet",null,null,"Avs.","Avs.","Avs.","Avs.","Punkt","Aktivitet"]
[null,"10:2  Innertak, trummor","Enhet","Tid","Mängd","Tim","Mängd","Tim"]
[201,"Regelstomme","m²",0.1,null,{"$f":"E108*D108","v":0},null,{"$f":"G108*D108","v":0},201,"Gäller såväl plåt som trä"]
[202,"Akustiktak inkl bärverk","m²",0.06,null,0,null,0]
[203,"Glespanel","m²",7.0000000000000007E-2,null,0,null,0,203,"Gäller såväl trä- som plåtreglar"]
[204,"Skivbeklädnad per lag","m²",0.1,null,0,null,0,null," "]
[205,"Undertaksskivor typ \"akustiktak\"","m²",0.05,null,0,null,0,205,"Enbart skivor"]
[206,"Heltäckande panel med putsbeklädnad","m²",0.5,null,0,null,0,206,"Med putsbeklädnad avses alla typer av puts inkl armering."]
[207,"Heltäckande panel","m²",0.2,null,0,null,0]
[208,"Limmade skivor eller plattor per lag","m²",0.15,null,0,null,0]
[null,"10:3  Yttertak"]
[301,"Takpannor på yttertak","m²",0.1,null,0,null,0,301,"Vindskivor och vattenbrädor ingår. Takpannor oavsett typ."]
[302,"Läkt på yttertak","m²",0.04,null,0,null,0,301,"Vindskivor och vattenbrädor ingår. "]
[303,"Tillägg takpannor för återanvändning på yttertak","m²",0.08,null,0,null,0]
[304,"Underlagspapp på yttertak","m²",0.05,null,0,null,0,304,"Inklusive spik. Avser rivning av papp då taktäckning bibehålls. "]
[305,"Spontade bräder på yttertak","m²",0.1,null,0,null,0,305,"Inklusive underlagspapp."]
[306,"Skivor av spån, kryssfanér eller träfiber på yttertak","m²",0.06,null,0,null,0]
[307,"Rivning av takstolar","m²",7.0000000000000007E-2,null,0,null,0]
[308,"Plåt på yttertak","m²",0.08,null,0,null,0,308,"Inklusive eventuella krönplåtar, nockplåtar mm"]
[309,"Takhuvar","st",0.75,null,0,null,0]
[310,"Takhuvar, plåt","st",0.25,null,0,null,0]
[311,"Snö- och nockräcke, takstegar","m",0.2,null,0,null,0]
[312,"Hängrännor, stuprör och plåtlister","m",0.1,null,0,null,0]
[313,"Panel i takfot","m",0.04,null,0,null,0,313,"Avser per m bräda"]
[]
[null,null,null,null,"Summa",{"$f":"SUM(F108:F129)","v":0},"Summa",{"$f":"SUM(H108:H129)","v":0}]
[]
[]
[null,"Arbetsart 10",null,null,null,null,null,null,null,"Arbetsart 10"]
[]
[null,"RIVNING",null,null,"Nybyggnads",null,"Ombyggnads",null,null,"KOMMENTARER"]
[null,null,null,null,"Listan",null,"Listan"]
["Punkt","Aktivitet",null,null,"Avs.","Avs.","Avs.","Avs.","Punkt","Aktivitet"]
[null,"10:4  Inredning, sakvaror","Enhet","Tid","Mängd","Tim","Mängd","Tim"]
[401,"Fönster < 1,7 m2","st",0.45,null,{"$f":"E140*D140","v":0},null,{"$f":"G140*D140","v":0},401,"Avser inte skyltfönster."]
[402,"Fönster > 1,7 m2 < 3,0 m2","st",0.55000000000000004,null,0,null,0]
[403,"Fönster > 3.0 m2< 4,5 m2","st",0.9,null,0,null,0]
[404,"Fönster > 4,5 m2","m²",0.2,null,0,null,0,404]
[405,"Dörrar lätt","st",0.4,null,0,null,0,405,"Avser karm, dörrblad/fönster, lister, foder och smygbräder. Avser punkt 405-408."]
[406,"Dörrar tung","st",0.7,null,0,null,0,406,"Avser ljud-/brandklassade trädörrar"]
[407,"Ståldörrar","st",1,null,0,null,0]
[408,"Entrépartier","m²",0.3,null,0,null,0,408]
[409,"Tillägg - för återanvändning","st",0.25,null,0,null,0,409,"Avser 401 - 408."]
[410,"Inredning per enhet","st",0.32,null,0,null,0,410,"Per enhet avses per styck skåp eller likvärdigt. Avser även vitvaror"]
[411,"Tillägg för platsbyggda skåp","st",0.25,null,0,null,0]
[412,"Sakvaror per m2 lägenhetsyta","m²",0.03,null,0,null,0,412,"I tiden ingår sakvaror som handdukshängare, pappershållare, gardinbeslag, klädkrokar, speglar, anslagstavlor, namnskyltar etc."]
[413,"Sakvaror per m2 bjälklagsyta","m²",0.01,null,0,null,0,413,"Punkterna 412 och 413 kan inte utgå samtidigt."]
[414,"Lister","m",0.03,null,0,null,0,414,"Avser alla typer av lister. Dock inte i samband med rivning av golvmattor eller fönster/dörrar"]
[415,"Tillägg - för återanvändning","m",0.02,null,0,null,0,415,"Avser 414"]
[416,"Separat tvättstuga per enhet","st",1.5,null,0,null,0,416,"Per enhet avses per styck maskin eller likvärdigt."]
[null,"10:5  Övrigt"]
[501,"Balkonger","m²",2,null,0,null,0,501,"I tiden ingår balkar, ingjutningsdetaljer etc."]
[502,"Balkongfronter och räcken","m",0.35,null,0,null,0]
[503,"Trappa av trä","st",3,null,0,null,0,503,"I tiden ingår även räcken, spaljéer, handledare etc."]
[504,"Inmurat badkar","st",2,null,0,null,0]
[505,"Fönsterbänkar","m",0.2,null,0,null,0,505,"Avser fönsterbänkar på konsol resp inmurade."]
[506,"Tillägg - för återanvändning","m",7.0000000000000007E-2,null,0,null,0,506,"Lagring, uppmärkning etc. Avser punkt 505."]
[]
[null,null,null,null,"Summa",{"$f":"SUM(F140:F162)","v":0},"Summa",{"$f":"SUM(H140:H162)","v":0}]
[]
[null,null,null,null,"AA:10",{"$f":"F65+F99+F131+F164","v":0},"AA:10",{"$f":"H65+H99+H131+H164","v":0}]
[null,"Arbetsart: 10    Rivning",null,null,null,{"$f":"F166","v":0},null,{"$f":"H166","v":0}]
[null,"Arbetsart 15"]
[]
[null,"INNEHÅLL"]
[]
[null,"FORMSÄTTNING"]
[]
[null,null,"Sid"]
[null,"Särskilda bestämmelser",30]
["15.0","Förtillverkning av form",32]
["15.1","Väggform",34]
["15.2","Pelare och balkar",40]
["15.3","Valvform",42]
["15.4","Trappor",44]
["15.5","Ingjutningsgods",44]
["15.6","Höjdtillägg",46]
[]
[]
[null,"Arbetsart 15"]
[]
[null,"SÄRSKILDA BESTÄMMELSER",null,null,null,null,null,null,null,"KOMMENTARER"]
[]
["A.","Förutsättningar",null,null,null,null,null,null,"A.","Förutsättningar"]
["a)","Tiderna avser användande av nytt eller begagnat material oavsett dimension eller ytstruktur",null,null,null,null,null,null,"a)","Avser även spontat virke"]
["b)","Mönsterformsättning är ej tidsatt",null,null,null,null,null,null,"b)","Med mönsterformsättning avses sådan form som föreskrivs, satt med virke diagonalt eller i olika bredder eller                                                                                                                                                                                                  tjocklekar eller inbrädning på lock eller klink för att åstadkomma viss ytstruktur på den färdiga betongytan."]
[null,null,null,null,null,null,null,null,null,"tjocklekar eller inbrädning på lock eller klink för att åstadkomma viss ytstruktur på den färdiga betongytan."]
[]
["B.","I tiderna ingår om annat inte angivs",null,null,null,null,null,null,"B.","I tiderna ingår om annat inte angivs"]
["a)","Montering från upplagd på fordon, mark eller valv inkl en st mellanlandning.",null,null,null,null,null,null,"a)","Avser punkterna 145 och 307. Vid kranmontering ingår inte transport utanför kranens räckvidd."]
["b)","Uppsättning, nedtagning, rensning, smörjning samt underbyggnad, avsträvning och bindning.",null,null,null,null,null,null,"b)","Tiderna avser komplett form inkl alla tillhörande delar, oavsett mängder och dimensioner."]
["c)","Tillverkning, uppsättning och förekommande nedtagning av, i och på formen monterade lister"]
[null,"och provisoriska avstängare samt skyddstäckning av efter formrivning öppna hål i valv."]
["d)","Infästning av avsträvning ingår."]
["e)","Erforderlig iskarvning vid formsättning med formluckor, system och elementformar",null,null,null,null,null,null,"e)","Med erforderlig iskarvning menas bl a kompletteringsformar vid t ex genomgående öppningar ingår i                                                                                                                                                                                                                                   formsättning med formbord och att formsättning av förstärkningsplattor och primärbalkar i samma plan ingår                                                                                                                                            vid formsättning med systemformar."]
[null,null,null,null,null,null,null,null,null,"formsättning med formbord och att formsättningen av förstärkningsplattor och primärbalk i samma plan ingår"]
[null,null,null,null,null,null,null,null,null,"vid formsättning med systemformar."]
["f)","Alla förekommande bearbetningar, liksom borrningar och urtag i formen",null,null,null,null,null,null,"f)","Reparation av plåtformar innebärande svetsningsarbeten och dylikt ingår ej."]
["g)","Skyddsstämpning"]
[]
["C.","Mätningsbestämmelser",null,null,null,null,null,null,"C.","Mätningsbestämmelser"]
["a)","Form mäts netto om annat inte anges."]
["b)","Med stämphöjd menas avståndet från det plan varifrån stämpningen utförs till underkant bjälklag."]
[]
["c)","Form av bräder för synlig yta utgår endast när sådant utförande föreskrivs i arbetsbeskrivningen"]
[]
[]
[null,"Arbetsart 15",null,null,null,null,null,null,null,"Arbetsart 15"]
[]
[null,"FORMSÄTTNING",null,null,"Nybyggnads",null,"Ombyggnads",null,null,"KOMMENTARER"]
[null,null,null,null,"Listan",null,"Listan"]
["Punkt","Aktivitet",null,null,"Avs.","Avs.","Avs.","Avs.","Punkt","Aktivitet"]
[null,"15:0  Förtillverkning av form","Enhet","Tid","Mängd","Tim","Mängd","Tim"]
["001","Väggform - förtillverkn traditionell för upprepad användning maskinhanterad inkl demontering.","m2",0.78,null,{"$f":"E219*D219","v":0},null,{"$f":"G219*D219","v":0},"001","Användning ersätts enligt punkt 108."]
["002","Väggform - sammansättning, demontering, om- och påbyggnad av systemformselement för upprepad användning.","m2",0.36,null,0,null,0,"002","Avser kranhanterad systemform som före användandet sammansätts av element och kan förses med gjutbryggor, skyddsräcken och stödben. I tiden ingår montering och demontering, övrig ombyggnad ingår i grundtiden punkt 111. Avser hela formens yta och ersättes en (1) gång. Användning ersätts enligt punkt 111."]
["003","Väggform - montering och demontering av gjutbryggor inkl konsoler och skydd","m",0.3,null,0,null,0,"003                      ","Avser arbeten med systemväggform (formelement). Avser punkt 003-005"]
["004","Väggform - montering och demontering av skyddsräcke på form","m",0.13,null,0,null,0,"004","Avser formsida utan gjutbrygga."]
["005","Väggform - montering och demontering av stödben per m form","m",0.09,null,0,null,0]
["006","Väggform - isolering av form","m2",0.16,null,0,null,0,"006","Anordning för fasthållning ingår."]
["007","Väggform - utbyte av formplywood","m2",0.3,null,0,null,0,"007"]
["008","Rengörning, sortering och buntning","m2",0.1,null,0,null,0,"008","Avser punkt 002"]
["009","Förtillverkning - komplett formbordsyta med träreglar och limning","m2",0.3,null,0,null,0,"009","Den inbrädade (inklädda) ytan mäts. Limning av skarv mellan skivor ingår i     grundtiderna."]
[null,null,null,null,null,null,null,null,null,"Formbordsunderreden. Räcke kan vara fast eller fällbart."]
["010","Förtillverkning - montering och demontering av formbordsunderrede per st bord","st",4.5,null,0,null,0,"010","Avser underbyggnad med ställningsmaterial och med höjdjustering via s k fotstämp och ställbara fotplattor. I tiderna ingår rengöring och sortering."]
["011","Förtillverkning - montering och demontering av formbordsunderrede, ställningsrör, 6 ben","st",6,null,0,null,0]
["012","Förtillverkning - montering och demontering av formbordsunderrede, ställningsrör, 9 ben","st",7,null,0,null,0,"012"]
[]
[null,null,null,null,"Summa",{"$f":"SUM(F219:F231)","v":0},"Summa",{"$f":"SUM(H219:H231)","v":0}]
[]
[]
[null,"Arbetsart 15",null,null,null,null,null,null,null,"Arbetsart 15"]
[]
[null,"FORMSÄTTNING",null,null,"Nybyggnads",null,"Ombyggnads",null,null,"KOMMENTARER"]
[null,null,null,null,"Listan",null,"Listan"]
["Punkt","Aktivitet",null,null,"Avs.","Avs.","Avs.","Avs.","Punkt","Aktivitet"]
[null,"15:1 Form för väggar","Enhet","Tid","Mängd","Tim","Mängd","Tim"]
[101,"Traditionell lågform t o m 0,15 m","m",0.09,null,{"$f":"E242*D242","v":0},null,{"$f":"G242*D242","v":0},101,"Förtillverkad form mäts som traditionell form."]
[102,"Traditionell lågform över 0,15 m t o m 0,25 m","m",0.16,null,0,null,0]
[103,"Traditionell lågform över 0,25 t o m 0,40 m","m",0.23,null,0,null,0,103]
[104,"Tillägg - form i grund","m",0.02,null,0,null,0,104,"Avser form enligt 101-103. Avser form mot mark."]
[105,"Traditionell väggform över 0,40 m","m2",0.55000000000000004,null,0,null,0,105,"Gäller även gles form."]
[106,"Traditionell väggform över 0,40 m av bräder","m2",0.71,null,0,null,0]
[107,"Tillägg - form i grund","m2",0.06,null,0,null,0,107,"Avser form enligt 105-106. Avser form mot mark samt form för kulvert och stödmur."]
[108,"Väggform över 0,40 m, förtillverkad enligt pkt 001","m2",0.37,null,0,null,0,108,"Avser väggform t o m 2,80 m höjd."]
[109,"Systemväggform över 0,40 m av formplywood i metallram - manuellt hanterad","m2",0.4,null,0,null,0,109,"Kryssfanérskivorna är infattade i metallramar med avstyvande metallprofiler. Ramarna kopplas ihop med kilar och sprintar. Avser väggform t o m 2,80 m höjd."]
[110,"Systemväggform över 0,40 m av formplywood i metallram - kranhanterad","m2",0.25,null,0,null,0,110]
[111,"   Kranhanterad systemväggform - formelement förtillverkad enligt pkt 002.","m2",0.19,null,0,null,0,111,"Avser formelement med formyta av plåt, kryssfanér eller bräder och stomme av trä-, stål-, eller aluminiumbalkar. Tiden avser komplett form inkl ev bottenreglar (t o m 2 virkesdelar) samt uppallning för stödben. Komplettering med traditionell form t o m 0,60 m bredd ingår. Mellanlandning av element ingår. Vid påbyggnad i höjd med traditionell form mäts denna i tillämpliga delar som traditionell väggform. Formytan mäts efter betongens begränsningslinjer. Öppningar där formen dras förbi avdrages inte.                               "]
[112,"Form för plintskaft och holk","m2",0.86,null,0,null,0,112,"Minsta mått 1.0 m2/st holk eller plint."]
[113,"Fundament t o m 1,0 m2 överyta och max höjd 0,40 m","st",1.6,null,0,null,0,113,"Avser fundament som gjuts separat, till exempel pålskalle. I tiderna ingår formsättning, armering, gjutning."]
[114,"Kantbalk av lättklinker typ Alba","m",0.25,null,0,null,0,114,"Inkl avjämning, montageplattor och tätning mot mark"]
[115,"Kantförstyvade grundplattor - traditionell form t o m 0,40 m","m",0.26,null,0,null,0,115,"Avser en sida form för delvis synlig yta inkl erforderlig avsträvning. Form för ej synlig yta mäts enligt pkt 101-103"]
[116,"Kantförstyvade grundplattor - traditionell form över 0,40 m","m2",0.78,null,0,null,0]
[117,"Kantförstyvade grundplattor - systemform över 0,40 m ","m2",0.45,null,0,null,0]
[118,"Kantelement med höjd tom 0,60 m, typ I","m",0.27,null,{"$f":"E259*D259","v":0},null,{"$f":"G259*D259","v":0},118,"Inkl plast, bearbetning av element, hörnelement och justering av bädd, sättbruk eller liknande"]
[119,"Kantelement med höjd tom 0,60 m, typ F","m",0.3,null,0,null,0,119,"Inkl plast, bearbetning av element, hörnelement och justering av bädd, sättbruk eller liknande"]
[120,"Kantelement med höjd tom 0,60 m, typ L samt U","m",0.24,null,0,null,0,120,"Inkl plast, bearbetning av element, hörnelement och justering av bädd, sättbruk eller liknande"]
[121,"Tillägg - montering av kantelement med gles form","m",0.16,null,0,null,0,121,"Avser punkten 118-120"]
[122,"Kvarsittande kantform av stål/plåt, t o m 0,40 m","m",0.18,null,0,null,0,122,"Inkl strävning och justering bädd"]
[123,"Kvarsittande kantform av stål/plåt, över 0,40 m","m2",0.4,null,0,null,0,123]
[124,"Tillägg - upphängd form för sarg","m",0.2,null,0,null,0,124,"Tillämpas om sarg formas i samband med kantbalk. Gjuts sargen i efterhand mäts formen som väggform."]
[125,"Form för dilatationsfog inkl board","m",0.28000000000000003,null,0,null,0]
[126,"Rännor och gropar - form t o m 0,25 m","m",0.22,null,0,null,0,125,"I tiderna ingår upphängning av form, flytbräder, stöttning av en sida form, sned begränsning, förtagningar etc"]
[127,"Rännor och gropar - form över 0,25 m t o m 0,40 m","m",0.3,null,0,null,0]
[128,"Rännor och gropar - form över 0,40 m","m2",0.78,null,0,null,0,128]
[129,"Tillägg - avsträvning av en sida form över 0,40 m","m2",0.26,null,0,null,0,129,"Avser sådan form som ej kan sammanbindas eller förankras i motstående yta eller som ej får sammanbindas. Bindning i ingjutna kramlor eller genom tidigare uppförd vägg ingår i grundtiderna. Tillägg ska endast utges för arbetsmomentet motgjuten en sida form. Väggform enligt punkterna 109-111 med avstånd mellan motstående sidor överstigande 1,5 m ska betalas i enlighet med denna punkt.Tillägg ska inte utges för sulform, kantform och form till kantförstyvade grundplattor med en höjd understigande 1,5 m. "]
[130,"För förtagningslådor tilläggs","st",0.35,null,0,null,0,130,"Gäller vid tillstötande väggar."]
[131,"Insättningsform i lågform höjd t o m 0.40 m","m",0.2,null,0,null,0,131,"Avser sockelelement med kärna av cellplast och med färdig yta"]
[132,"Insättningsform i väggform höjd över 0.40 m","m2",0.39,null,0,null,0,132,"Avser sockelelement med kärna av cellplast och med färdig yta"]
[133,"Tillägg - insida form för hisschakt","m2",0.12,null,0,null,0,133,"I tiden ingår arbeten med gejderfästen eller likvärdigt gods"]
[134,"Tillägg - insida form för trapphus","m2",0.1,null,0,null,0]
[135,"Tillägg - form för skyddsrum","m2",0.17,null,0,null,0,135,"Avser ej i skyddsrummet förekommande innerväggar. I tiden ingår montering av allt ingjutningsgods exkl dörrar och luckor."]
[136,"Tillägg - form för bankvalv och väggar med tjocklek över 0,50 m","m2",0.26,null,0,null,0,136,"I tiden ingår arbete med allt ingjutningsgods exkl dörrar."]
[137,"Tillägg - utsida form för fasad","m2",0.08,null,0,null,0,137,"I tiden ingår arbete med konsolställning. "]
[138,"Tillägg - form för källarväggar","m2",7.0000000000000007E-2,null,0,null,0,138,"Avser endast yttervägg."]
[139,"Tillägg - lutande form","m2",0.16,null,0,null,0,139,"Form som avviker mer än 30 grader från vertikalplanet mäts som horisontell form."]
[140,"Tillägg - svängd form t o m 0,40 m","m",0.17,null,0,null,0,140,"Tiderna gäller oavsett inbrädningens riktning. Förutsätter att färdiga bågar tillhandahålls."]
[141,"Tillägg - svängd form över 0,40 m","m2",0.35,null,0,null,0,141]
[142,"Formpassning mot berg","m",0.26,null,0,null,0]
[143,"Uppsättning och nedtagning av ”predikstol”","st",0.35,null,0,null,0]
[144,"Tillägg för fönstersmygar i yttervägg","st",0.43,null,0,null,0,144,"Avser per st fönster."]
[145,"  Skalväggselement av betong  ","m2",0.39,null,0,null,0,145,"Ytan mäts netto och avser färdig vägg inkl styrreglar, bruksträng, klossning,\nkomplettering armering, erforderliga stödben, avstängning, tätningar samt gjutning och lagning."]
[146,"  Tillägg skalväggar mindre än 7 m2","st",0.55000000000000004,null,0,null,0]
[]
[null,null,null,null,"Summa",{"$f":"SUM(F242:F287)","v":0},"Summa",{"$f":"SUM(H242:H287)","v":0}]
[]
[]
[null,"Arbetsart 15",null,null,null,null,null,null,null,"Arbetsart 15"]
[]
[null,"FORMSÄTTNING",null,null,"Nybyggnads",null,"Ombyggnads",null,null,"KOMMENTARER"]
[null,null,null,null,"Listan",null,"Listan"]
["Punkt","Aktivitet",null,null,"Avs.","Avs.","Avs.","Avs.","Punkt","Aktivitet"]
[null,"15:2  Pelare och balkar","Enhet","Tid","Mängd","Tim","Mängd","Tim"]
[201,"Pelarform i papp eller spirorör","st",0.75,null,{"$f":"E298*D298","v":0},null,{"$f":"G298*D298","v":0}]
[202,"Pelarform och form till kontrafor","m2",0.95,null,0,null,0]
[203,"Pelarform och form till kontrafor av bräder för synlig yta","m2",1.08,null,0,null,0]
[204,"Pelarform - förtillverkad enligt pkt 202-203 ","m2",0.56000000000000005,null,0,null,0,204,"Avser upprepad användning. Gäller även kontrafor"]
[205,"Pelarform - prefabricerad stålform med bult, rundmått t o m 1,20 m","st",1.38,null,0,null,0,205,"Avser såväl rund som fyrkantig form"]
[206,"Pelarform - prefabricerad stålform med bult, rundmått över 1,20 m","st",1.95,null,0,null,0,206]
[207,"Tillägg - traditionell form för kapitäl per pelare","st",3.11,null,0,null,0]
[210,"Tillägg - skarvning stålform med förlängningsdel","st",0.54,null,0,null,0,null," "]
[211,"Tillägg - stålform för kapitäl","st",0.78,null,0,null,0]
[212,"Tillägg - kontrafor","st",0.92,null,0,null,0]
[213,"Balkform","m2",0.95,null,0,null,0]
[214,"Balkform av bräder för synlig yta","m2",1.08,null,0,null,0]
[215,"Balkform, förtillverkad enligt pkt 213-214 ","m2",0.69,null,0,null,0,215,"Avser upprepad användning"]
[217,"Tillägg - lutande balkbotten","m2",0.16,null,0,null,0]
[220,"Tillägg - svängd balkform","m2",0.35,null,0,null,0,220,"Tiderna gäller oavsett inbrädningens riktning. Förutsätter att färdiga bågar tillhandahålls."]
[221,"Tillägg - form för betongkonsol","st",2.59,null,0,null,0,221,"Avser formsättning i efterhand."]
[222,"Tillägg - för pelare och balk","st",1,null,0,null,0,222,"Avser pelare och balk med omkrets under 1 m"]
[null,"15:3  Valvform"]
[301,"Valvform av bräder för synlig yta","m2",0.52,null,0,null,0,301,"Avser form med traditionell underbyggnad med reglerbar stämp. Gäller pkt 301-304."]
[302,"Valvform av skivor eller luckor - med underbyggnad av trä","m2",0.36,null,0,null,0,302,"Vid formsättning med formlucka med kantramar av metall tillämpas denna punkt. Tillämpas även för gles form."]
[303,"Valvform av skivor eller luckor - med underbyggnad av systembalkar och reglar av trä","m2",0.32,null,0,null,0]
[304,"Valvform av skivor eller luckor - med underbyggnad av systembalkar (sekundär- och primärbalkar) ","m2",0.27,null,0,null,0]
[305,"Valformselement","m2",0.26,null,0,null,0,305,"Typ Topec eller liknande."]
[306,"Formbord","m2",0.13,null,0,null,0]
[307,"Plattbärlag, kranhanterade","m2",0.19,null,0,null,0,307,"Kvarsittande element. Tätning med list eller bruk ingår. Klippning och inläggning av armeringsnät över skarvar ingår.  "]
[308,"Form valv, TRP-plåt kvarsittande","m2",0.22,null,0,null,0,308,"Avser fribärande plåt inkl underbyggnad och tätningar."]
[309,"Avstängare på valvform och plattbärlag","m",0.1,null,0,null,0,309,"Minsta mått är 1 m"]
[310,"Tillägg - manuell uttransport av formmaterial till valv ","m2",0.09,null,0,null,0,310,"Utgår endast för utrymme med omslutande väggar. Gäller punkt 301-304, till punkt 305 för källarvalv"]
[311,"Tillägg - manuell uttransport av formmaterial för valv med plattbärlag","m2",0.04,null,0,null,0,311,"Utgår endast för utrymme med omslutande väggar. Gäller punkt 306. Gäller punkt 307."]
[312,"Tillägg - vilplaner","st",0.78,null,0,null,0]
[313,"Tillägg - lutande form","m2",0.09,null,0,null,0]
[314,"Tillägg - kompletteringsform och form för primärbalkar i samma plan","m2",0.22,null,0,null,0]
[315,"Tillägg - förstärkningsplattor","m2",0.22,null,0,null,0]
[316,"Tillägg - underlägg för stämp på mark","m2",0.03,null,0,null,0,316,"Planering av underlag ingår."]
[317,"Tillägg - rivning form i kryputrymme","m2",0.26,null,0,null,0]
[318,"Tillägg - konstruktionstjocklek över 0,30 m per 10 cm","m2",0.04,null,0,null,0]
[319,"Kantform till valv","m",0.22,null,0,null,0,319,"Kantform enligt skiss"]
[]
[null,null,null,null,"Summa",{"$f":"SUM(F298:F334)","v":0},"Summa",{"$f":"SUM(H298:H334)","v":0}]
[]
[]
[null,"Arbetsart 15",null,null,null,null,null,null,null,"Arbetsart 15"]
[]
[null,"FORMSÄTTNING",null,null,null,null,null,null,null,"KOMMENTARER"]
[null,null,null,null,"Nybyggnads",null,"Ombyggnads"]
[null,null,null,null,"Listan",null,"Listan"]
["Punkt","Aktivitet",null,null,"Avs.","Avs.","Avs.","Avs.","Punkt","Aktivitet"]
[null,"15:4  Trappor","Enhet","Tid","Mängd","Tim","Mängd","Tim"]
[401,"Formning rak trappa med kupa per meter sättsteg","m",1.04,null,{"$f":"E346*D346","v":0},null,{"$f":"G346*D346","v":0},401,"I tiderna ingår inskärning i form och i förekommande fall sidoformar. Sättstegens bredd = trappans bredd."]
[402,"Formning rak trappa utan kupa per meter sättsteg","m",0.65,null,0,null,0,null,"Sidoform/vangstycke ersättes som sättsteg"]
[403,"Formning svängd trappa med kupa per meter sättsteg","m",2.59,null,0,null,0,403,"I trappa som består av såväl rak som svängd del mäts den raka enligt pkt 401."]
[404,"Entréplan t o m 1,0 m2","st",1.95,null,0,null,0,404,"I tiderna ingår planering, formsättning, isolering, armering, gjutning och ytbehandling."]
[405,"Entréplan över 1,0 t o m 3,0 m2","st",2.72,null,0,null,0,405]
[406,"Fundament t o m 1,0 m2 överyta","st",1.56,null,0,null,0,406,"Avser fundament som gjuts separat efter stomskedet. I tiderna ingår formsättning, armering, gjutning och ytbehandling."]
[407,"Fundament över 1,0 t o m 3,0 m2 överyta","st",2.59,null,0,null,0,407]
[408,"Tillägg - trappa med körramp per st sättsteg och ramp","st",0.22,null,0,null,0]
[409,"Skrapgaller inkl vinkeljärn","st",1.95,null,0,null,0]
[null,"15:5  Ingjutningsgods m m",null," "]
[501,"Fogband","m",0.22,null,{"$f":"E356*D356","v":0},null,{"$f":"G356*D356","v":0},501,"I tiderna ingår merarbete med formar, skarvning och förekommande fastsättningsanordningar."]
[502,"Vinkeljärn t o m 5 x 5 cm ","m",0.13,null,0,null,0,502,"Minsta mått 1.0 m"]
[503,"Bultgrupp","st",0.61,null,0,null,0,503,"Avser bultgrupp med 4 bultar, bultar utöver 4 ersättes enligt 504"]
[504,"Lösa bultar, per st","st",0.2,null,0,null,0]
[505,"Svetsplattor","st",0.22,null,0,null,0]
[506,"Tillägg - fixerad/kolvad svetsplatta","st",0.23,null,0,null,0,506,"Avses när svetsplattan fixeras innan gjutning."]
[507,"Undergjutning av bultgrupper och svetsplattor","st",0.39,null,0,null,0,507,"Gäller även understoppning."]
[508,"Undergjutning av bultgrupper och svetsplattor inkl formsättning och kringgjutning","st",0.61,null,0,null,0]
[509,"Fogband ","m",0.1,null,0,null,0,509,"Avser självhäftande eller monterad i samband med gjutning"]
[510,"Tillägg - spikat fogband enligt 509","m",0.05,null,0,null,0,510,"Inklusive skyddsplåt"]
[511,"Injekteringsslang","m",0.1,null,0,null,0,511,"Inklusive infästning"]
[512,"Ränna för avvattning, typ ACO Drain","m",1,null,0,null,0,512,"Kompletteringsarbete inklusive erforderlig armering, undergjutning och skyddstäckning enligt monteringsanvisning. Minsta mått är 1 m"]
[null,"15:6  Höjdtillägg "]
[601,"För höjd över 2,80 till 9,80 per påbörjad m.                                                                                                               För höjd över 9,80 per påbörjad 2 m.","m2",0.01,null,0,null,0,601,"Gäller samtliga vertikala och horisontella ytor i arbetsart 15 som mätes i m2. Utgår för hela vägg- respektive takytan. Antalet höjdtillägg ska beräknas från det plan på vilket sax/bomliften är placerad alternativt ställningen börjar byggas upp till ovankanten av berört material. Höjdtillägg ska endast erhållas för den del av nettoytan som är beklädd med material som ger rätt till höjdtillägg. När saxlift eller bomlift används beräknas höjdtillägg från 5 m istället för 2,80 m."]
[]
[null,null,null,null,"Summa",{"$f":"SUM(F346:F369)","v":0},"Summa",{"$f":"SUM(H346:H369)","v":0}]
[]
[null,null,null,null,"AA:15",{"$f":"F233+F289+F336+F371","v":0},"AA:15",{"$f":"H233+H289+H336+H371","v":0}]
[null,"Arbetsart: 15    Formsättning",null,null,null,{"$f":"F373","v":0},null,{"$f":"H373","v":0}]
[null,"Arbetsart 17"]
[]
[null,"INNEHÅLL"]
[]
[null,"ARMERING"]
[null,null,"Sid"]
[]
["                Särskilda bestämmelser",null,50]
["17:0","Förtillverkning",52]
["17:1","Plattor och sulor",52]
["17:2","Plintskaft, rännor, holkar, trappor",54]
["17:3","Väggar",54]
["17:4","Pelare och balkar",56]
["17:5","Bjälklag",56]
["17:6","Övrigt",58]
["17:7","Höjdtillägg",58]
[]
[null,"Arbetsart 17",null,null,null,null,null,null,null,"                                         Arbetsart 17"]
[]
[null,"SÄRSKILDA BESTÄMMELSER",null,null,null,null,null,null,null,"KOMMENTARER",null,null,null,null," "]
[]
["B.","I tiderna ingår om annat ej angivs",null,null,null,null,null,null,null," "]
["a)","Förekommande delarbeten som sortering, uppläggning och märkning av armeringsstål efter dimension, stålkvalitet och delposter, klotsning och najning för hand eller med apparat samt justering av armering, klippning för tillpassning, bockning av ingjutna förtagningsjärn, arbete med skyddsknoppar etc.",null,null,null,null,null,null,null,null,null,null,null,null," "]
[]
["C.","Mätningsbestämmelser",null,null,null,null,null,null,"C.","Mätningsbestämmelser"]
["a)","Konstruktionsarmeringens vikt mäts.",null,null,null,null,null,null,"a)","I tiderna ingår monteringsjärn och monteringsstöd."]
[]
["b)","Nät och mattors konstruktionsyta mäts netto"]
[]
["c)","Med balk avses konstruktioner vars längsgående järn omslutes av \nbyglar på minst fyra sidor, samt armering i form som benämns som \nbalkform i arbetsart 15."]
[]
[null," ",null,null,null,null,null,null,"e)","Vikttabell i kg/m                                                                                                                                       "]
[null,null,null,null,null,null,null,null,null,"Tabbellen anger kamstål","  K500C-T,SS260S","NK500AB-W ","K600B-T"]
["d)","Uppställning av armeringsstation är inte tidsatt",null,null,null,null,null,null,null,"Diameter mm"]
[null,null,null,null,null,null,null,null,null,5,null,0.154]
[null,null,null,null,null,null,null,null,null,6,0.222,0.222]
[null,null,null,null,null,null,null,null,null,7]
["e)","Se vidstående vikttabell",null,null,null,null,null,null,null,8,0.39500000000000002,0.39500000000000002,0.44400000000000001]
[null,null,null,null,null,null,null,null,null,9,null,0.499]
[null,null,null,null,null,null,null,null,null,10,0.61699999999999999,0.61699999999999999,0.67800000000000005]
[null,null,null,null,null,null,null,null,null,11,null,0.746]
[null,null,null,null,null,null,null,null,null,12,0.88800000000000001,0.88800000000000001,0.95399999999999996]
[null,null,null,null,null,null,null,null,null,16,1.58,null,1.67]
[null,null,null,null,null,null,null,null,null,20,2.4700000000000002,null,2.59]
[null,null,null,null,null,null,null,null,null,25,3.58,null,4.0199999999999996]
[null,null,null,null,null,null,null,null,null,32,6.31]
[]
[]
[]
[null,"Arbetsart 17",null,null,null,null,null,null,null,"Arbetsart 17"]
[]
[null,"ARMERING",null,null,"Nybyggnads",null,"Ombyggnads",null,null,"KOMMENTARER"]
[null,null,null,null,"Listan",null,"Listan"]
["Punkt","Aktivitet",null,null,"Avs.","Avs.","Avs.","Avs.","Punkt","Aktivitet"]
[null,"17:0  Förtillverkning","Enhet","Tid","Mängd","Tim","Mängd","Tim"]
["001","Klippning av armering","ton",3,null,{"$f":"E430*D430","v":0},null,{"$f":"G430*D430","v":0},"001","Utges enligt armeringsspecifikation."]
["002","Bockning av armering","ton",5,null,0,null,0,"002"]
["003","Uttagning av armeringsjärn från ritning eller måttagning på inläggningsstället","ton",2,null,0,null,0,"003","Utges inte när armeringsspecifikation tillhandahålls."]
[null,"17:1  Plattor och sulor"]
[101,"Armering med lösjärn d=8","ton",20,null,0,null,0,null," "]
[102,"Armering med lösjärn d=10","ton",19,null,0,null,0]
[103,"Armering med lösjärn d=12","ton",16,null,0,null,0]
[104,"Armering med lösjärn d=16 och över 16","ton",14,null,0,null,0]
[105,"Armeringsnät och mattor per lag tom ø 6 mm","m2",0.04,null,0,null,0,105,"Justering av mark ingår inte."]
[106,"Tillägg - armeringsnät och mattor över 6 mm per påbörjad 2 mm","m2",0.01,null,0,null,0]
[107,"Rullarmering t o m 10 mm per två lag (rutat) t o m c/c 150 mm","m2",0.06,null,0,null,null,107,"Inkl. komplettering med lösjärn."]
[108,"Rullarmering t o m 10 mm per två lag (rutat) över c/c 150 mm","m2",0.05,null,0,null,{"$f":"G441*D441","v":0}]
[109,"Rullarmering 12-16 mm per två lag (rutat) t o m c/c 150 mm","m2",0.08,null,0,null,0]
[110,"Rullarmering 12-16 mm per två lag (rutat) över c/c 150 mm","m2",7.0000000000000007E-2,null,0,null,0]
[111,"Rullarmering över 16 mm per två lag (rutat) t o m c/c 150 mm","m2",0.14000000000000001,null,0,null,0]
[112,"Rullarmering över 16 mm per två lag (rutat) över c/c 150 mm","m2",0.11,null,0,null,0,112]
[null,"17:2  Plintskaft, rännor, holkar, trappor"]
[201,"Armering med lösjärn d=8","ton",27,null,0,null,0,null," "]
[202,"Armering med lösjärn d=10","ton",25,null,0,null,0]
[203,"Armering med lösjärn d=12","ton",23,null,0,null,0]
[204,"Armering med lösjärn d=16 och över 16","ton",21,null,0,null,0]
[null,"17:3 Väggar"]
[301,"Armering med lösjärn d=8","ton",21,null,0,null,0,301,"Stödmurar och kulvertar mäts enligt pkt 301-304"]
[302,"Armering med lösjärn d=10","ton",20,null,0,null,0,null," "]
[303,"Armering med lösjärn d=12","ton",18,null,0,null,0]
[304,"Armering med lösjärn d=16 och över 16","ton",15,null,0,null,0,304," "]
[305,"Armeringsnät och mattor per lag t o m ø 6 mm","m2",0.05,null,0,null,0]
[306,"Tillägg nätarmering över 6 mm per påbörjad 2 mm","m2",0.01,null,0,null,0]
[307,"Tillägg - armering väggar i skyddsrum","ton",5,null,0,null,0]
[308,"Tillägg - armering väggar i bankvalv","ton",7,null,0,null,0]
[]
[null,null,null,null,"Summa",{"$f":"SUM(F430:F459)","v":0},"Summa",{"$f":"SUM(H430:H459)","v":0}]
[]
[]
[null,"Arbetsart 17",null,null,null,null,null,null,null,"Arbetsart 17"]
[]
[null,"ARMERING",null,null,null,null,null,null,null,"KOMMENTARER"]
[null,null,null,null,"Nybyggnads",null,"Ombyggnads"]
[null,null,null,null,"Listan",null,"Listan"]
["Punkt","Aktivitet",null,null,"Avs.","Avs.","Avs.","Avs.","Punkt","Aktivitet"]
[null,"17:4  Pelare och balkar","Enhet","Tid","Mängd","Tim","Mängd","Tim"]
[401,"Armering med lösjärn d=8","ton",27,null,{"$f":"E471*D471","v":0},null,{"$f":"G471*D471","v":0},401,"Grundbalk och kantbalk mäts enligt pkt 401 - 404"]
[402,"Armering med lösjärn d=10","ton",25,null,0,null,0]
[403,"Armering med lösjärn d=12","ton",23,null,0,null,0]
[404,"Armering med lösjärn d=16 och över 16","ton",21,null,0,null,0,404]
[405,"Armering med prefabricerade pelarkorgar","ton",9,null,0,null,0,405,"Komplettering med lösjärn ingår."]
[406,"Armering med prefabricerade balkkorgar","ton",9,null,0,null,0,406]
[null,"17:5  Bjälklag"]
[501,"Armering med lösjärn d=8","ton",18,null,{"$f":"E478*D478","v":0},null,{"$f":"G478*D478","v":0},null," "]
[502,"Armering med lösjärn d=10","ton",17,null,0,null,0]
[503,"Armering med lösjärn d=12","ton",14,null,0,null,0,null," "]
[504,"Armering med lösjärn d=16 och över 16","ton",11,null,0,null,0]
[505,"Armeringsnät och mattor per lag t o m ø 6 mm","m2",0.04,null,0,null,0]
[506,"Tillägg - armeringsnät över 6 mm per påbörjad 2 mm","m2",0.01,null,0,null,0]
[507,"Tillägg - armering bjälklag i skyddsrum","ton",4,null,0,null,0]
[508,"Tillägg - armering bjälklag i bankvalv","ton",5,null,0,null,0]
[509,"Rullarmering t o m 10 mm/två lag ruta t o m c/c 150 mm","m2",0.06,null,0,null,0,509,"Inkl. komplettering med lösjärn"]
[510,"Rullarmering t o m 10 mm/två lag ruta över c/c 150 mm","m2",0.05,null,0,null,0]
[511,"Rullarmering 12-16 mm/två lag ruta t o m c/c 150 mm","m2",0.08,null,0,null,0]
[512,"Rullarmering 12-16 mm/två lag ruta över c/c 150 mm","m2",7.0000000000000007E-2,null,0,null,0]
[513,"Rullarmering över 16 mm/två lag ruta t o m c/c 150 mm","m2",0.14000000000000001,null,0,null,0]
[514,"Rullarmering över 16 mm/två lag ruta över c/c 150 mm","m2",0.11,null,0,null,0,514]
[null,"17:6 Övrigt"]
[601,"Inborrning dubb inkl fastsättning","st",0.14000000000000001,null,0,null,0]
[602,"Inborrning dubb inkl kemisk injektering","st",0.18,null,0,null,0]
[603,"Dymling/förankringsjärn inkl borrning i form","st",0.05,null,0,null,0]
[604,"  Köldbryggearmering med intermittent isolering","m",0.5,null,0,null,0,604," Avses platsgjutna kontruktioner, minsta mått 1,00 m. Typ Halfen."]
[605,"Genomstansningsarmering - tvärkraftsarmering","st",0.05,null,0,null,0,605,"Avser per styck dubb."]
[null,"17:7 Höjdtillägg"]
[701,"För höjd över 2,80 till 9,80 per påbörjad m.                                                                                                               För höjd över 9,80 per påbörjad 2 m.","m2",0.01,null,0,null,0,701,"Gäller samtliga vertikala och horisontella ytor i arbetsart 17 som mätes i m2. Utgår för hela vägg- respektive takytan. Antalet höjdtillägg ska beräknas från det plan på vilket sax/bomliften är placerad alternativt ställningen börjar byggas upp till ovankanten av berört material. Höjdtillägg ska endast erhållas för den del av nettoytan som är beklädd med material som ger rätt till höjdtillägg. När saxlift eller bomlift används beräknas höjdtillägg från 5 m istället för 2,80 m."]
[]
[null,null,null,null,"Summa",{"$f":"SUM(F471:F499)","v":0},"Summa",{"$f":"SUM(H471:H499)","v":0}]
[]
[null,null,null,null,"AA:17",{"$f":"F461+F501","v":0},"AA:17",{"$f":"H461+H501","v":0}]
[null,"Arbetsart: 17    Armering",null,null,null,{"$f":"F503","v":0},null,{"$f":"H503","v":0}]
[null,"Arbetsart 18"]
[]
[null,"INNEHÅLL"]
[]
[null,"BETONGGJUTNING"]
[]
[null,null,"Sid"]
[null,"Särskilda bestämmelser",62]
["18:0","Gjutning grund och platta på mark",64]
["18:1","Gjutning väggar",64]
["18:2","Gjutning pelare och balkar",64]
["18:3","Gjutning bjälklag och överbetong",64]
["18:4","Gjutning trappor",64]
["18:5","Ytbehandling",66]
["18:6","Övriga arbeten",68]
[]
[]
[null,"Arbetsart 18",null,null,null,null,null,null,null,"Arbetsart 18"]
[]
[null,"SÄRSKILDA BESTÄMMELSER",null,null,null,null,null,null,null,"KOMMENTARER"]
[]
["B.","I tiderna ingår om annat inte angives",null,null,null,null,null,null,"B.","I tiderna ingår om annat inte angives"]
["a)","Behandling av betong i armerad eller oarmerad konstruktion samt avjämning av överytan med skyffel och kvast."]
["b)","Understoppning och/eller tillslipning vid förekommande hinder i ytan samt rengöring vid avslutning av golv mot vägg, pelare o dyl."]
["c)","Vattenspolning av betongytor."]
["d)","Lagning av staghål på obehandlad yta",null,null,null,null,null,null,"d)","Efterlagning och lagning av betongytor mätes enligt 602-605"]
[]
["C.","                                                Mätningsbestämmelser",null,null,null,null,null,null,"C.","Mätningsbestämmelser"]
["a)","Kubikmetertiderna justeras för nedanstående metoder.",null,null,null,null,null,null,"a)","Roterbil med hydralstyrd ränna som betjänar hela ytan likställs med vertikal pump."]
[null,"Med krangjutning avses gjutning direkt från bil till bask eller autoficka",null,null,null,null,null,null,null,"Faktorn för horisontell pumpgjutning avser slangdragning"]
[null,null,"Kran","Pump vertikal","Pump hori- sontell","Vibrationsfri betong"]
[null,"Grund och platta på mark",1,0.85,1,"Kran 0,90.                                                                                                                                                                                                                                                                                                                                                                                                                                                                                                                                                       Pump vert. 0,72.                                                                                                                                                                                                                                                                                                                                                                                                                                                                                                                      Pump horis. 0,85."]
[null,"Väggar",1,1,1,"Kran 0,90.                                                                                                                                                                                                                                                                                                                                                                                                                                                                                                                                                 Pump 0,85                                                                                                                                                                                                                                                   "]
[null,"Pelare och balkar",1,1,1,"Kran 0,90.                                                                                                                                                                                                                                                                                                                                                                                                                                                                                                                                  Pump 0,85."]
[null,"Bjälklag och överbetong",1,0.85,1,"Kran 0,90.                                                                                                                                                                                                                                                                                                                                                                                                                                                                                                                                        Pump vert. 0,72.                                                                                                                                                                                                                                                                                                                                                                                                                                                                                                                                          Pump horis. 0,85."]
[null,"Trappor",1,1,1,0.9]
["b)","   Vid gjutning i flera var för sig avjämnade och/eller ytbehandlade skikt mäts varje skikt för sig."]
["c)","  Balkar som gjuts i samband med bjälklag mäts som bjälklag."]
["d)","  Ställning för gjutningsarbeten mäts enligt arbetsart 36."]
["f)","  Gjutning som kräver åtgärd på grund av stighöjd är inte tidsatt",null,null,null,null,null,null,null," "]
[]
[]
[null,"Arbetsart 18",null,null,null,null,null,null,null,"Arbetsart 18"]
[]
[null,"BETONGGJUTNING",null,null,null,"Nybyggnads",null,"Ombyggnads",null,"KOMMENTARER"]
[null,null,null,null,null,"Listan",null,"Listan"]
["Punkt","Aktivitet",null,null,"Avs.","Avs.","Avs.","Avs.","Punkt","Aktivitet"]
[null,"18:0  Gjutning grund och platta på mark","Enhet","Tid","Mängd","Tim","Mängd","Tim"]
["001","Skyddsbetong t o m 10 cm tjocklek","m2",0.04,null,{"$f":"E553*D553","v":0},null,{"$f":"G553*D553","v":0}]
["002","Gjutning sulor","m3",0.33,null,0,null,0]
["003","Gjutning plintskaft och holkar","m3",1,null,0,null,0]
["004","Gjutning grundbalk, grundmur, kulvert, stödmur och vot","m3",0.5,null,0,null,0,"004","Om gjutning utföres samtidigt som grundplatta mäts denna punkt enligt 005"]
["005","Gjutning grundplatta","m3",0.25,null,0,null,0]
["006","Tillägg - platta på mark, tjocklek t o m 12 cm","m2",0.02,null,0,null,0]
["007","Gjutning platta till hissgrop och pumpgrop","m3",1,null,0,null,0]
[null,"18:1  Gjutning väggar"]
[101,"Gjutning väggar","m3",0.45,null,{"$f":"E561*D561","v":0},null,{"$f":"G561*D561","v":0}]
[102,"Tillägg - betong i yttervägg med kolvad isolering","m2",0.05,null,0,null,0]
[103,"Tillägg - betong i väggar tjocklek från 10 cm till 15 cm","m2",0.03,null,0,null,0]
[104,"Tillägg - betong i väggar tjocklek från 5 cm till 10 cm ","m2",0.09,null,0,null,0]
[null,"18:2  Gjutning pelare och balkar"]
[201,"Gjutning pelare","m3",1,null,0,null,0]
[202,"Gjutning i smidespelare, t o m 3 m längd","st",1,null,0,null,0,202,"Typ VKR, KKR, RHS eller liknande"]
[203,"Gjutning friliggande balkar","m3",0.67,null,0,null,0]
[null,"18:3  Gjutning bjälklag och överbetong"]
[301,"Gjutning bjälklag","m3",0.26,null,0,null,0]
[302,"Tillägg - gjutning bjälklag under 12 cm","m2",0.02,null,0,null,0]
[303,"Tillägg - gjutning av överbetong","m2",0.09,null,0,null,0,303,"Inslamning och primning av underlaget ingår. Avser även hårdbetong som utläggs i särskilt skikt. Avser ej konstruktionsbetong."]
[304,"Tillägg - pågjutning överspända prefab bjälklag","m2",0.03,null,0,null,0,304,"Avser håldeck typ HDF, utgår inte samtidigt med punkt 302"]
[305,"Tillägg - utläggning av överbetong med kärra","m2",0.09,null,0,null,0,305,"Utges utöver punkt 303"]
[null,"18:4  Gjutning trappor"]
[401,"Gjutning trappor","m3",1.17,null,0,null,0,null," "]
[null,null,null,null,null,null,null,null,null," "]
[null,null,null,null,"Summa",{"$f":"SUM(F553:F576)","v":0},"Summa",{"$f":"SUM(H553:H576)","v":0}]
[]
[]
[null,"Arbetsart 18",null,null,null,null,null,null,null,"Arbetsart 18"]
[]
[null,"BETONGGJUTNING",null,null,null,"Nybyggnads",null,"Ombyggnads",null,"KOMMENTARER"]
[null,null,null,null,null,"Listan",null,"Listan"]
["Punkt","Aktivitet",null,null,"Avs.","Avs.","Avs.","Avs.","Punkt","Aktivitet"]
[null,"18:5  Ytbehandling","Enhet","Tid","Mängd","Tim","Mängd","Tim"]
[501,"Avdragning av betong med enkel eller dubbel vibrobalk inkl utläggning av prefabricerade avdragsbanor","m2",0.04,null,{"$f":"E587*D587","v":0},null,{"$f":"G587*D587","v":0},501,"I tiderna ingår uppsättning och borttagning av avdragsbanor samt erforderlig rengöring och smörjning av banor, stöd och avstängare. I enhetstiden ingår erforderlig manuell komplettering för hinder i ytan."]
[502,"Tillägg - avdragsbanor vid fall","m",0.3,null,0,null,0]
[503,"Avdragning av betong med rätskiva - manuellt","m2",0.06,null,0,null,0,503,"I tiderna ingår uppsättning och borttagning av avdragsbanor samt erforderlig rengöring och smörjning av banor, stöd och avstängare"]
[504,"Ytavjämning med sloda och stålbrätte med långt skaft vid lasergjutning ","m2",0.04,null,0,null,0,504,"Om ytavjämningen endast utförs med ett av de två arbetsmomenten så reduceras tiden till 0,02 per m2.Om ytbehandlingen utförs med planskiva bladkors tillämpas även pkt 508-511."]
[505,"Vakuumbehandling per skikt","m2",0.04,null,0,null,0,505,"I tiden för vakuumbehandling ingår det merarbete med ytbehandlingen som kan uppkomma p g a tätning kring plattan eller mattans ojämnheter. I tiden ingår också tillsyn av vakuumaggregat, rengöring av plattor och mattor, tömning av tank samt erforderligt byte av duk. Transporter såväl mellan ytor som mellan våningar ingår i tiden."]
[506,"Manuell brädrivning (träskurning)","m2",0.1,null,0,null,0]
[507,"Manuell brädrivning med stålglättning (stålslipning)","m2",0.13,null,0,null,0]
[508,"Ytbehandling med planskiva - maskinellt","m2",0.04,null,0,null,0,508,"Maskinell bearbetning med planskiva eller med planskiva och bladkors inkl erforderlig manuell justering vid hinder där maskinerna inte kommer åt eller metoder med kombinerad maskinell och manuell ytbehandling samt erforderlig efterbehandling. Gäller pkt 508-510."]
[509,"Betongytskikt med granulering","m2",0.05,null,null,null,null,509,"Utges endast då ytgranulering läggs med pulver/spån i samband med gjutning."]
[510,"Ytbehandling med planskiva och bladkors - maskinellt","m2",0.08,null,{"$f":"E596*D596","v":0},null,{"$f":"G596*D596","v":0}]
[511,"Åkbar glättningsmaskin, planskiva och bladkors","m2",0.04,null,0,null,0]
[512,"Maskinell torrslipning inkl dammsugning","m2",7.0000000000000007E-2,null,0,null,0]
[513,"Avjämning trappor per meter plansteg","m",0.08,null,0,null,0]
[514,"Ytbehandling trappor per meter plansteg","m",0.12,null,0,null,0]
[515,"Träskurning av balkar och stödmurars överyta","m",0.08,null,0,null,0]
[516,"Tillägg – yta med fall ","m2",0.04,null,0,null,0]
[517,"Tillägg - ytbehandling för yta t o m 5,0 m2 ","st",1.34,null,0,null,0,517,"Avser inte ytor med fall utan avser arbetsmoment som utförs på en yta som begränsas av väggar eller motsvarande och är mindre än 5 m2"]
[518,"Tillägg - ytbehandling golv i ränna","m",0.08,null,0,null,0]
[519,"Tillägg - för lokalt fall mot golvbrunn","st",0.6,null,0,null,0]
[]
[null,null,null,null,"Summa",{"$f":"SUM(F587:F605)","v":0},"Summa",{"$f":"SUM(H587:H605)","v":0}]
[]
[]
[null,"Arbetsart 18",null,null,null,null,null,null,null,"Arbetsart 18"]
[]
[null,"BETONGGJUTNING",null,null,"Nybyggnads",null,"Ombyggnads",null,null,"KOMMENTARER"]
[null," ",null,null,"Listan",null,"Listan"]
["Punkt","Aktivitet",null,null,"Avs.","Avs.","Avs.","Avs.","Punkt","Aktivitet"]
[null,"18:6  Övriga arbeten","Enhet","Tid","Mängd","Tim","Mängd","Tim"]
[601,"Fas eller hålkäl av betong","m",0.13,null,{"$f":"E616*D616","v":0},null,{"$f":"G616*D616","v":0}]
[602,"Rensning, lagning och behandling av betongytor i tak inkl erforderliga rörtätningar.","m2",0.08,null,0,null,0,602,"Avser ytor som skall sprutspacklas, målas eller tapetseras. "]
[603,"Rensning, lagning och behandling av betongytor på vägg och pelare inkl erforderliga rörtätningar.","m2",0.1,null,0,null,0,603]
[604,"Skarvslipning av tak och väggar","m2",0.02,null,0,null,0,604,"Avser ytor som inte ytbehandlas"]
[605,"Efterbehandling undersida plattbärlag","m2",0.03,null,0,null,0,605,"Avser ytor som skall sprutspacklas, målas eller tapetseras och avser underytan på betongelement enligt arbetsart 15. Avser inte skarvspackling."]
[606,"Skarvspackling undersida plattbärlag eller skalväggselement","m",0.04,null,0,null,0,606,"Avser ifyllnad av skarv till slät takyta eller väggyta.Avser ytor som skall sprutspacklas,målas eller tapseras och avser ytan på betongelement enligt arbetsart 15."]
[607,"Spackling golv per skikt","m2",0.04,null,0,null,0]
[608,"Formsättning och igengjutning av ventilations- och rörschakt/ursparing","st",1.2,null,0,null,0,608,"Avser genomgående schakt/ursparing enligt bygghandling/ritning"]
[609,"Tillägg - mer än 2 rör/schakt per överskjutande rör","st",0.31,null,0,null,0]
[610,"Igensättning av ursparing i vägg med form","st",0.4,null,0,null,0,610,"Avser fullt färdigt arbete inkl igengjutning"]
[611,"Tillägg - uppbyggnad av fall för läckagevarning","st",0.89,null,0,null,0,null," "]
[612,"Igengjutning efter rörursparingar i platta på mark inkl ytbehandling","m",0.11,null,0,null,0,null," "]
[613,"Uppspackling fall i dusch","st",1.2,null,0,null,0]
[614,"Utläggning av självnivellerande ytmassor med pump","m2",0.09,null,0,null,0,614,"Skötsel av utrustning ingår. I tiderna ingår dammsugning, primning, beredning av massa, erforderliga avstängare och tätningar samt efterbehandling. Ytan skall vara färdig för mattläggning. Avser ej enstaka utrymmen."]
[615,"Utläggning av självnivellerande ytmassor - manuellt","m2",0.12,null,0,null,0,615]
[616,"Borttagning av ojämnheter samt dammsugning före utläggningen","m2",0.04,null,0,null,0,616,"Tillämpas när massan inte utläggs av ackordslaget.                                                                                            "]
[617,"Borttagning av ojämnheter samt dammsugning och primer före utläggningen","m2",0.06,null,0,null,0,617]
[618,"Membranhärdare med roller/kvast","m2",0.02,null,0,null,0]
[619,"Membranhärdare sprutat","m2",0.01,null,0,null,0,null," "]
[null,null,null,null,null,0,null,0]
[null,null,null,null,"Summa",{"$f":"SUM(F616:F634)","v":0},"Summa",{"$f":"SUM(H616:H634)","v":0}]
[null,"Reducering av betong i timmar"]
[null,null,null,null,"AA:18",{"$f":"F578+F607+F636-E637","v":0},"AA:18",{"$f":"H578+H607+H636-G637","v":0}]
[null,"Arbetsart: 18    Betonggjutning",null,null,null,{"$f":"F638","v":0},null,{"$f":"H638","v":0}]
[null,"Arbetsart 20"]
[null,"INNEHÅLL"]
[]
[null,"MONTERING AV ELEMENT"]
[]
[]
[null,null,"Sid"]
["                 Särskilda bestämmelser",null,72]
["20.0","Grundelement",74]
["20.1","Väggelement",74]
["20.2","Pelar- och balkelement",76]
["20.3","Bjälklagselement",76]
["20.4","Takelement av lättbetong",78]
["20.5","Trappelement av betong",78]
["20.6","Övriga element av betong",78]
["20.7","Höjdtillägg",80]
[]
[]
[null,"Arbetsart 20",null,null,null,null,null,null,null,"Arbetsart 20"]
[]
[null,"SÄRSKILDA BESTÄMMELSER",null,null,null,null,null,null,null,"KOMMENTARER"]
[]
["B.","I tiderna ingår om annat ej angivs",null,null,null,null,null,null,"B.","I tiderna ingår om annat ej angivs"]
["a)","Montering från upplag på fordon, mark eller valv inkl en st mellanlandning. ",null,null,null,null,null,null,"a)","Vid kranmontering ingår inte transport utanför kranens räckvidd."]
["b)","Provisorisk strävning, kolvning, stagning samt förankring och infästning av element."]
["c)","Rengöring och justering av underlag samt infästningsanordningar."]
["d)","Mottagning och transport av betong, bruk, foglim, lagningsmassa eller liknande.",null,null,null,null,null,null,"d)","Tillverkning av betong är inte tidsatt"]
["e)","Armering, tätning och fyllning av fogar samt i-, under-, kring- och fastgjutning av element.",null,null,null,null,null,null,"e)","Med tätning avses inte drevning, drevning mätes i Aa 28"]
["f)","Uppsättning, nedtagning, rensning och smörjning av form för fogfyllning i skarvar mellan element och mot anslutande väggar och valv."]
["g)","Utläggning av lim- eller brukssträng, underlagspapp och/eller tätningslist"]
["h)","Sågning, håltagning, kompletteringsfasning och övrig justering av lättbetongelement."]
["i)","Utvändig och invändig tätning och igenlagning av montageskarvar i träelement t o m 0,3 m bredd.",null,null,null,null,null,null,"i)","Avser färdiga fabrikskomponenter för träkonstruktioner. Tillskärning av beklädnadsskivor ingår."]
[]
["C.","Mätningsbestämmelser"]
["a)","Öppningar i element inmäts i ytan."]
[]
[]
[null,"Arbetsart 20",null,null,null,null,null,null,null,"Arbetsart 20"]
[]
[null,"MONTERING AV ELEMENT",null,null,"Nybyggnads",null,"Ombyggnads",null,null,"KOMMENTARER"]
[null,null,null,null,"Listan",null,"Listan"]
["Punkt","Aktivitet",null,null,"Avs.","Avs.","Avs.","Avs.","Punkt","Aktivitet"]
[null,"20:0  Grundelement","Enhet","Tid","Mängd","Tim","Mängd","Tim"]
["001","Grundbalk av betong","st",0.7,null,{"$f":"E683*D683","v":0},null,{"$f":"G683*D683","v":0},"001","Avser balk med höjd t o m 0,6 m"]
["002","Pelarholk av betongelement inkl underbädd","st",0.66,null,0,null,0]
["003","Grundelement av betong","m",0.18,null,0,null,0,"003","Avser element med höjd t o m 1,2 m, höjd över 1,2 m mätes som väggelement"]
["004","Betongsträng för grundelement exkl form, inkl armering och betong","m",0.09,null,0,null,0,null," "]
["005","Betongsula för grundelement inkl form, armering och betong, höjd t o m 150 mm.","m",0.28999999999999998,null,0,null,0,null," "]
[null,"20:1  Väggelement"]
[101,"Utfackningselement/väggelement med trä/stålreglar, maskinell montering ","m2",0.17,null,0,null,0,101,"Avser även gavelspetselement."]
[102,"Sandwichelement av plåt - kranmontering","m2",0.17,null,{"$f":"E690*D690","v":0},null,{"$f":"G690*D690","v":0},102,"Typ Paroc eller likvärdigt. Monteringslister, tätningar och plåtbeslag vid hörn och täcklist vid vertikalskarvar ingår. Plåtlister runt öppningar och krönlist ingår inte."]
[103,"Tillägg - sågning av sandwichelement","m",0.1,null,0,null,0]
[104,"Ytterväggselement av lättbetong, stående b= 600 – kranmontering","st",0.75,null,0,null,0]
[105,"Ytterväggselement av lättbetong, liggande h= t o m 750 – kranmontering","st",0.6,null,0,null,0]
[106,"Väggelement av massiv betong alternativt med fyllning av isolering – kranmontering.","m2",0.2,null,0,null,0]
[107,"Tillägg - väggelement med borstad yta eller likvärdigt","m2",0.05,null,0,null,0]
[]
[" ",null,null," ","Summa",{"$f":"SUM(F683:F695)","v":0},"Summa",{"$f":"SUM(H683:H695)","v":0}]
[]
[]
[null,"Arbetsart 20",null,null,null,null,null,null,null,"Arbetsart 20"]
[]
[null,"MONTERING AV ELEMENT",null,null,"Nybyggnads",null,"Ombyggnads",null,null,"KOMMENTARER"]
[null,null,null,null,"Listan",null,"Listan"]
["Punkt","Aktivitet",null,null,"Avs.","Avs.","Avs.","Avs.","Punkt","Aktivitet"]
[null,"20:2  Pelar- och balkelement","Enhet","Tid","Mängd","Tim","Mängd","Tim"]
[201,"Pelare av betong som monteras mot valvform","st",0.73,null,{"$f":"E706*D706","v":0},null,{"$f":"G706*D706","v":0},201,"Avser inte grövre konstruktioner. "]
[202,"Pelare av betong som monteras fristående","st",1.05,null,{"$f":"E707*D707","v":0},null,{"$f":"G707*D707","v":0}]
[203,"Balkar av betong","st",0.82,null,{"$f":"E708*D708","v":0},null,{"$f":"G708*D708","v":0},203]
[null,"20:3  Bjälklagselement"]
[301,"Bjälklagselement av trä - kranmontering","m2",0.09,null,{"$f":"E710*D710","v":0},null,{"$f":"G710*D710","v":0},301,"Erforderlig skråspikning i blockskarvar, montering av styrregel och syll samt utläggning av grundisolering ingår."]
[302,"Bjälklagselement av lättbetong - kranmontering","m2",0.09,null,{"$f":"E711*D711","v":0},null,{"$f":"G711*D711","v":0},302,"Tiderna gäller oavsett fogfyllningsmetod och inkluderar erforderlig tätning med torrt bruk jämte form och armering. Montering av dragstänger samt efterlagning ingår."]
[303,"Bjälklagselement av betong tom 400 m2 - kranmontering","m2",0.2,null,{"$f":"E712*D712","v":0},null,{"$f":"G712*D712","v":0},303,"Vid montering på trästommar ingår inte strävning av väggstomme"]
[304,"Bjälklagselement av betong över 400 m2 - kranmontering","m2",0.15,null,{"$f":"E713*D713","v":0},null,{"$f":"G713*D713","v":0},304]
[305,"Avväxling i bjälklag per upplagspunkt","st",0.16,null,{"$f":"E714*D714","v":0},null,{"$f":"G714*D714","v":0},305,"Avser förekommande arbeten med avväxlingar."]
[null,null,null,null,null,null,null,null,null," "]
[null,null,null,null,"Summa",{"$f":"SUM(F706:F714)","v":0},"Summa",{"$f":"SUM(H706:H714)","v":0}]
[]
[]
[null,"Arbetsart 20",null,null,null,null,null,null,null,"Arbetsart 20"]
[]
[null,"MONTERING AV ELEMENT",null,null,null,null,null,null,null,"KOMMENTARER"]
[null,null,null,null,"Nybyggnads",null,"Ombyggnads"]
[null,null,null,null,"Listan",null,"Listan"]
["Punkt","Aktivitet",null,null,"Avs.","Avs.","Avs.","Avs.","Punkt","Aktivitet"]
[null,"20:4  Takelement ","Enhet","Tid","Mängd","Tim","Mängd","Tim"," "]
[401,"Takelement av lättbetong - kranmontering","m2",0.1,null,{"$f":"E726*D726","v":0},null,{"$f":"G726*D726","v":0}]
[402,"Avväxling i tak per upplagspunkt","st",0.16,null,0,null,0,402,"Avser förekommande arbeten med avväxlingar."]
[403,"Gjutning av balk i nock, komplett, per m balk","m",0.27,null,0,null,0]
[404,"Avjämning och tillputsning med bruk i ränndal per m ränndal och mot ståndskiva","m",0.27,null,0,null,0,404,"Avser även rännor."]
[405,"Takelement av trä - kranmontering","m2",0.09,null,0,null,0,null," "]
[406,"Tillägg - sned begränsning per m tackveck in eller ut","m",0.41,null,0,null,0,406,"Avser takelement av trä"]
[407,"Takelement av betong tom 400 m2 - kranmontering","m2",0.2,null,0,null,0]
[408,"Takelement av betong över 400 m2 - kranmontering","m2",0.15,null,0,null,0]
[null,"20:5  Trappelement av betong"]
[501,"Raka trappor av betong - hela våningslöp","st",3,null,{"$f":"E735*D735","v":0},null,{"$f":"G735*D735","v":0},501,"Avser montering med kran eller telfer."]
[502,"Raka trappor av betong - halva våningslöp","st",2.5,null,0,null,0,null," "]
[503,"Vinkelblocksteg av betong till raka trappor","st",0.35,null,0,null,0]
[504,"Svängda trappor av betong - hela våningslöp","st",3.5,null,0,null,0,508]
[505,"Svängda trappor av betong - halva våningslöp","st",2.75,null,0,null,0]
[506,"Spindelburna vinkelblocksteg av betong till svängda trappor","st",1,null,0,null,0,506,"Tillverkning och uppsättning av stämp och/eller monteringsbockar ingår."]
[507,"Vil- eller trapplaner av betong, monterade på valvform","st",1,null,0,null,0," "," "]
[508,"Vil- eller trapplaner av betong, monterade efter stomgjutning","st",1.4,null,0,null,0]
[509,"Tillägg - fastsättning av trappa med kolv i trappsida ","st",0.6,null,0,null,0,509,"Avser fullt färdigt arbete inkl igjutningar mm, per kolv"]
[null,"20:6  Övriga element av betong"]
[601,"Balkongplattor av betong ","m2",0.45,null,{"$f":"E745*D745","v":0},null,{"$f":"G745*D745","v":0},601,"Inkl underrede minsta mått 5 m2"]
[null,"20:7  Höjdtillägg "]
[701,"För höjd över 2,80 till 9,80 per påbörjad m.                                                                                                               För höjd över 9,80 per påbörjad 2 m.","m2",0.01,null,0,null,0,701,"Gäller samtliga vertikala och horisontella ytor i arbetsart 20 som mätes i m2. Utgår för hela vägg- respektive takytan. Antalet höjdtillägg ska beräknas från det plan på vilket sax/bomliften är placerad alternativt ställningen börjar byggas upp till ovankanten av berört material. Höjdtillägg ska endast erhållas för den del av nettoytan som är beklädd med material som ger rätt till höjdtillägg. När saxlift eller bomlift används beräknas höjdtillägg från 5 m istället för 2,80 m."]
[]
[null,null,null,null,"Summa",{"$f":"SUM(F726:F747)","v":0},"Summa",{"$f":"SUM(H726:H747)","v":0}]
[]
[null,null,null,null,"AA:20",{"$f":"F697+F716+F749","v":0},"AA:20",{"$f":"H697+H716+H749","v":0}]
[null,"Arbetsart: 20    Montering av element",null,null,null,{"$f":"F751","v":0},null,{"$f":"H751","v":0}]
[null,"Arbetsart 21"]
[null,"INNEHÅLL"]
[]
[null,"MURNING"]
[]
[null,null,"Sid"]
["            Särskilda bestämmelser",null,84]
["21.0","Tegel ",86]
["21.1","Block ",88]
["21.2","Höjdtillägg",88]
[]
[]
[null,"Arbetsart 21",null,null,null,null,null,null,null,"Arbetsart 21"]
[]
[null,"SÄRSKILDA BESTÄMMELSER",null,null,null,null,null,null,null,"KOMMENTARER"]
[]
["A.","Förutsättningar",null,null,null,null,null,null,"A.","Förutsättningar"]
["a)","För företag med specialinriktning ska särskild hänsyn tas till gemensamma arbeten enligt arbetsart 51 och objekts tillägg. ",null,null,null,null,null,null,"a)","Med specialföretag menas företag som endast utför murningsarbeten."]
[]
[null," "]
["B.","I tiderna ingår om inte annat angivs",null,null,null,null,null,null,"B.","I tiderna ingår om inte annat angivs"]
["a)","Förekommande detaljarbeten med grundpapp, träklotsar, förankringar, armeringskrokar och förstärkningsjärn, valvbågar, inmurningsgods, ventiler, galler, lättbetong- och tegelbalkar, huggningar m m."]
["b)","Erforderlig maskinell tillverkning av bruk eller mottagning av färdigt bruk samt tillsättning av cement, färg, plasticeringsmedel o dyl.",null,null,null,null,null,null,null,"Traditionella förband ingår, dock ej mönstermurning."]
["c)","Skyddstäckning."]
[]
["C.","Mätningsbestämmelser",null,null,null,null,null,null,"C","Mätningsbestämmelser"]
["a)","Öppningar enligt pkt 007 och 113 förutsätter att murning förekommer över och/eller under öppningarna.",null,null,null,null,null,null,"a)","Öppningar mäts enligt nedanstående skisser."]
["b)","Avdrag görs inte för insättningar för valv samt rörslitsar t o m 0,5 m bredd."]
["c)","Ställningar mäts enligt arbetsart 36."]
["d)","Tegel vars hårdhet begränsar antalet möjliga skift är inte tidsatt."]
[]
[]
[null,"Arbetsart 21",null,null,null,null,null,null,null,"Arbetsart 21"]
[]
[null,"MURNING",null,null,"Nybyggnads",null,"Ombyggnads",null,null,"KOMMENTARER"]
[null,null,null,null,"Listan",null,"Listan"]
["Punkt","Aktivitet",null,null,"Avs.","Avs.","Avs.","Avs.","Punkt","Aktivitet"]
[null,"21:0  Tegel ","Enhet","Tid","Mängd","Tim","Mängd","Tim"]
["001","Mur t o m ¼-sten, inkl en sida fog","m2",0.9,null,{"$f":"E791*D791","v":0},null,{"$f":"G791*D791","v":0}," "]
["002","Mur t o m ½-sten, för putsning","m2",0.7,null,0,null,0,"002","Tiden avser t o m 60 st/m2 ½-stens mur. Isolering bakom eller mellan murbeklädnader mäts enligt arbetsart 28."]
["003","Mur t o m ½-sten, inkl en sida fog","m2",0.95,null,0,null,0]
["004","Mur t o m ½-sten, inkl två sidor fog","m2",1,null,0,null,0,"004"," "]
["005","Mur t o m 1-sten, inkl en sida fog","m2",1.3,null,0,null,0,"005","1-stens mur bestående av två ½-stensmurar mäts som två murar, oavsett skiktindelning."]
["006","Mur t o m 1-sten, inkl två sidor fog","m2",1.4,null,0,null,0,"006"]
["007","Tillägg - per öppning","st",0.9,null,0,null,0]
["008","Tillägg - murning, in- och utåtgående hörn","m",0.4,null,0,null,0,"008","Utgår inte för tillstötande väggar."]
["009","Tillägg - liggande rullskift eller vertikala band","m",0.25,null,0,null,0,"009","Se vidstående figur/skiss"]
["010","Tillägg - stående rullskikt","m",0.45,null,0,null,0,"010"]
["011","Tillägg - tegel med bruten eller extremt borstad yta","m2",0.05,null,0,null,0]
["012","Tillägg - avslagen kopp","m2",0.05,null,0,null,0,"012","Avse inslag av kopp i löpande förband,exempelvis munkförband."]
["013","Tillägg - in- eller utdraget skift","m",0.1,null,0,null,0,"013","Avvikande färg mäts enligt dessa punkter."]
["014","Tillägg - in- eller utdraget fält t o m 5 m2","st",0.65,null,0,null,0,"014"]
["015","Tillägg - utkragning per skift","m",0.25,null,0,null,0,null," "]
["016","Tillägg - vertikal avslutning, sned avslutning och eller sågning","m",0.3,null,0,null,0,"016","Avser inte avslutning mot vägg. Punkt 008 tillämpas ej. Utgår inte när avslutningen döljs av täckbräda"]
["017","Tillägg - horisontell begränsning","m",0.2,null,0,null,0,"017","Gäller inte bröstning."]
["018","Tillägg - dilatationsfog","m",0.3,null,0,null,0,"018","Kan ej utgå samtidigt med punkt 017."]
["019","Tillägg - mekanisk infästning","m2",0.05,null,0,null,0]
["020","Tillägg - sten utöver 60 st/m2","m2",0.1,null,0,null,0,"020","Avser per påbörjad 10 st utöver 60 st/m2."]
["021","Konsol vid murning","st",0.4,null,0,null,0,"021","Avse erfoderlig infästning,typ Halfen."]
["022","Läggning av fall under fönsterbleck","m",0.1,null,0,null,{"$f":"D812*G812","v":0},"022","Minsta mått mäts 1 m."]
["023","Sockelplåt underkant tegelvägg","m",0.05,null,0,null,{"$f":"G813*D813","v":0}]
[]
[null,null,null,null,"Summa",{"$f":"SUM(F791:F813)","v":0},"Summa",{"$f":"SUM(H791:H813)","v":0}]
[]
[]
[]
[null,"Arbetsart 21",null,null,null,null,null,null,null,"Arbetsart 21"]
[]
[null,"MURNING",null,null,null,null,null,null,null,"KOMMENTARER"]
[null,null,null,null,"Nybyggnads",null,"Ombyggnads"]
[null,null,null,null,"Listan",null,"Listan"]
["Punkt","Aktivitet",null,null,"Avs.","Avs.","Avs.","Avs.","Punkt","Aktivitet"]
[null,"21:1  Block ","Enhet","Tid","Mängd","Tim","Mängd","Tim"]
[101,"Lättbetong t o m 20 cm","m2",0.4,null,{"$f":"E826*D826","v":0},null,{"$f":"G826*D826","v":0},101,"Avser även limning."]
[102,"Lättbetong över 20 cm t o m 35 cm","m2",0.45,null,0,null,0]
[103,"Lättbetong över 35 cm","m2",0.5,null,0,null,0]
[104,"Lättklinkerblock t o m 20 cm","m2",0.5,null,0,null,0]
[105,"Lättklinkerblock över 20 cm t o m 35 cm","m2",0.55000000000000004,null,0,null,0]
[106,"Lättklinkerblock över 35 cm","m2",0.6,null,0,null,0,106]
[107,"Betonghålblock t o m 20 cm","m2",0.6,null,0,null,0]
[108,"Betonghålblock över 20 cm t o m 35 cm","m2",0.65,null,0,null,0]
[109,"Massiva betongblock t o m 15 cm","m2",0.9,null,0,null,0,109,"Betongsten mäts enligt denna punkt. Skärning ingår inte."]
[110,"Massiva betongblock över 15 cm t o m 30 cm","m2",1,null,0,null,0]
[111,"Isoblock","m2",0.75,null,0,null,0]
[112,"Tillägg - fogstrykning samtidigt","m2",0.05,null,0,null,0,112,"Den fogade ytan mäts, dock inte smygytor i öppningar. Rengöring och komplettering ingår."]
[113,"Tillägg - per öppning","st",0.65,null,0,null,0]
[114,"Tillägg - vertikal avslutning, sned avslutning och eller sågning","m",0.3,null,0,null,0,"114","Avser inte avslutning mot vägg. "]
[115,"Tillägg - horisontell begränsning","m",0.15,null,0,null,0]
[116,"Tillägg - mekanisk infästning","m2",0.05,null,0,null,0]
[117,"Tillägg murning, in- och utåtgående vertikala hörn, per m","m",0.3,null,0,null,0,117,"Utgår inte för tillstötande väggar."]
[118,"Murning av glasblock","st",0.15,null,0,null,0,118,"Fogning och erforderlig armering ingår."]
[null,"20:2  Höjdtillägg "]
[201,"För höjd över 2,80 till 9,80 per påbörjad m.                                                                                                               För höjd över 9,80 per påbörjad 2 m.","m2",0.01,null,0,null,{"$f":"G845*D845","v":0},201,"Gäller samtliga vertikala och horisontella ytor i arbetsart 21 som mätes i m2. Utgår för hela vägg- respektive takytan. Antalet höjdtillägg ska beräknas från det plan på vilket sax/bomliften är placerad alternativt ställningen börjar byggas upp till ovankanten av berört material. Höjdtillägg ska endast erhållas för den del av nettoytan som är beklädd med material som ger rätt till höjdtillägg. När saxlift eller bomlift används beräknas höjdtillägg från 5 m istället för 2,80 m."]
[null,null,null,null,"Summa",{"$f":"SUM(F826:F845)","v":0},"Summa",{"$f":"SUM(H826:H845)","v":0}]
[]
[null,null,null,null,"AA:21",{"$f":"F815+F846","v":0},"AA:21",{"$f":"H815+H846","v":0}]
[null,"Arbetsart: 21    Murning",null,null,null,{"$f":"F848","v":0},null,{"$f":"H848","v":0}]
[null,"Arbetsart 22"]
[null,"INNEHÅLL"]
[]
[null,"PUTSNING"]
[]
[null,null,"Sid"]
["                Särskilda bestämmelser",null,92]
["22.0","Förarbeten",94]
["22:1","Slamning",94]
["22:2","Puts",96]
["22:3","Ytbehandlad puts",98]
["22:4","Övrigt",98]
["22:5","Höjdtillägg",98]
[]
[]
[null,"Arbetsart 22",null,null,null,null,null,null,null,"Arbetsart 22"]
[]
[null,"SÄRSKILDA BESTÄMMELSER",null,null,null,null,null,null,null,"KOMMENTARER"]
["A.","Förutsättningar",null,null,null,null,null,null,"A.","Förutsättningar"]
["a)","För företag med specialinriktning ska särskild hänsyn tas till gemensamma arbeten enligt Aa 51 och objekts tillägg.",null,null,null,null,null,null,"a)","Med specialföretag menas företag som endast utför putsarbeten."]
[]
[]
["B.","I tiderna ingår om inte annat angivs",null,null,null,null,null,null,"B.","I tiderna ingår om inte annat angivs"]
["a)","Förekommande detaljarbeten såsom vattning, förlagning, skarvnät, grundning, utfyllnad t o m 5 cm, fixjärn, ventiler och galler t o m 0,25 m2, efterlagning m m",null,null,null,null,null,null,"a)","Avser även ventiler och galler som monteras efter puts."]
["b)","Tillverkning och uppsättning av erforderliga mallar, rätstockar o dyl."]
["c)","Erforderlig maskinell tillverkning av bruk av förekommande slag eller mottagning av färdigt bruk samt tillsättning av cement, tätnings- eller plasticeringsmedel i bruk."]
["d)","Erforderlig skyddstäckning.",null,null,null,null,null,null,"d)","Med täckning avses angränsande ytor t o m 2,0 m bredd samt karmar, snickerier o dyl i den behandlade ytan."]
[]
["C.","Mätningsbestämmelser"]
["a)","Vid igensättning av slitsar mäts minsta mått 1,0 m."]
["b)","Putsning av plan- och sättsteg mäts enligt denna arbetsart."]
["c)","Höjdtilläggs beräkning utges med högst 3st tillägg oavsett antal arbetsmoment."]
[]
[null,"Arbetsart 22",null,null,null,null,null,null,null,"Arbetsart 22"]
[]
[null,"PUTSNING",null,null,null,null,null,null,null,"KOMMENTARER"]
[null,null,null,null,"Nybyggnads",null,"Ombyggnads"]
["Punkt","Aktivitet",null,null,"Listan",null,"Listan",null,"Punkt","Aktivitet"]
[null,"22:0  Förarbeten","Enhet","Tid","Avs.","Avs.","Avs.","Avs."]
["001","Nät av plast eller metall för puts.","m2",0.13,null,{"$f":"E889*D889","v":0},null,{"$f":"G889*D889","v":0}]
["002","Utfyllnad på utspänt nät av plast eller metall eller sträckmetall","m2",0.12,null,0,null,0," "]
["003","Grundning eller stänkning före slamning eller puts","m2",0.08,null,0,null,0,"003","Kan ej kombineras med 002"]
["004","Igensättning av slitsar - i yta som skall slammas eller tjockputsas","m",0.3,null,0,null,0,"004","Tiderna gäller för såväl murning som igensättning med nät och bruk för bredder t o m 0,50 m samt inkluderar isolering."]
["005","Igensättning av slitsar - i yta som skall tunnputsas eller vara obehandlad","m",0.4,null,0,null,0,"005"]
[null,"22:1  Slamning"]
[101,"Slamning, vanlig – manuell","m2",0.15,null,0,null,0,101,"Avjämning med stålskånska jämställs med avkvastning."]
[102,"Slamning, vanlig – maskinell ","m2",0.1,null,0,null,0]
[103,"Slamning, stockad – manuell ","m2",0.3,null,0,null,0,103,"Avser vanlig slamning på yta med intryckta eller öppna fogar."]
[104,"Slamning, stockad – maskinell ","m2",0.2,null,0,null,0]
[105,"Tillägg - slamning på yta med synliga fogar","m2",0.03,null,0,null,0,105,"Slamning mäts enligt 101-102. Tillägg enligt 105 och 106 kan inte utgå samtidigt "]
[106,"Tillägg - säckskurning","m2",0.03,null,0,null,0,106]
[107,"Färgad slamning pålagd med kvast eller spruta, komplett med grundning och en behandling","m2",0.22,null,0,null,0,null," "]
[108,"Tillägg - per behandling utöver grundning och en behandling","m2",0.05,null,0,null,0]
[109,"Tillägg - begränsning mellan olika slamning och/eller färg","m",0.1,null,0,null,0,109,"Sådan begränsning bryter ej ytan. I priset ingår erforderlig skyddstäckning. "]
[null,"22:2  Puts",null,null,null,null,null,null," "]
[201,"Tunnputs – manuell ","m2",0.3,null,0,null,0,201,"Avser putstjocklek t o m 6 mm med specialbruk eller bruk av finkornig sand. Gäller pkt 201 och 202."]
[202,"Tunnputs – maskinell ","m2",0.2,null,0,null,0,202,"Understockning för ytbehandlad puts mäts här."]
[203,"Tjockputs – manuell ","m2",0.45,null,0,null,{"$f":"D907*G907","v":0}]
[204,"Tjockputs – maskinell ","m2",0.33,null,0,null,{"$f":"G908*D908","v":0},204]
[205,"Stålslipad sockelputs","m2",0.55000000000000004,null,0,null,{"$f":"G909*D909","v":0},205,"Avser rent cementbruk."]
[206,"Tillägg - hörn vid tjockputs","m",0.18,null,0,null,{"$f":"G910*D910","v":0}]
[207,"Tillägg - smyg","m",0.27,null,0,null,{"$f":"D911*G911","v":0}]
[208,"Tillägg - öppning","st",0.82,null,0,null,{"$f":"G912*D912","v":0}]
[209,"Tillägg - begränsning mellan olika puts och/eller färg","m",0.1,null,0,null,{"$f":"G913*D913","v":0},209,"Sådan begränsning bryter inte ytan. I priset ingår erforderlig skyddstäckning."]
[" "," "]
[null,null,null,null,"Summa",{"$f":"SUM(F889:F913)","v":0},"Summa",{"$f":"SUM(H889:H913)","v":0}]
[]
[]
[null,"Arbetsart 22",null,null,null,null,null,null,null,"Arbetsart 22"]
[]
[null,"PUTSNING",null,null,null,null,null,null,null,"KOMMENTARER"]
[]
[null,null,null,null,null,"Nybyggnads",null,"Ombyggnads"]
["Punkt","Aktivitet",null,null,null,"Listan",null,"Listan","Punkt","Aktivitet"]
[null,"22:3  Ytbehandlad puts","Enhet","Tid","Mängd","Tim","Mängd","Tim"]
[301,"Maskinell stänkputs utan understockning","m2",0.1,null,{"$f":"E925*D925","v":0},null,{"$f":"G925*D925","v":0}," "]
[302,"Primning av underlag","m2",0.03,null,0,null,0," "]
[303,"Tillägg - begränsning mellan olika puts och/eller färg","m",0.1,null,0,null,0,303,"Sådan begränsning bryter inte ytan. I priset ingår erforderlig skyddstäckning. "]
[304,"Fall under fönsterbleck","m",0.1,null,0,null,0,304,"Minsta mått mäts 1,0 m."]
[305,"Färgning med kvast eller roller","m2",0.1,null,0,null,0]
[306,"Tillägg - utkragad omfattning","m",0.25,null,0,null,0]
[307,"Tillägg - putsning, ut- eller indraget skift","m",0.1,null,0,null,0]
[308,"Tillägg - putsning, ut- eller indraget fält","m2",0.1,null,0,null,0]
[309,"Tillägg - putsning, utkragning per skift","m",0.2,null,0,null,0]
[null,"22:4  Övrigt"]
[401,"Utvändig täckning, avtäckning samt rengöring per m2 behandlad yta","m2",0.04,null,0,null,0,401,"Gäller hela arbetsarten, kan endast utgå en gång oavsett antal. "]
[null,"22:5  Höjdtillägg "]
[501,"För höjd över 2,80 till 9,80 per påbörjad m.                                                                                                               För höjd över 9,80 per påbörjad 2 m.","m2",0.01,null,0,null,0,501,"Gäller samtliga vertikala och horisontella ytor i arbetsart 22 som mätes i m2. Utgår för hela vägg- respektive takytan. Antalet höjdtillägg ska beräknas från det plan på vilket sax/bomliften är placerad alternativt ställningen börjar byggas upp till ovankanten av berört material. Höjdtillägg ska endast erhållas för den del av nettoytan som är beklädd med material som ger rätt till höjdtillägg. När saxlift eller bomlift används beräknas höjdtillägg från 5 m istället för 2,80 m."]
[]
[null,null,null,null,"Summa",{"$f":"SUM(F925:F937)","v":0},"Summa",{"$f":"SUM(H925:H937)","v":0}]
[]
[null,null,null,null,"AA:22",{"$f":"F915+F939","v":0},"AA:22",{"$f":"H915+H939","v":0}]
[null,"Arbetsart: 22    Putsning",null,null,null,{"$f":"F941","v":0},null,{"$f":"H941","v":0}]
[null,"Arbetsart 23"]
[]
[null,"INNEHÅLL"]
[]
[null,"STOLPVERK"]
[]
[]
[null,null,"Sid"]
["Särskilda bestämmelser",null,102]
["23.0","Väggstomme",104]
["23.1","Bjälklagsstomme",108]
["23.2","Innertaksstomme",110]
["23.3","Yttertaksstomme",112]
["23.4","Övriga konstruktioner",112]
["23.5","Höjdtillägg",114]
[]
[]
[]
[]
[]
[null,"Arbetsart 23",null,null,null,null,null,null,null,"Arbetsart 23"]
[]
[null,"SÄRSKILDA BESTÄMMELSER",null,null,null,null,null,null,null,"KOMMENTARER"]
[]
["B.","I tiderna ingår om annat inte angivs",null,null,null,null,null,null,"B.","I tiderna ingår om annat ej angivs"]
["a)","Uppsättning av stolpverk, inkl erforderliga bearbetningar, passningar, urtag, underlägg, kortlingar av trä, plywood eller plåt",null,null,null,null,null,null,"a)","Avser kortlingar för infästning av utrustning. Kortling med ett minsta mått av 0.25 m2 ersättes i tillämpliga punkter i arbetsart 23 och 24."]
[]
["b)","Inläggning av remsor av mineralull, fiberduk o dyl mellan reglar och stomme och mellan tättstående reglar."]
["c)","Fastsättning "]
[]
[]
["C.","Mätningsbestämmelser",null,null,null,null,null,null,"C.","Mätningsbestämmelser"]
["a)","Vid uppmätning av stolpverk tidsatt per m mäts inget mått mindre än 1,0 m. Gäller även spikplåtar eller motsvarande av trä vid uppsättning av takstolar.",null,null,null,null,null,null,"a)"]
[]
[null," "]
[]
[]
["b)","Vid uppmätning av väggstomme tidsatt per m2 är de stående reglarnas dimension avgörande. Om flera dimensioner används avgör den dimension som dominerar.",null,null,null,null,null,null,"b)","Då de stående reglarna i ovanstående vägg står på gemensam bottenregel betraktas den som en vägg.                                                                                                    Regelstommars c-mått bestäms enligt ritningar eller beskrivningar. Avvikelser från huvudmåtten för trummor o dyl medför ej att c-måtten ändras."]
[]
[]
["c) ","Ytor som lutar mer än 30 grader mot vertikalplanet betraktas som tak eller golv."]
["d) ","Angivna c-avstånd är teoretiska."]
[]
["e) ","Syll och hammarband utöver 1 virkesdel samt bärlinor mätes som övrigt konstruktionsvirke punkt 401-403."]
["   f)    ","  Med förstärkningsreglar avser stålreglar från och med 1,0 mm tjocklek."]
["  g)","Då virket levereras färdigkapat och kan monteras direkt utan ytterligare anpassningar höjdmässigt reduceras tiderna med 5%.",null,null,null,null,null,null,"g)","Avser punkterna 001-003 samt 005-007."]
[]
[]
[]
[null,"Arbetsart 23",null,null,null,null,null,null,null,"Arbetsart 23"]
[]
[null,"STOLPVERK",null,null,null,null,null,null,null,"KOMMENTARER"]
[]
[null,null,null,null,null,"Nybyggnads",null,"Ombyggnads"]
["Punkt","Aktivitet",null,null,null,"Listan",null,"Listan","Punkt","Aktivitet"]
[null,"23:0  Väggstomme","Enhet","Tid","Avs.","Avs.","Avs.","Avs."]
["001","Yttervägg och bärande vägg av trä- stålplåtsreglar med c-avstånd t o m 0,45   ","m2",0.23,null,{"$f":"E999*D999","v":0},null,{"$f":"G999*D999","v":0},"001","Förstärkning med plåtband ingår."]
["002","Yttervägg och bärande väggar av trä- stålplåtsreglar med c-avstånd över 0,45 t o m 0,60           ","m2",0.2,null,0,null,0]
["003","Yttervägg och bärande väggar av trä- stålplåtsreglar med c-avstånd över 0,60           ","m2",0.15,null,0,null,0,null," "]
["004","Tillägg - vägg med enbart förstärkningsreglar","m2",0.16,null,0,null,0,"004","Gäller punkt 001-003"]
["005","Icke bärande väggar av trä med c-avstånd t o m 0,45                                               ","m2",0.19,null,0,null,0,null," "]
["006","Icke bärande väggar av trä med c-avstånd över 0,45 t o m 0,60  ","m2",0.16,null,0,null,0,null," "]
["007","Icke bärande väggar av trä med c-avstånd över 0,60 ","m2",0.13,null,0,null,0]
["008","Tillägg - utfackningsväggar  ","m2",0.06,null,0,null,0,"008","Utfackningsväggar mäts som bärande vägg enligt pkt 001-003. \nUtgår även på väggstomme monterat inom annat ramverk.\nUtfackning ska omslutas på alla 4 sidor av betong eller stål."]
["009","Tillägg - virke med tvärsnittsyta över 65 cm2","m2",0.04,null,0,null,0]
["010","Tillägg - platsbyggt burspråk st per våning","st",3.28,null,0,null,0]
["011","Väggar av stålplåtsreglar med c-avstånd t o m 0,45 ","m2",0.16,null,0,null,0,"011","Förstärkningar av trä/plywood vid öppningar ingår."]
["012","Väggar av stålplåtsreglar med c-avstånd över 0,45 t o m 0,60 ","m2",0.15,null,0,null,0,null," "]
["013","Väggar av stålplåtsreglar med c-avstånd över 0,60 ","m2",0.13,null,0,null,0,"013"]
["014","Tillägg - väggstomme med c 600 och skivor med bredd 900 mm","m2",0.03,null,0,null,0,"014","Gäller punkt 006 och 012.\nGäller för olika typer av kompletterande stålprofiler, typ Gyproc EPT"]
["015","Tillägg - vägg av förstärkningsreglar","m2",0.08,null,0,null,0,"015","Utgår för 011-013"]
["016","Tillägg - per öppning vid vägg med förstärkningsreglar","st",0.23,null,0,null,0,"016","Utgår för 001-013, inte i samband med punkt 015"]
["017","Tillägg - klamring av dubbel väggstomme per m vägg","m",0.05,null,{"$f":"E1015*D1015","v":0},null,{"$f":"G1015*D1015","v":0},"017","För klamring av exempelvis 70 mm stående reglar i 120 mm golv- och takskenor."]
["018","Tillägg - avslutning mot kasettbjälklag per m vägg","m",0.18,null,0,null,0,"018","Samma gäller för tillverkning  av fästen enl nedanstående.(bild i bok)"]
["019","Tillägg - teleskopanslutning inkl tätning per m vägg","m",0.14000000000000001,null,0,null,0,"019","Med teleskopanslutning avses att takskena och stående reglar ej är fast förbundna."]
["020","Utfyllnad på vägg med c-avstånd t o m 0,45 m","m2",0.12,null,0,null,0,"020","Med utfyllnad avser virke/stålreglar fäst på tidigare uppsatt underlag inklusive erforliga under-och mellanlägg. Avrikting och avslutningar ingår."]
[null,null,null,null,null,null,null,null,null,"Om utfyllnad sätts i flera lag utgår ersättning per lag."]
[null,null,null,null,null,null,null,null,null,"Utfyllnad i två riktningar i samma lag mäts som separata lag."]
[]
["021","Utfyllnad på vägg med c-avstånd över 0,45 t o m 0,60 m","m2",0.1,null,0,null,0,null,"."]
[]
["022","Utfyllnad på vägg med c-avstånd över 0,60 m","m2",0.08,null,0,null,0,"022"]
["023","Tillägg - mekanisk infästning","m2",0.04,null,0,null,0,"023","Avser pkt 001 - 022."]
[null,"23:1  Bjälklagsstomme"]
[101,"Utläggning av golvbjälkar i botten- och mellanbjälklag - c-avstånd t o m 0,45 m","m2",0.18,null,0,null,0,101,"Ändavslutnignar ingår. Gäller pkt 101-103."]
[102,"Utläggning av golvbjälkar i botten- och mellanbjälklag - c-avstånd t o m 0,60 m","m2",0.14000000000000001,null,0,null,0,101,"Krysskolvning och avväxlingar mätes som virke i punkt 401-403, gäller punkt 101-103."]
[103,"Utläggning av golvbjälkar i botten- och mellanbjälklag - c-avstånd över 0,60 m","m2",0.09,null,0,null,0,103,"Avser även golvbjälkar som läggs in mellan takstolar."]
[104,"Ventilerade undergolv med c-avstånd t o m 0.45 m höjd max 0.40 m","m2",0.3,null,0,null,{"$f":"D1030*G1030","v":0},104,"Avser Nivell, Granab eller liknande."]
[105,"Ventilerade undergolv med c-avstånd över 0.45 m höjd max 0.40 m","m2",0.2,null,0,null,{"$f":"G1031*D1031","v":0},105]
[106,"Tillägg - stålplåtregel","m2",0.05,null,0,null,{"$f":"G1032*D1032","v":0}]
[107,"Tillägg - golv med ljudkrav","m2",0.05,null,0,null,{"$f":"G1033*D1033","v":0}]
[108,"Tillägg - mekanisk infästning","m2",0.04,null,0,null,{"$f":"G1034*D1034","v":0}]
[]
[null,null,null,null,"Summa",{"$f":"SUM(F999:F1034)","v":0},"Summa",{"$f":"SUM(H999:H1034)","v":0}]
[]
[]
[null,"Arbetsart 23",null,null,null,null,null,null,null,"Arbetsart 23"]
[]
[null,"STOLPVERK",null,null,null,null,null,null,null,"KOMMENTARER"]
[]
[null,null,null,null,null,"Nybyggnads",null,"Ombyggnads"]
["Punkt","Aktivitet",null,null,null,"Listan",null,"Listan","Punkt","Aktivitet"]
[null,"23:2  Innertaksstomme","Enhet","Tid","Avs.","Avs.","Avs.","Avs."]
[201,"Innertaksstomme, trä, pendlat eller fäst i vägg, c-avstånd t o m 0,60 m","m2",0.21,null,{"$f":"E1046*D1046","v":0},null,{"$f":"G1046*D1046","v":0},201,"I tiderna ingår tillklippning och fastsättning av hängseljärn i underlag och reglar. Tiderna gäller även för fastsättning i ingjutna bandjärn. Distansreglar, avväxling samt reglar kring öppningar ingår. Gäller pkt 201 - 204."]
[202,"Innertaksstomme, trä, pendlat eller fäst i vägg, c-avstånd över 0,60 m","m2",0.18,null,0,null,0]
[203,"Innertaksstomme, stålplåtsreglar, pendlat eller fäst i vägg, c-avstånd t o m 0,45 m","m2",0.23,null,0,null,0,203,"Anslutning mot vägg med särskild list ingår. Tiderna gäller oberoende av profilens utseende och avser dubbla lag."]
[204,"Innertaksstomme, stålplåtsreglar, pendlat eller fäst i vägg, c-avstånd över 0,45 m","m2",0.19,null,0,null,0,204]
[205,"Utfyllnad med trä- eller stålreglar i tak inkl avriktning c-avstånd t o m 0,45 m","m2",0.13,null,0,null,0,205,"Reglar m m vid öppningar ingår."]
[206,"Utfyllnad med trä- eller stålreglar i tak inkl avriktning c-avstånd över 0,45 t o m 0,60 m","m2",0.11,null,0,null,0]
[207,"Utfyllnad med trä- eller stålreglar i tak inkl avriktning c-avstånd över 0,60 m","m2",0.09,null,0,null,0,207]
[208,"Tillägg - yta","st",0.91,null,0,null,0]
[209,"Tillägg - mekanisk infästning ","m2",0.04,null,0,null,0]
[]
[null,null,null,null,"Summa",{"$f":"SUM(F1046:F1054)","v":0},"Summa",{"$f":"SUM(H1046:H1054)","v":0}]
[]
[]
[null,"Arbetsart 23",null,null,null,null,null,null,null,"Arbetsart 23"]
[null,null,null,null,null,null,null,null,null," "]
[null,"STOLPVERK",null,null,null,null,null,null,null,"KOMMENTARER"]
[null,null,null,null,null,"Nybyggnads",null,"Ombyggnads"]
["Punkt","Aktivitet",null,null,null,"Listan",null,"Listan","Punkt","Aktivitet"]
[null,"23:3  Yttertaksstomme","Enhet","Tid","Avs.","Avs.","Avs.","Avs."]
[301,"Tillkapning, hopspikning, uppsättning och förankring av takstolar per meter ingående virke","m",0.09,null,{"$f":"E1065*D1065","v":0},null,{"$f":"G1065*D1065","v":0},301,"Avser allt förekommande virke och sammansättning av plåt eller plywood. Förankring / skråspikning trä mot trä ingår. Avväxlingar mätes som övrigt virke i punkt 401-403. "]
[302,"Uppsättning och förankring av prefabricerade takstolar","st",0.66,null,0,null,0,302,"Tiderna gäller montering med maskinella hjälpmedel."]
[303,"Utöver tiden enligt pkt 302 tilläggs för delade takstolar per takstolsdel ","st",0.23,null,0,null,0,303,"Prefabricerade takstolstassar mäts enligt denna punkt."]
[304,"Uppregling för taklucksramar","st",0.46,null,0,null,0,304,"T o m 2 virkesdelar i höjd ingår."]
[305,"Tillägg - för sned begränsning per m takveck in eller ut ","m",0.41,null,0,null,0]
[null,"23:4  Övriga konstruktioner",null,null,null,0,null,0]
[401,"Övrigt konstruktionsvirke t o m 40 cm2","m",0.05,null,0,null,0,401,"I tiderna ingår urhakning, avskärning, passning, infästning samt sammansättning och fastsättning med bult."]
[402,"Övrigt konstruktionsvirke över 40 cm2 t o m 65cm2","m",0.06,null,0,null,0]
[403,"Övrigt konstruktionsvirke över 65 cm2 per 65 cm2 tilläggs                                                                                                                           ","m",0.04,null,0,null,0,403]
[404,"Limträbalk t o m 600 cm2","m",0.14000000000000001,null,0,null,0,404,"Avser ej kompletta stomkonstruktioner typ butiker och liknande."]
[405,"Limträpelare  t o m 600 cm2","m",0.14000000000000001,null,0,null,0]
[406,"Tillägg - limträ över 600 cm2 per påbörjad 500 cm2","m",0.05,null,0,null,0]
[407,"Tillägg - synlig yta av limträ, per m pelare eller balk","m",0.02,null,0,null,0]
[408,"Stålbalk","m",0.14000000000000001,null,0,null,0,null," "]
[409,"Stålpelare","m",0.14000000000000001,null,0,null,0,409]
[410,"Tillverkning och montering av staket eller plank - t o m 2.0 m höjd inkl följare och stolpar fastsatta i ingjutna järn eller dylikt.","m2",0.64,null,0,null,0,410,"Avser ej bullerplank"]
[411,"Lättbalkar av plåt på vägg t o m 160 mm höjd","m",0.06,null,0,null,0]
[412,"Lättbalkar av plåt på vägg över 160 mm höjd","m",0.1,null,0,null,0]
[413,"Lättbalkar av plåt på tak t o m 160 mm höjd","m",0.06,null,0,null,{"$f":"D1083*G1083","v":0}]
[414,"Lättbalkar av plåt på tak över 160 mm höjd","m",0.08,null,0,null,{"$f":"G1084*D1084","v":0}]
[415,"Balkar av plywood eller träfiberskivor","m",0.12,null,0,null,0,415,"Avser typ Kerto- och masonitebalkar"]
[416,"Konstruktionsvinklar och liknande, spikade","st",0.05,null,0,null,0,416,"Tillämpas i erforderlig utsträckning i hela arbetsarten där inte annat anges."]
[417,"Tillägg - mekanisk infästning","st",0.04,null,0,null,0,417,"Gäller i hela arbetsarten, kan inte kombineras med andra punkter avseende mekanisk infästning"]
[null,"23:5 Höjdtillägg"]
[501,"För höjd över 2,80 till 9,80 per påbörjad m.                                                                                                               För höjd över 9,80 per påbörjad 2 m.","m2",0.01,null,0,null,{"$f":"G1089*D1089","v":0},501,"Gäller samtliga vertikala och horisontella ytor i arbetsart 23 som mätes i m2. Utgår för hela vägg- respektive takytan. Antalet höjdtillägg ska beräknas från det plan på vilket sax/bomliften är placerad alternativt ställningen börjar byggas upp till ovankanten av berört material. Höjdtillägg ska endast erhållas för den del av nettoytan som är beklädd med material som ger rätt till höjdtillägg. När saxlift eller bomlift används beräknas höjdtillägg från 5 m istället för 2,80 m."]
[]
[null,null,null,null,"Summa",{"$f":"SUM(F1065:F1089)","v":0},"Summa",{"$f":"SUM(H1065:H1089)","v":0}]
[null,"Då virket levereras färdigkapat och kan monteras direkt utan ytterligare anpassningar höjdmässigt reduceras tiderna med 5%. Reduceringen är i timmar."]
[null,null,null,null,"AA:23",{"$f":"+F1036+F1056+F1091-E1092","v":0},"AA:23",{"$f":"+H1036+H1056+H1091-G1092","v":0}]
[null,"Arbetsart: 23    Stolpverk",null,null,null,{"$f":"F1093","v":0},null,{"$f":"H1093","v":0}]
[null,"Arbetsart 24"]
[]
[null,"INNEHÅLL"]
[]
[null,"BEKLÄDNADER"]
[]
[null,null,"Sid"]
["                Särskilda bestämmelser",null,118]
["24.0","Beklädnad på vägg",120]
["24.1","Golv",126]
["24.2","Beklädnad i tak",126]
["24.3","Inklädnad trummor mm",130]
["24.4","Beklädnad av yttertak",132]
["24.5","Höjdtillägg",138]
[]
[]
[null,"Arbetsart 24",null,null,null,null,null,null,null,"Arbetsart 24"]
[]
[null,"SÄRSKILDA BESTÄMMELSER",null,null,null,null,null,null,null,"KOMMENTARER"]
[]
["B.","I tiderna ingår om annat inte angivs",null,null,null,null,null,null,"B.","I tiderna ingår om annat inte angivs"]
["a)","Uppsättning av beklädnadsmaterial inkl erforderliga bearbetningar, passningar, urtag, underlägg och håltagning.",null,null,null,null,null,null,"a)","Cirkulära hål med diameter tom  210 mm ingår, gäller även rektangulära hål tom 0.05 m2. Övrig håltagning är inte tidsatt. All håltagning avses i efterhand."]
["b)","Fastsättning av beklädnadsmaterial med spik, självborrande skruv eller sättlim och gles spikning."]
["c)","Montering av ventiler, galler o dyl.",null,null,null,null,null,null,"c)","Avser punkterna 038-043."]
["d)","Montering av skivor i mönster"]
["e)","Förborrning"]
[]
["C.","Mätningsbestämmelser"]
["a)","Ytor som lutar mer än 30 grader mot vertikalplanet betraktas som tak eller golv."]
[]
["b)","Panel av cederträ är inte tidsatt"]
["c)","Då panel levereras färdigkapat och kan monteras direkt utan yttligare anpassning höjdmässigt reduceras tiderna med 5%."]
[null," "]
[]
[null,"Arbetsart 24",null,null,null,null,null,null,null,"Arbetsart 24"]
[]
[null,"BEKLÄDNADER",null,null,null,null,null,null,null,"KOMMENTARER"]
[]
[null,null,null,null,null,"Nybyggnads",null,"Ombyggnads"]
["Punkt","Aktivitet",null,null,null,"Listan",null,"Listan","Punkt","Aktivitet"]
[null,"24:0  Beklädnad på vägg","Enhet","Tid","Avs.","Avs.","Avs.","Avs."]
["001","Gipsskiva på vägg utvändigt","m2",0.11,null,{"$f":"E1136*D1136","v":0},null,{"$f":"G1136*D1136","v":0},"001","Erforderlig tätning av skarv ingår. "]
["002","Asfaboardskiva på vägg, utvändigt","m2",0.11,null,0,null,0,"002"]
["003","Cementbunden utvändig skiva t o m 6 mm","m2",0.2,null,0,null,0]
["004","Gipsskiva på vägg invändigt","m2",0.15,null,0,null,0]
["005","Gipsskiva på vägg invändigt, 2 lag","m2",0.24,null,0,null,0]
["006","Gipsskiva på vägg invändigt, 3 lag","m2",0.32,null,0,null,0," "]
["007","Gipsskiva på vägg invändigt","m2",0.12,null,0,null,0,"007","Avser lagerhallar, industrier och stormarknader. "]
["008","Gipsskiva på vägg invändigt, 2 lag","m2",0.19,null,0,null,0]
["009","Gipsskiva på vägg invändigt, 3 lag","m2",0.25,null,0,null,0,"009"]
["010","Våtrumsskiva","m2",0.15,null,0,null,0,"010","Enligt våtrumsnorm, i de fall skivan sågas vid bearbetning utges tilägg enligt pkt 011."]
["011","Tillägg - hård gipsskiva per lag eller över 15 mm tjocklek","m2",0.04,null,0,null,0,"011","Kan endast ersättas en gång, dvs tillägget kan utges antingen för gipsskiva som är hård per lag eller gipsskiva med tjocklek över 15 mm, men inte för båda samtidigt. Utges inte för pkt 003."]
["012","Gipsskiva i smyg","m",0.08,null,0,null,0]
["013","Gipsskiva i smyg, 2 lag","m",0.13,null,0,null,0]
["014","Gipsskiva i smyg, 3 lag","m",0.17,null,0,null,0]
["015","Tillägg - hård gipsskiva i smyg per lag, eller över 15 mm tjocklek","m",0.04,null,0,null,0,"015","Utges när skivan sågas. "]
["016","Ytterhörnsförstärkning vid innerväggar av gips","m",0.03,null,0,null,0,"016","Avser inspacklad stålhörnlist eller motsvarande"]
["017","Spånskiva i smyg","m",0.13,null,0,null,0]
["018","Spån-, plywood- och OSB skivor på vägg","m2",0.18,null,0,null,0]
["019","Spån-,plywood-och OSB skivor på vägg första lag på träreglar.","m2",0.13,null,0,null,0]
["020","   Tillägg - Spån-, playwood- och OSB skivor över 14 mm tjocklek.","m2",0.02,null,0,null,0]
["021","Tillägg - skivor med färdigmålad yta","m2",0.05,null,0,null,0]
["022","Cementbunden skiva på vägg inomhus","m2",0.33,null,0,null,{"$f":"D1157*G1157","v":0}]
["023","Träfiberskivor på vägg","m2",0.11,null,0,null,{"$f":"G1158*D1158","v":0},"022","Avser skivor typ \"masonite\" med tjocklek t o m 14 mm"]
["024","Träullscementskiva på vägg","m2",0.11,null,0,null,0]
["025","Tillägg - mekanisk infästning","m2",0.05,null,0,null,0,"025","Avser punkt 023"]
["026","Uppregling och beklädnad av vägg- eller bjälklagskanter","m",0.23,null,0,null,0]
["027","Beklädnad av vägg- eller bjälklagskanter","m",0.14000000000000001,null,0,null,0]
["028","Tillägg - insida yttervägg per lag","m2",0.02,null,0,null,0]
["029","Tillägg - noggrann passning mot kassettbjälklags undersida per m sida ","m",0.11,null,0,null,{"$f":"D1164*G1164","v":0},"029","Avser typ TT kasetbjälklag eller likvärdigt.(se bild i bok)"]
["030","Tillägg - noggrann passning mot trp plåt i tak","m",0.2,null,0,null,{"$f":"G1165*D1165","v":0},"030","Avser passning i rillor"]
["031a","Tillägg - för ytor under 1,0 m²","st",0.15,null,0,null,{"$f":"G1166*D1166","v":0},"031a","Utges inte för insida yttervägg. Utges inte heller för ytor som mäts i löpmeter, såsom smygar, trummor mm. Utges per lag. "]
["031b","Tillägg - fogning vägg med ljudkrav per m fog","m",0.02,null,{"$f":"E1167*D1167","v":0},null,{"$f":"G1167*D1167","v":0},"031b","Tillslätning ingår"]
["032","Tillägg - stom- och rumskomplettering vindsvåning per m2 golvyta ","m2",0.32,null,0,null,0,"033","Med golvyta avses invändig yta, gäller även punkt 033"]
["033","Tillägg - kungsvåning eller likvärdigt per m2 golvyta","m2",0.25,null,0,null,0,"033","Indragen övervåning "]
["034","Tillägg - limning av skivor","m2",0.04,null,0,null,0,null," "]
["035","Korrugerade skivor av lackerad stålplåt t o m 1,25 mm på vägg ","m2",0.15,null,0,null,0,"035","Avser plåt med profilhöjd t o m 45 mm"]
["036","Montering av färdiga plåtlister t o m 400 mm bredd","m",7.0000000000000007E-2,null,0,null,0,"036","Avser list för smygar, foder och avslutningar."]
["037","Säkerhetsplåt t o m 1,5mm tjocklek","m2",0.25,null,0,null,0,"037","Avser säkerhetsplåt som kan monteras utan ytterligare anpassning höjdmässigt."]
["038","Panel till beklädnad, bräder ","m2",0.26,null,0,null,0,"038","Avser ytor som skall beklädas med annat material"]
["039","Panel till beklädnad, spontade bräder ","m2",0.32,null,0,null,0,"039","Avser ytor som skall beklädas med annat material"]
["040","Panel - synlig yta, med mellanrum","m2",0.51,null,0,null,0]
["041","Lockpanel","m2",0.6,null,0,null,0,"041","Avser även panel med täcklist. I tiderna ingår musbräder, knutbräder och foder."]
["042","Övrig synlig panel","m2",0.36,null,0,null,0]
["043","Bastupanel","m2",0.9,null,0,null,0]
["044","Tillägg - snedställd panel","m2",0.27,null,0,null,0]
["045","Tillverkning och beslagning av luckor och dörrar i beklädnad","st",1.27,null,0,null,0]
["046","  Glasfiberarmerad skiva som putsbärare","m2",0.33,null,0,null,0]
["047","Montering fasadskivor","m2",0.5,null,0,null,0,"047","Sågning ingår"]
["048","Tillägg - skivor lagda som fjällpanel","m2",7.0000000000000007E-2,null,0,null,0,"048","Avser klinklagda plattor, avser punkt 047"]
["049","Tillägg - för borrning av skivor ","m2",0.08,null,0,null,0,"049","Avser punkt 047"]
["050","Tillägg - montering lister, plåtar, gummilister","m2",0.1,null,0,null,0,"050","Avser punkt 047"]
["051","Tillägg - mönsterpassning","m2",0.05,null,0,null,0,"051","Avser punkt 047"]
["052","Tillägg - ytor under 2 m2","st",0.41,null,0,null,0,"052","Avser punkt 038 – 047. Tillägg ska inte utges för konfektionerat material. Tillägg ska inte heller utges för ytor som mäts i löpmeter, såsom smygar, trummor mm."]
[]
[null,null,null,null,"Summa",{"$f":"SUM(F1136:F1188)","v":0},"Summa",{"$f":"SUM(H1136:H1188)","v":0}]
[]
[]
[null,"Arbetsart 24",null,null,null,null,null,null,null,"Arbetsart 24"]
[]
[null,"BEKLÄDNADER",null,null,null,null,null,null,null,"KOMMENTARER"]
[]
[null,null,null,null,null,"Nybyggnads",null,"Ombyggnads"]
["Punkt","Aktivitet",null,null,null,"Listan",null,"Listan","Punkt","Aktivitet"]
[null,"24:1  Golv","Enhet","Tid","Avs.","Avs.","Avs.","Avs."]
[101,"Skivor på golv - på reglar inkl limning, skruvning och skarvslipning","m2",0.17,null,{"$f":"E1200*D1200","v":0},null,{"$f":"G1200*D1200","v":0},101,"Avser skivor t o m 22 mm tjocklek"]
[102,"Skivor på golv - flytande inkl limning och skarvslipning","m2",0.14000000000000001,null,0,null,0,102," "]
[103,"Golvgips inkl limning och skruvning","m2",0.11,null,0,null,0,103,"Avser inte hellimmade skivor, blandning av lim är inte tidsatt"]
[104,"Spontade bräder på golv","m2",0.23,null,0,null,0,104,"Avser inte golv med synlig yta. Trallgolv mäts i arbetsart 23 pkt 401-403. "]
[105,"Parkettbräder","m2",0.27,null,0,null,0,105,"I tiden ingår utläggning av korksmulepapp, plast eller liknande samt hel- eller punktlimning eller spikning."]
[106,"parkettgolv, typ klickmontage","m2",0.22,null,0,null,0,106,"I tiden ingår utläggning av korksmulepapp, plast eller liknande."]
[107,"Uppbyggnad av fall mot golvbrunn med skivor eller bräder - per st brunn","st",2.5,null,0,null,0,107,"I tiderna ingår arbete med nedsänkning, profilering, fasning av skivor och reglar samt kompletteringsvirke och kilar.                                                                             Enbart inskärning av golvbrunn ingår i  pkt 101 - 104."]
[108,"Blindbotten i bjälklag","m2",0.18,null,0,null,0,108,"Upplagsvirke ingår."]
[109,"Tillverkning- badrums-eller bastutrall","m2",1,null,0,null,0]
[null,"24:2  Beklädnad i tak"]
[201,"Gipsskiva i tak","m2",0.15,null,0,null,0]
[202,"Gipsskiva i tak, 2 lag","m2",0.28000000000000003,null,0,null,0]
[203,"Gipsskiva i tak, 3 lag","m2",0.41,null,0,null,0]
[204,"Gipsplank i tak","m2",0.16,null,0,null,0]
[205,"Tillägg - gipsskiva, hård per lag eller över 15 mm tjocklek","m2",0.04,null,0,null,0,205,"Kan endast ersättas en gång, dvs tillägget kan utges antingen för gipsskiva som är hård per lag eller gipsskiva med tjocklek över 15 mm, men inte för båda samtidigt."]
[206,"Spånskiva, plywood och OSB i tak","m2",0.19,null,0,null,0,206,"Avser skivor t o m 14 mm."]
[207,"Träfiberskiva i tak","m2",0.16,null,0,null,0,207,"Avser \"masonite\" t o  m 14 mm"]
[208,"Tillägg - spontade skivor i tak","m2",0.04,null,0,null,0,208,"Avser punkt 206"]
[209,"Cementbunden skiva i tak inomhus","m2",0.37,null,0,null,0]
[210,"Korrugerande skivor av lackerad stålplåt t o m 1,25 mm i tak","m2",0.2,null,0,null,0]
[211,"Träullscementskiva i tak","m2",0.25,null,0,null,0,211,"Avser skivor t o m 50 mm."]
[212,"Panel till beklädnad, bräder","m2",0.28999999999999998,null,0,null,{"$f":"D1221*G1221","v":0},212,"Avser ytor som skall beklädas med annat material"]
[213,"Panel till beklädnad, spontade bräder","m2",0.35,null,0,null,{"$f":"G1222*D1222","v":0},213]
[214,"Panel, synlig yta med mellanrum","m2",0.56000000000000005,null,0,null,0]
[215,"Övrig synlig panel","m2",0.46,null,0,null,0,null," "]
[216,"Cementbunden skiva i tak","m2",0.37,null,0,null,0,216,"Avser skiva i takfot"]
[217,"Tillägg - inklädnad taksprång/takfot","m",0.27,null,0,null,0]
[218,"Bastupanel","m2",1.05,null,0,null,0]
[219,"Tillägg - limmade skivor ","m2",0.06,null,0,null,0]
[220,"Tillägg - mekanisk infästning ","m2",0.08,null,0,null,0]
[221,"Tillägg - skivor med färdigmålad yta","m2",0.05,null,0,null,0,221,"Avser färdigmålad yta, utges inte för 211"]
[]
[null,null,null,null,"Summa",{"$f":"SUM(F1200:F1230)","v":0},"Summa",{"$f":"SUM(H1200:H1230)","v":0}]
[]
[]
[null,"Arbetsart 24",null,null,null,null,null,null,null,"Arbetsart 24"]
[]
[null,"BEKLÄDNADER",null,null,null,null,null,null,null,"KOMMENTARER"]
[]
[null," ",null,null,null,"Nybyggnads",null,"Ombyggnads"]
["Punkt","Aktivitet",null,null,null,"Listan",null,"Listan","Punkt","Aktivitet"]
[null,"24:3 Inklädnad trummor m m","Enhet","Tid","Avs.","Avs.","Avs.","Avs."]
[301,"Inklädnad installationsschakt med 1 lag gips och reglar","m2",0.49,null,{"$f":"E1242*D1242","v":0},null,{"$f":"G1242*D1242","v":0}]
[302,"Inklädnad installationsschakt med 2 lag gips och reglar","m2",0.66,null,0,null,0]
[303,"Inklädnad installationsschakt med 3 lag gips och reglar","m2",0.82,null,0,null,0]
[304,"Inklädnad trumma med 1 lag gips och reglar, per m sida","m",0.18,null,0,null,0,304,"Gäller även tak."]
[305,"Inklädnad trumma med 2 lag gips och reglar, per m sida","m",0.26,null,0,null,0]
[306,"Inklädnad trumma med 3 lag gips och reglar, per m sida","m",0.35,null,0,null,0,306]
[307,"Inklädnad pelare med 1 lag gips och reglar, per m sida","m",0.18,null,0,null,0]
[308,"Inklädnad pelare med 2 lag gips och reglar, per m sida","m",0.26,null,0,null,0]
[309,"Inklädnad pelare med 3 lag gips och reglar, per m sida","m",0.35,null,0,null,0]
[310,"Inklädnad balk med 1 lag gips och reglar, per m sida","m",0.21,null,0,null,0]
[311,"Inklädnad balk med 2 lag gips och reglar, per m sida","m",0.28999999999999998,null,0,null,0]
[312,"Inklädnad balk med 3 lag gips och reglar, per m sida","m",0.38,null,0,null,0]
[]
[null,null,null,null,"Summa",{"$f":"SUM(F1242:F1253)","v":0},"Summa",{"$f":"SUM(H1242:H1253)","v":0}]
[]
[]
[null,"Arbetsart 24",null,null,null,null,null,null,null,"Arbetsart 24"]
[]
[null,"BEKLÄDNADER",null,null,null,null,null,null,null,"KOMMENTARER"]
[]
[null,null,null,null,null,"Nybyggnads",null,"Ombyggnads"]
["Punkt","Aktivitet",null,null,null,"Listan",null,"Listan","Punkt","Aktivitet"]
[null,"24:4 Beklädnad av yttertak","Enhet","Tid","Avs.","Avs.","Avs.","Avs."]
[401,"Plywood på yttertak","m2",0.08,null,{"$f":"E1265*D1265","v":0},null,{"$f":"G1265*D1265","v":0},401,"Avser även luckor med påsatta tegelläkt. Gäller pkt 401-402. Infällning för rännkrok ingår. Gäller pkt 401-404."]
[402,"Träfiberskiva på yttertak","m2",7.0000000000000007E-2,null,0,null,0,402,"Avser skivor typ \"masonite\" med tjocklek t o m 10 mm"]
[403,"Spontade bräder på yttertak","m2",0.13,null,0,null,0]
[404,"Brädluckor på yttertak","m2",0.09,null,0,null,0,404,"Komplettering med lösa bräder ingår."]
[405,"Armerad plastfolie på yttertak","m2",7.0000000000000007E-2,null,0,null,0]
[406,"Tillägg - ytor t o m 10 m2 ","st",0.28999999999999998,null,0,null,0,null," "]
[407,"Tillägg - sned begränsning per m takveck in eller ut ","m",0.23,null,0,null,0]
[408,"Hängrännor eller stuprör av plast eller plåt","m",0.18,null,0,null,0,408,"Inkl rännkrokar och svep."]
[409,"Underlagspapp på yttertak","m2",0.05,null,0,null,0]
[410,"Takduk på yttertak","m2",0.04,null,0,null,0,410,"Typ Tyvekduk eller likvärdigt, takduk med klisterkant ersättes enligt punkt 409"]
[411,"Strö- och tegelläkt inkl nockregel och takfotskil","m2",0.06,null,0,null,0,411,"Nockregel utöver en virkesdel mäts som övrigt konstruktionsvirke i arbetsart 23. Trekantslist ingår, dock inte klyvning"]
[412,"Fribärande tegelläkt t o m 45x70 inkl nockregel och takfotskil","m2",7.0000000000000007E-2,null,0,null,0,412]
[413,"Tillägg - luftad taknock","m",0.08,null,0,null,0]
[414,"Tillägg - mögelstopper inkl erforderlig håltagning och tätning","st",0.08,null,0,null,0]
[415,"Vindskivor, pann- och täckbräder, per m virke ","m",0.09,null,0,null,0]
[416,"Takfotsbräder per m virke","m",0.09,null,0,null,0]
[417,"Luftspalt vid takfot inkl läkt och tätning","m",0.16,null,0,null,0,417,"Anslutning av isolering ingår. Inkluderar träfiberskiva och läkt"]
[418,"Luftspalt för snedtak inkl läkt, träfiberskiva och tätning","m2",0.23,null,0,null,0,418]
[419,"Insektsnät inkl tillhållarlist","m",0.05,null,0,null,0,null," "]
[420,"Fågelband","m",0.03,null,0,null,0,420,"Avser fågelband under takpannor"]
[421,"Tillägg - enkel platsbyggd kupa","st",8,null,0,null,{"$f":"D1285*G1285","v":0},421,"Mätes i tillämpliga arbetsarter"]
[422,"Tillägg - dubbel platsbyggd kupa","st",12,null,0,null,{"$f":"G1286*D1286","v":0}]
[423,"Tillägg - trippel platsbyggd kupa","st",15,null,0,null,0,423]
[424,"Montering av prefabricerad enkel kupa inkl invändig komplettering","st",6,null,0,null,0,424,"Invändig beklädnad mätes i tillämpliga punkter"]
[425,"Montering av prefabricerad dubbel kupa inkl invändig komplettering","st",8,null,0,null,0,425]
[426,"Skivor av stålplåt på bärläkt eller åsar","m2",7.0000000000000007E-2,null,0,null,0,426,"Avser såväl plana som korrugerade skivor (TRP-plåt). I tiderna ingår alla detaljarbeten vid nock, takfotplåt etc. "]
[427,"Skivor av plast på bärläkt eller åsar","m2",0.05,null,0,null,0,427]
[428,"Självbärande profilplåt, ytor t o m 400 m2","m2",0.13,null,0,null,{"$f":"D1292*G1292","v":0},428,"Avser profilhöjd t o m 200 mm."]
[429,"Självbärande profilplåt, ytor överstigande 400 m2","m2",0.08,null,0,null,{"$f":"G1293*D1293","v":0},429]
[430,"Tillägg - infästning med lösa vinklar","m2",0.03,null,0,null,{"$f":"G1294*D1294","v":0}]
[431,"Tillägg - för sned begränsning per m takveck ut eller in ","m",0.33,null,0,null,{"$f":"G1295*D1295","v":0},431,"Avser punkt 426-429"]
[432,"Nockplåt","m",0.09,null,0,null,{"$f":"G1296*D1296","v":0}]
[433,"Gavel- och fotplåt ","m",7.0000000000000007E-2,null,0,null,{"$f":"G1297*D1297","v":0}]
[434,"Takpannor av betong, enkupiga inkl nocktätning, nock- och gavelpannor","m2",0.15,null,{"$f":"E1298*D1298","v":0},null,{"$f":"G1298*D1298","v":0},434,"I tiderna ingår tätning vid nock samt förekommande specialpannor."]
[435,"Takpannor av betong, dubbelkupiga inkl nocktätning, nock- och gavelpannor","m2",0.13,null,0,null,0]
[436,"Takpannor av tegel, enkupiga inkl nocktätning, nock- och gavelpannor","m2",0.2,null,0,null,0]
[437,"Takpannor av tegel, dubbelkupiga inkl nocktätning, nock- och gavelpannor","m2",0.15,null,0,null,0,437]
[438,"Tillägg - för sned begränsning per m takveck ut eller in","m",0.55000000000000004,null,0,null,0,438,"Avser punkt 434 – 437"]
[439,"Tillägg - skärning av takpannor av tegel","m",0.1,null,0,null,0,439,"Utgår inte tillsammans med punkt 438 "]
[440,"Montering av ventilationsskorsten av plåt inkl underbeslag","st",0.82,null,0,null,0,440,"Gäller även platsbyggd sarg för ventilationsskorssten."]
[441,"Takluckor av plåt","st",0.36,null,0,null,0]
[442,"Takluckor av plåt inkl ram, tätning och underbeslag","st",1,null,0,null,0]
[443,"Rökluckor inkl ram, tätning, underbeslag samt draglina m m","st",3,null,0,null,0]
[444,"Ljuskupol inkl ram, tätning och underbeslag","st",2.5,null,0,null,0]
[445,"Snö-, takfots- och nockräcke av rör med vinkeljärnsfäste","m",0.27,null,0,null,0]
[446,"Takbrygga","m",0.28999999999999998,null,0,null,0]
[447,"Plattform på tak inkl räcken fullt färdigt "," st",3,null,0,null,0]
[448,"Montering av takstege","st",1,null,0,null,0]
[449,"Montering av stegjärn","st",0.13,null,0,null,0]
[450,"Landgång på vind inkl underbyggnad","m2",0.5,null,0,null,0]
[451,"Tillägg - taklutning över 30 grader per m2 takyta","m2",0.03,null,0,null,0,451,"Utges 1 gång oavsett antal moment"]
[null,"24:5 Höjdtillägg",null,null,null,null,null,null,null," "]
[501,"För höjd över 2,80 till 9,80 per påbörjad m.                                                                                                               För höjd över 9,80 per påbörjad 2 m.","m2",0.01,null,0,null,{"$f":"G1317*D1317","v":0},501,"Gäller samtliga vertikala och horisontella ytor i arbetsart 24 exkl 24:4 (beklädnad av yttertak) som mätes i m2. Utgår för hela vägg- respektive takytan. Antalet höjdtillägg ska beräknas från det plan på vilket sax/bomliften är placerad alternativt ställningen börjar byggas upp till ovankanten av berört material. Höjdtillägg ska endast erhållas för den del av nettoytan som är beklädd med material som ger rätt till höjdtillägg. När saxlift eller bomlift används beräknas höjdtillägg från 5 m istället för 2,80 m."]
[]
[null,null,null,null,"Summa",{"$f":"SUM(F1265:F1317)","v":0},"Summa",{"$f":"SUM(H1265:H1317)","v":0}]
[null,"Då panel levereras färdigkapat och kan monteras direkt utan yttligare anpassning höjdmässigt reduceras tiderna med 5%. Reduceringen är i timmar."]
[null,null,null,null,"AA:24",{"$f":"J1321+F1190+F1232+F1255+F1319-E1320","v":0},"AA:24",{"$f":"+H1190+H1232+H1255+H1319-G1320","v":0}]
[null,"Arbetsart: 24    Beklädnader",null,null,null,{"$f":"F1321","v":0},null,{"$f":"H1321","v":0}]
[null,"Arbetsart 25"]
[]
[null,"INNEHÅLL"]
[]
[null,"SNICKERIER"]
[null,null,"Sid"]
[null,"SÄRSKILDA BESTÄMMELSER",142]
["25:0","Karmar",144]
["25:1","Skåp",148]
["25:2","Förrådsväggar och hyllor",150]
["25:3","Trappor",152]
["25:4","Fönsterbänkar",152]
["25:5","Lister",154]
["25:6","Sakvaror",156]
[]
[null,"Arbetsart 25",null,null,null,null,null,null,null,"Arbetsart 25"]
[]
[null,"SÄRSKILDA BESTÄMMELSER",null,null,null,null,null,null,null,"KOMMENTARER"]
[]
["B.","I tiderna ingår om annat inte angivs",null,null,null,null,null,null,"B.","I tiderna ingår om annat inte angivs"]
["a)","Uppsättning, inriktning och fastsättning av snickerier.",null,null,null,null,null,null,"a)","Tiderna gäller oavsett material och ytbehandling samt fastsättning med spik, skruv och/eller limning samt erforderlig skyddstäckning."]
["b)","Av- och påhängning av bågar, dörrar, luckor och lådor jämte justering av dessa till fullt färdiga fungerande enheter. Erfoderlga borrning samt fastsättning av beslag.",null,null,null,null,null,null,"b)","Passbitar upp till 200 mm bredd ingår."]
[]
[]
["C.","Mätningsbestämmelser"]
["a)","Vid uppmätning av karmar mäts karmens yttermått. Fyllningar inom karmträ mäts in i ytan. Kombinerade fönster- och dörrkarmar mäts som fönsterkarm."]
["b)","Vid uppmätning av förrådsväggar inmäts dörrarna i ytan. Väggarnas höjd mäts efter väggstommen oavsett inklädnaden."]
["c)","Enhetstiderna avser glastjocklek t o m 4 mm. "]
[]
["d)","Beslagning och efterbeslagning ersättes i tillämpliga punkter ",null,null,null,null,null,null,"d)","Avser detaljer till fönster, dörrar och skåpinredningar såsom trycken, skyltar, dörrstoppare, vädringsbeslag, espagnoletthandtag, draghandtag och liknande."]
["e)","Då lister levereras färdigkapat och kan monteras direkt utan ytterligare anpassningar höjdmässigt reduceras tiderna med 5%.",null,null,null,null,null,null,"e)","Avser punkterna 504, 508–510."]
[]
[null,"Arbetsart 25",null,null,null,null,null,null,null,"Arbetsart 25"]
[]
[null,"SNICKERIER",null,null,null,null,null,null,null,"KOMMENTARER"]
[]
[null,null,null,null,null,"Nybyggnads",null,"Ombyggnads"]
["Punkt","Aktivitet",null,null,null,"Listan",null,"Listan","Punkt","Aktivitet"]
[null,"25:0  Karmar","Enhet","Tid","Avs.","Avs.","Avs.","Avs."]
["001","   Montering fönster, fönsterdörrar och fönsterpartier < 1,70 m2","st",1,null,{"$f":"E1362*D1362","v":0},null,{"$f":"G1362*D1362","v":0},"001","Tiden avser fönsterdörrar och fasta glasade fönster. Gäller även glasade invändiga glaspartier.\nBeslagning/efterbeslagning förutom cylinder ingår"]
["002","Montering fönster, fönsterdörrar och fönsterpartier > 1,70 < 3,00 m2","st",1.5,null,0,null,0]
["003","Montering fönster, fönsterdörrar och fönsterpartier > 3,00 < 4,50 m2","st",2,null,0,null,0,null," "]
["004","Montering fönsterkarmar > 4,50 m2","m2",0.5,null,0,null,0,"004"," "]
["005","Tillägg - för varje glas utöver 3 per fönster","st",0.35,null,0,null,0]
["006","Tillägg - för öppningsbara fönster per öppningsbart luft","st",0.2,null,0,null,0,"006","Gäller även fönsterdörrar"]
["007","Montering av takfönster per karm ","st",4.5,null,0,null,0,"007","Komplett med ram, underbeslag och tätning (plåtdetaljer), samt invändig komplettering med erforderliga behör, avser storlek t o m 2,00 m2"]
["008","Montering av lätt innerdörr","st",0.6,null,0,null,0,"008","Montering av tröskel ingår, gäller punkt 008-019"]
["009","Montering av ytterdörr, tamburdörr och massiv/ljud/brandklassad innerdörr ","st",1.1000000000000001,null,0,null,0,"009","Säkerhetsdörr med stålkarm ersättes enligt punkt 015"]
["010","Tillägg - pardörr per karm ","st",0.25,null,0,null,0,"010","Gäller punkt 008 och 009"]
["012","Montering av skjutdörr ","st",1.5,null,0,null,0]
["013","Tillägg - inbyggd skjutdörr per dörrblad","st",0.75,null,0,null,0,null," "]
["014","Montering av balansdörrar och pendeldörrar","st",2,null,0,null,0]
["015","Montering av brand- och ståldörrar ","st",2,null,0,null,0,"015","Gäller även säkerhetsinnerdörr"]
["016","Tillägg - för klämkarm per sida","st",0.7,null,0,null,0,"016","Avser foderbildande karmsida, punkt 015"]
["017","Tillägg - pardörr per karm","st ",0.5,null,0,null,0,"017","Avser punkt 014"]
["018","Montering av garageport","st",3,null,0,null,0,"018","Avser slagport "]
["019","Montering av vindslucka med tillhörande stege","st",2.5,null,0,null,0,"019","Gäller även vindsluckor med motvikter. Sarg för lösull ingår."]
["020","Montering av inspektionslucka i stödbensvägg","st",0.9,null,0,null,0,"020","Beslagning ingår."]
["021","Montage inspektionslucka","st",0.23,null,0,null,{"$f":"D1381*G1381","v":0},"021","Typ ”Hila” eller likvärdigt "]
["022","Montering av dörrtrycken","st",0.1,null,0,null,{"$f":"G1382*D1382","v":0},"022","Trycke med behör, nyckelskylt och dörrstopp = 1 enhet "]
["023","Montering av cylinder i fönster, fönsterdörr eller dörr ","st",0.15,null,0,null,0,"023","Per cylinder inkl behör"]
["024","Montering av dörrstängare ","st",0.5,null,0,null,0]
["025","Montering av dörrbroms","st",0.25,null,0,null,0]
["026","Tillägg - mekanisk infästning av karmar, per karm","st",0.2,null,0,null,0]
["027","Tillägg - borrning dörrkarmar, per karm","st",0.1,null,0,null,0]
["028","Tillägg - hopslagning av lösa karmdelar till dörrar, per karm","st",0.2,null,0,null,{"$f":"D1388*G1388","v":0}]
["029","Tillägg - montering av dörrblad i efterhand","st",0.1,null,0,null,{"$f":"G1389*D1389","v":0},null," "]
["030","Justering av befintliga fönsterbågar och fönsterdörrar","st",0.36,null,0,null,{"$f":"G1390*D1390","v":0},"030","I tiden ingår demontering av tätningslist och utbyte av beslag"]
["031","Justering av befintliga innerdörrar","st",0.18,null,0,null,{"$f":"G1391*D1391","v":0}]
["032","Montering av tätningslist","m",0.03,null,0,null,{"$f":"G1392*D1392","v":0}]
[]
[null,null,null,null,"Summa",{"$f":"SUM(F1362:F1392)","v":0},"Summa",{"$f":"SUM(H1362:H1392)","v":0}]
[]
[]
[null,"Arbetsart 25",null,null,null,null,null,null,null,"Arbetsart 25"]
[]
[null,"SNICKERIER",null,null,null,null,null,null,null,"KOMMENTARER"]
[]
[null,null,null,null,null,"Nybyggnads",null,"Ombyggnads"]
["Punkt","Aktivitet",null,null,null,"Listan",null,"Listan","Punkt","Aktivitet"]
[null,"25:1  Skåp","Enhet","Tid","Avs.","Avs.","Avs.","Avs."]
[101,"Uppsättning bänkskåp","st",0.6,null,{"$f":"E1404*D1404","v":0},null,{"$f":"G1404*D1404","v":0},101,"Beslagning/efterbeslagning förutom dämpare ingår i grundtiderna.\nFärdig skåpframsida på vitvaror mätes enligt denna punkt"]
[102,"Uppsättning väggskåp","st",0.5,null,0,null,0]
[103,"Uppsättning högskåp","st",0.8,null,0,null,0,103]
[104,"Uppsättning skåp över kyl o frys inkl borrning för urtag","st",0.6,null,0,null,0,104,"Gäller skåp av trä eller plåt"]
[105,"Tillägg - separat takanslutning per skåp","st",0.25,null,0,null,0]
[106,"Tillägg - utdragbar sockellåda","st",0.45,null,0,null,0]
[107,"Tillägg - källsorteringsinredning","st",0.5,null,0,null,0,null," "]
[108,"Tillägg - fristående frisida","st",0.5,null,0,null,0,108,"Avser frisida mot kyl och frys"]
[109,"Tillägg - frisida eller täcksida mot skåp","st",0.25,null,0,null,0,null," "]
[110,"   Tillägg – skåpstomme som levereras i byggsats","st",0.35,null,0,null,0,110,"Avser platta paket"]
[111,"Tillägg - per låda som levereras i byggsats ","st",0.15,null,0,null,0,111]
[112,"Tillägg - handikappanpassade skåp","st",0.5,null,0,null,0,112,"Avser höj- och sänkbara skåp"]
[113,"Tillägg - montering av skåpsluckor i efterhand inkl beslagning","st",0.15,null,0,null,0]
[114,"Tillägg - montering av stängningsdämpare per skåp","st",0.15,null,0,null,0,114,"   Avser stängningsdämpare som vid montering kräver förborrning eller skruvning."]
[115,"Tillägg - mekanisk infästning per st skåp","st",0.12,null,0,null,0]
[116,"Bänkskivor","m",0.3,null,0,null,0,116,"Minsta mått är 1,0 m. Justeringskapning ingår"]
[117,"Fria bänkskivor inkl konsoler eller träram","m",0.5,null,0,null,0,117]
[118,"Tillägg - urtag/håltagning i bänkskiva för diskho och hällar","st",0.5,null,0,null,0]
[119,"Uppriktning och förekommande fastsättning av vitvaror","st",1,null,0,null,0,119,"Anslutning av luftslang och läckagevarning ingår. Gäller även montage av diskho och hällar."]
[120,"Uppsättning minikök ","st",3,null,0,null,0,120,"Typ Atlas Trinett. Överskåp och sidoskåp mäts enligt 101-103"]
[121,"Köksfläkt eller s k ventilator inkl anslutning","st",0.7,null,0,null,0]
[122,"Tvättstugemaskiner i gemensamma utrymmen","st",1.5,null,0,null,{"$f":"D1425*G1425","v":0}]
[123,"Stänkskyddskiva","m",0.5,null,0,null,{"$f":"G1426*D1426","v":0}]
[124,"Ljusrampsskiva/baldakin med infällda spotlights över och under skåp","m",0.5,null,0,null,{"$f":"G1427*D1427","v":0},124,"Exkl inkoppling av el ljusrampsskiva"]
[125,"Skjutdörrspartier till garderober","m",0.7,null,0,null,{"$f":"G1428*D1428","v":0},125,"Inklusive golv- och takskenor samt injustering"]
[]
[]
[null,null,null,null,"Summa",{"$f":"SUM(F1404:F1429)","v":0},"Summa",{"$f":"SUM(H1404:H1429)","v":0}]
[]
[]
[null,"Arbetsart 25",null,null,null,null,null,null,null,"Arbetsart 25"]
[]
[null,"SNICKERIER",null,null,null,null,null,null,null,"KOMMENTARER"]
[]
[null,null,null,null,null,"Nybyggnads",null,"Ombyggnads"]
["Punkt","Aktivitet",null,null,null,"Listan",null,"Listan","Punkt","Aktivitet"]
[null,"25:2  Förrådsväggar och hyllor","Enhet","Tid","Avs.","Avs.","Avs.","Avs."]
[201,"Förrådsväggar av regelverk med beklädnad av träfiberskiva","m2",0.25,null,{"$f":"E1441*D1441","v":0},null,{"$f":"G1441*D1441","v":0},201,"Uppsättning av färdiga dörrar med tillhörande slutbleck, anslagslister m m ingår i tiderna. Gäller pkt 201-202."]
[202,"Förrådsväggar av regelverk med trådnät eller flätverk","m2",0.25,null,0,null,0,202,"Lister över nätskarvar ingår."]
[203,"Förrådsväggar av prefab ramar beklädda med trådnät eller träfiberskivor","m2",0.18,null,0,null,0]
[204,"Montering hyllor till prefab ramar","m",0.1,null,0,null,0]
[205,"För tillverkning av dörrar inkl beslagning tilläggs","st",0.25,null,0,null,0]
[206,"Uppsättning bärskenor för hyllsystem inkl konsoler","m",0.15,null,0,null,0]
[207,"Tillägg - mekanisk infästning av bärskenor enligt punkt 207","m",0.05,null,0,null,0]
[208,"Montering hyllor inkl fastsättning","m",0.14000000000000001,null,0,null,0]
[209,"Uppsättning av konsoler","st",0.12,null,0,null,0]
[210,"Uppsättning av klädstång av trä eller metall inkl tillkapning","st",0.2,null,0,null,0]
[211,"Frihängande hyllor med dold infästning","m",0.35,null,0,null,0]
[]
[null,null,null,null,"Summa",{"$f":"SUM(F1441:F1451)","v":0},"Summa",{"$f":"SUM(H1441:H1451)","v":0}]
[]
[]
[null,"Arbetsart 25",null,null,null,null,null,null,null,"Arbetsart 25"]
[]
[null,"SNICKERIER",null,null,null,null,null,null,null,"KOMMENTARER"]
[]
[null,null,null,null,null,"Nybyggnads",null,"Ombyggnads"]
["Punkt","Aktivitet",null,null,null,"Listan",null,"Listan","Punkt","Aktivitet"]
[null,"25:3  Trappor","Enhet","Tid","Avs.","Avs.","Avs.","Avs."]
[301,"   Montering av rak trappa","st",4,null,{"$f":"E1463*D1463","v":0},null,{"$f":"G1463*D1463","v":0},301,"Avser trappor med t o m 35 cm stegdjup i gånglinjen och bredd t o m 120 cm. Eventuell proppning i tegel, betong eller betonghålsten ingår samt erforderliga stolpverk för uppbärning. Vilplaner mäts som sektion. Fastsättning av barnsäkerhetslist ingår."]
[302,"Montering av helt sammansatt vinkeltrappa","st",5,null,0,null,0]
[303,"Montering av delvis sammansatt trappa per sektion","st",3,null,0,null,0]
[304,"Lösa plansteg per steg i rak trappa","st",0.36,null,0,null,0]
[305,"Lösa plansteg per steg i vinkeltrappa","st",0.4,null,0,null,0]
[306,"Lösa plansteg per steg i U-formad trappa","st",0.45,null,0,null,0]
[307,"Lösa plan- och sättsteg per steg i rak trappa","st",0.66,null,0,null,0,null," "]
[308,"Lösa plan- och sättsteg per steg i vinkeltrappa","st",0.79,null,0,null,0]
[309,"Lösa plan- och sättsteg per steg i U-formad trappa","st",0.84,null,0,null,0,309]
[310,"Montering av spiraltrappa i stål, ihopsatt av lösa delar","st",8,null,0,null,0,310,"Avser våningsvis"]
[311,"Montering av rak trappa i stål, helt sammansatt","st",2,null,0,null,0,null," "]
[312,"Färdiga ledstänger av trä eller metall inkl ändavslutningar","m",0.23,null,0,null,0,null," "]
[313,"Spaljé per sektion","st",2.25,null,0,null,0]
[314,"Spaljé per löpmeter virke/list","m",0.1,null,0,null,0]
[315,"Inklädnad bjälklagskant","m",0.23,null,0,null,0]
[null,"25:4  Fönsterbänkar"]
[401,"Uppsättning av färdiga fönsterbänkar inkl konsoler eller sprintar - i trä eller lättbetong","m",0.4,null,0,null,0,401,"Avser fönsterbänkar t o m 40 cm bredd av plastlaminat, laminerat trä, spånskivor eller natursten inkl förekommande ändstycken. Gäller pkt 401-403."]
[402,"Tillägg - mekanisk infästning av fönsterbänkar enligt punkt 401","m",0.2,null,0,null,0]
[403,"Fönsterbänk i smyg","m",0.35,null,0,null,0,403]
[]
[null,null,null,null,"Summa",{"$f":"SUM(F1463:F1481)","v":0},"Summa",{"$f":"SUM(H1463:H1481)","v":0}]
[]
[]
[null,"Arbetsart 25"]
[null,null,null,null,null,null,null,null,null,"Arbetsart 25"]
[null,"SNICKERIER"]
[null,null,null,null,null,null,null,null,null,"KOMMENTARER"]
[null,null,null,null,null,"Nybyggnads",null,"Ombyggnads"]
["Punkt","Aktivitet",null,null,null,"Listan",null,"Listan","Punkt","Aktivitet"]
[null,"25:5  Lister","Enhet","Tid","Avs.","Avs.","Avs.","Avs."]
[501,"Sockellist","m",7.0000000000000007E-2,null,{"$f":"E1493*D1493","v":0},null,{"$f":"G1493*D1493","v":0}]
[502,"Sockellist runt pelare, per pelare","st",0.5,null,0,null,0,501,"Eventuell gering ingår, gäller allt listverk"]
[503,"Taklist","m",0.08,null,0,null,0,null," "]
[504,"Foderlist","m",0.06,null,0,null,0,512]
[505,"Smyglist b < 70 mm","m",0.06,null,0,null,0]
[506,"Smygbräda, b > 70 < 150 mm","m",0.11,null,0,null,0]
[507,"Smygbräda, b > 150 mm","m",0.14000000000000001,null,0,null,0,506,"Erforderlig limning, skruvning och underlägg samt eventuell tillpassning och justering ingår."]
[508,"Täcklist b < 70 mm","m",0.06,null,0,null,0,507]
[509,"Täckbräda b > 70 mm","m",0.09,null,0,null,0]
[510,"Hörnlist av trä, utanpåliggande synlig","m",0.06,null,0,null,0]
[511,"Kakellist","m",0.11,null,0,null,0]
[512,"Ljusrampslist eller krönlist","m",0.18,null,0,null,0]
[513,"Tillägg - för profilerad list ","m",0.03,null,0,null,0]
[514,"Tillägg - mekanisk infästning","m",0.04,null,0,null,0,513,"Avser ej skugglist."]
[]
[null,null,null,null,"Summa",{"$f":"SUM(F1493:F1506)","v":0},"Summa",{"$f":"SUM(H1493:H1506)","v":0}]
[]
[]
[null,"Arbetsart 25",null,null,null,null,null,null,null,"Arbetsart 25"]
[]
[null,"SNICKERIER",null,null,null,null,null,null,null,"KOMMENTARER"]
[null," "]
[null,null,null,null,null,"Nybyggnads",null,"Ombyggnads"]
["Punkt","Aktivitet",null,null,null,"Listan",null,"Listan","Punkt","Aktivitet"]
[null,"25:6  Sakvaror","Enhet","Tid","Avs.","Avs.","Avs.","Avs."]
[601,"Sakvaror i städ komplett","st",1.5,null,{"$f":"E1518*D1518","v":0},null,{"$f":"G1518*D1518","v":0},601,"Avser inte hyllor i städföråd"]
[602,"Väggskåp och högskåp i wc, badrum och dusch per del","st",0.8,null,0,null,0]
[603,"Kommod i wc, badrum och dusch, per del ","st",1,null,0,null,0]
[604,"Tillägg - montering av tvättställ","st",0.5,null,0,null,0]
[605,"Tillägg - montering skåp som levereras i byggsats","st",0.35,null,0,null,0,605,"Typ platta paket"]
[606,"Tillägg - mekanisk infästning per st skåp och kommod i våtrum","st",0.2,null,0,null,0]
[607,"Ljusramp per del","st",0.32,null,0,null,0]
[608,"Spegel per del","st",0.32,null,0,null,0]
[609,"Duschdraperiskena eller duschstång","st",0.5,null,0,null,0]
[610,"Stödhandtag för handikapp","st",0.32,null,0,null,0]
[611,"Tillägg – handikappinredning","st",1.35,null,0,null,0,611,"Avser per utrymme"]
[612,"Fast skärmvägg i duschrum, per enhet","st",1,null,0,null,0,612,"Punkterna 612 och 613 kan kombineras"]
[613,"   Duschdörr, per enhet","st",1.2,null,0,null,0]
[614,"Klädskåp av plåt, komplett per dörr","st",0.45,null,0,null,0]
[615,"Hatthylla","st",0.41,null,0,null,0]
[616,"Gardinbeslag","st",0.05,null,0,null,0]
[617,"  Gardinbeslag - infästning i hårt material","st",0.1,null,0,null,0,617,"I tiden ingår mekanisk infästning enligt punkten 626"]
[618,"Anslagstavla","st",0.32,null,0,null,0]
[619,"   Skyltar","st",0.03,null,0,null,0,619,"Avser diverse namn, siffror, utrymningsskyltar etc"]
[620,"   Skyltar - infästning i hårt material","st",0.08,null,0,null,0,620," I tiden ingår mekanisk infästning enligt punkten 626"]
[621,"Postlåda/tidningshållare","st",0.23,null,0,null,0,null," "]
[622,"Postfack per del eller sektion","st",1,null,0,null,0,622,"Avser enhet med flera postfack"]
[623,"Whiteboardtavla","m",0.8,null,0,null,0]
[624,"Glidskenelist eller tavellist","m",0.2,null,0,null,0]
[625,"Övriga sakvaror som inte finns omnämnda i 25:6","st",0.15,null,0,null,{"$f":"D1542*G1542","v":0}]
[626,"Tillägg - mekanisk infästning sakvaror, per st ","st",0.12,null,0,null,{"$f":"G1543*D1543","v":0}]
[null," "]
[null,null,null,null,"Summa",{"$f":"SUM(F1518:F1543)","v":0},"Summa",{"$f":"SUM(H1518:H1543)","v":0}]
[null,"Då lister levereras färdigkapat och kan monteras direkt utan ytterligare anpassningar höjdmässigt reduceras tiderna med 5%. Reduceras i timmar."]
[null,null,null,null,"AA:25",{"$f":"F1394+F1431+F1453+F1483+F1508+F1545-E1546","v":0},"AA:25",{"$f":"H1394+H1431+H1453+H1483+H1508+H1545-G1546","v":0}]
[null,"Arbetsart: 25    Snickerier",null,null,null,{"$f":"F1547","v":0},null,{"$f":"H1547","v":0}]
[null,"Arbetsart 27"]
[]
[null,"INNEHÅLL"]
[]
[null,"FUKTISOLERING, VIND OCH DIFFUSIONSTÄTNING"]
[]
[]
[null,null,"Sid"]
["Särskilda bestämmelser",null,160]
["27:0"," Fuktisolering",162]
["27:1"," Vind- och diffusionstätning",162]
["27:2"," Höjdtillägg",164]
[null,null,null,null,null,null,null,null,null," "]
[]
[]
[]
[null,"Arbetsart 27",null,null,null,null,null,null,null,"Arbetsart 27"]
[]
[null,"SÄRSKILDA BESTÄMMELSER",null,null,null,null,null,null,null,"KOMMENTARER"]
[]
["B.","I tiderna ingår om annat ej angivs"]
["a)","Rengöring av underlaget."]
[]
["C.","Mätningsbestämmelser"]
["a)","Vid vertikala och eller horisontella arbeten understigande 1,0 m höjd och eller bredd mäts 1,0 m."]
[]
[]
[null,"Arbetsart 27",null,null,null,null,null,null,null,"Arbetsart 27"]
[]
[null,"FUKTISOLERING, VIND OCH DIFFUSIONSTÄTNING",null,null,null,null,null,null,null,"KOMMENTARER"]
[null,null,null,null,null,"Nybyggnads",null,"Ombyggnads"]
["Punkt","Aktivitet",null,null,null,"Listan",null,"Listan","Punkt","Aktivitet"]
[null,"27:0  Fuktisolering","Enhet","Tid","Avs.","Avs.","Avs.","Avs."]
["001","Asfalt på vägg per strykning","m²",0.05,null,{"$f":"E1582*D1582","v":0},null,{"$f":"G1582*D1582","v":0}]
["002","Asfalt på bjälklag per strykning","m²",0.04,null,0,null,0]
["003","Utläggning av papp på vägg inkl helklistring i asfalt per lag","m²",0.09,null,0,null,0]
["004","Utläggning av papp på bjälklag inkl helklistring i asfalt per lag","m²",0.06,null,0,null,0]
["005","Fuktisolering av hårdplastmatta komplett inkl lister och kompletteringar på vägg utvändigt","m²",0.15,null,0,null,0,"005","Typ Platonmatta"]
["006","Fuktisolering av hårdplastmatta komplett inkl lister och kompletteringar på golv ","m²",0.3,null,0,null,0,"006","Inklusive luftkanaler, komplett system typ Platon. Luftad träsockel mätes i arbetsart 25."]
["007","Bituthene-remsor inkl erforderlig värmning","m",7.0000000000000007E-2,null,0,null,0]
["008","   Vattentät membran platta på mark och bjälklag","m²",0.12,null,0,null,0,"008","Komplett system typ Zemseal. Erfoderliga bearbetningar såsom skarvar, uppvik, tätning av hål etc ingår."]
["009","   Vattentät membran på vägg","m²",0.14000000000000001,null,0,null,0,"009"]
[null,"27:1  Vind- och diffusionstätning"]
[101,"Papp på golv","m²",0.03,null,0,null,0,101,"Tejpning ingår."]
[102,"Papp på vägg","m²",0.04,null,0,null,0]
[103,"Papp i tak","m²",0.05,null,0,null,0,103]
[104,"Diffusionstätning med plastfolie på golv eller mark","m²",0.02,null,0,null,0]
[105,"Diffusionstätning med plastfolie på vägg","m²",0.03,null,0,null,0]
[106,"Diffusionstätning med plastfolie i tak","m²",0.04,null,0,null,0]
[107,"   Diffusionstätning med plastfolie i tak vid stödbensvägg","m²",0.08,null,0,null,0,107,"Utges för den delen av plastning som utförs mellan stödbensvägg och takfot"]
[108,"Tillägg - tejpning","m²",0.06,null,0,null,0,108,"Gäller punkt 104-107"]
[109,"Tillägg - öppning med täthetskrav","st",0.3,null,0,null,0,109," Avser tätning insida. Varje enhet avser fönster och eller \ndörrsöppning"]
[null,"27:2  Höjdtillägg"]
[201,"För höjd över 2,80 till 9,80 per påbörjad m.                                                                                                               För höjd över 9,80 per påbörjad 2 m.","m2",0.01,null,0,null,{"$f":"G1602*D1602","v":0},201,"Gäller samtliga vertikala och horisontella ytor i arbetsart 27 som mätes i m2. Utgår för hela vägg- respektive takytan. Antalet höjdtillägg ska beräknas från det plan på vilket sax/bomliften är placerad alternativt ställningen börjar byggas upp till ovankanten av berört material. Höjdtillägg ska endast erhållas för den del av nettoytan som är beklädd med material som ger rätt till höjdtillägg. När saxlift eller bomlift används beräknas höjdtillägg från 5 m istället för 2,80 m."]
[]
[null,null,null,null,"Summa",{"$f":"SUM(F1582:F1602)","v":0},"Summa",{"$f":"SUM(H1582:H1602)","v":0}]
[]
[null,null,null,null,"AA:27",{"$f":"F1604","v":0},"AA:27",{"$f":"H1604","v":0}]
[null,"Arbetsart: 27    Fuktisolering, vind och diffusionstätning",null,null,null,{"$f":"F1606","v":0},null,{"$f":"H1606","v":0}]
[null,"Arbetsart 28",null," 28.1"]
[]
[null,"INNEHÅLL"]
[]
[null,"VÄRME- OCH LJUDISOLERING"]
[]
[null,null,"Sid"]
["                Särskilda bestämmelser",null,168]
[" 28:0","Isolering i grund",170]
[" 28:1","Isolering i vägg",170]
[" 28:2","Isolering i bjälklag",170]
[" 28:3","Isolering i tak",172]
[" 28:4","Isolering i vertikala formar",172]
[" 28:5","Isolering i horisontala formar",172]
[" 28:6","Drevning och fogning",174]
[" 28:7","Höjdtillägg",174]
[]
[]
[null,"Arbetsart 28",null,null,null,null,null,null,null,"Arbetsart 28"]
[]
[null,"SÄRSKILDA BESTÄMMELSER",null,null,null,null,null,null,null,"KOMMENTARER"]
[]
["B.","I tiderna ingår om annat inte angivs",null,null,null,null,null,null,"B.","I tiderna ingår om annat inte angivs"]
["a)","Uppsättning av isoleringsmaterial av mineralull, cellplast, kork etc. inkl. skärning, urtag och anordningar för fasthållning.",null,null,null,null,null,null,"a)","Tiderna gäller även för lutande och eller svängda konstruktioner. "]
[]
[]
["C.","Mätningsbestämmelser"]
["a)","Avdelande virke frånmäts inte."]
[]
[]
[null,"Arbetsart 28",null,null,null,null,null,null,null,"Arbetsart 28"]
[]
[null,"VÄRME- OCH LJUDISOLERING",null,null,null,null,null,null,null,"KOMMENTARER"]
[]
[null,null,null,null,null,"Nybyggnads",null,"Ombyggnads"]
["Punkt","Aktivitet",null,null,null,"Listan",null,"Listan","Punkt","Aktivitet"]
[null,"28:0  Isolering i grund","Enhet","Tid","Avs.","Avs.","Avs.","Avs."]
["001","Isolering på mark – skivor t o m 100 mm per lag ","m²",0.05,null,{"$f":"E1645*D1645","v":0},null,{"$f":"G1645*D1645","v":0}]
["002","Tillägg - tjockare skivor per påbörjad 50 mm ","m²",0.01,null,0,null,0]
["003","Tillägg - snedskärning skivor för voter i grundplattor","m",0.03,null,0,null,0,"003","Avser noggrann tillpassning av skivor i kantförstyvade grundplattor, per meter veck och lag. I varje veck ingår skärning i två skivor."]
["004","Justering av bädd","m²",0.02,null,0,null,0,"004","Utgår för justerad yta"]
[null,"28:1  Isolering vägg"]
[101,"   Isolering i och på vägg, skiva/matta t o m 50 mm per lag","m²",0.04,null,0,null,0,101,"Även så kallad västkustskiva "]
[102,"   Isolering i och på vägg, skiva/matta > 50 mm t o m 70 mm per lag  ","m²",0.05,null,0,null,0]
[103,"   Isolering i och på vägg, skiva/matta > 70 mm t o m 120 mm per lag  ","m²",0.06,null,0,null,0]
[104,"   Isolering i och på vägg, skiva/matta > 120 mm t o m 170 mm per lag","m²",7.0000000000000007E-2,null,0,null,0]
[105,"   Isolering i och på vägg, skiva/matta > 170 mm t o m 195 mm per lag","m²",0.08,null,0,null,0]
[106,"   Isolering i och på vägg, skiva/matta > 195 mm per lag","m²",0.09,null,0,null,0]
[107,"Tillägg - mekanisk infästning","m²",0.08,null,0,null,0]
[108,"Tillägg - fastsättning med skruv, spik, brickor, list eller klister","m²",0.03,null,0,null,0,108,"Gäller 101-106."]
[109,"Tillägg - tillskärning av isolering i profiler","m²",0.03,null,0,null,0,109,"Tillämpas även då isoleringsremsor inläggs i stället för skärning av skivor."]
[110,"Tillägg - bärande förankring vid putsarbete","m²",0.05,null,0,null,0]
[null,"28:2  Isolering bjälklag"]
[201,"Isolering i och på bjälklag per lag t o m 100 mm","m²",0.04,null,0,null,{"$f":"G1661*D1661","v":0},201,"Om vindsisolering skall utföras helt efter ventilationsdragning \nträffas särskild överenskommelse "]
[202,"Tillägg - isolering > 100 mm per påbörjad 50 mm","m²",0.01,null,{"$f":"E1662*D1662","v":0},null,{"$f":"G1662*D1662","v":0}]
[203,"Tillägg - isolering mellan bjälkar per lag","m²",0.02,null,0,null,{"$f":"G1663*D1663","v":0}]
[null,null,null,null,null,null,null,null," "]
[null,null,null,null,"Summa",{"$f":"SUM(F1645:F1663)","v":0},"Summa",{"$f":"SUM(H1645:H1663)","v":0},null," "]
[]
[]
[null,"Arbetsart 28",null,null,null,null,null,null,null,"Arbetsart 28"]
[]
[null,"VÄRME- OCH LJUDISOLERING",null,null,null,null,null,null,null,"KOMMENTARER"]
[]
[null,null,null,null,null,"Nybyggnads",null,"Ombyggnads"]
["Punkt","Aktivitet",null,null,null,"Listan",null,"Listan","Punkt","Aktivitet"]
[null,"28:3  Isolering i tak","Enhet","Tid","Avs.","Avs.","Avs.","Avs."]
[301,"Isolering i tak, skiva/matta t o m 100 mm per lag","m²",0.06,null,{"$f":"E1675*D1675","v":0},null,{"$f":"G1675*D1675","v":0}]
[302,"Isolering i tak, cellplastskivor  t o m 100 mm per lag ","m²",0.08,null,0,null,0]
[303,"Tillägg - skiva/matta > 100 mm per påbörjad 25 mm","m²",0.02,null,0,null,0]
[304,"Tillägg - mekanisk infästning","m²",0.08,null,0,null,0]
[305,"Tillägg - fastsättning med skruv, spik, brickor, list eller klister","m²",0.04,null,0,null,0]
[306,"Bullerabsorbenter i tak","m²",0.14000000000000001,null,0,null,0,306,"Avser både med skensystem och eller med bricka"]
[null,"28:4  Isolering i vertikala formar"]
[401,"Mineralullskivor i vertikala formar","m²",0.05,null,0,null,0]
[402,"Cellplastskivor i vertikala formar","m²",0.05,null,0,null,0]
[403,"Träullscementplattor i vertikala formar","m²",0.1,null,0,null,0]
[404,"Skivor i dilationsfog","m²",0.1,null,0,null,0,404,"Avser motgjutning mot befintlig konstruktion."]
[405,"Isolering av väggkanter t.o.m. 0,25 m bredd","m",0.06,null,0,null,0]
[406,"Fri montering av isolering mellan formsidor","m²",0.21,null,0,null,0,406,"I tiderna ingår eventuell montering av isoleringskorgar."]
[407,"Intermittent isolering","m",0.18,null,0,null,0]
[null,"28:5  Isolering i horisontala formar",null,null,null,null,null,null," "," "]
[501,"Mineralullsskivor i horisontala formar","m²",0.04,null,0,null,0]
[502,"Cellplastskivor i horisontala formar","m²",0.04,null,0,null,0]
[503,"Träullscementplattor i horisontala formar","m²",0.08,null,0,null,0]
[504,"Skivor i dilationsfog","m",0.1,null,0,null,{"$f":"D1693*G1693","v":0},504,"Avser motgjutning mot befintlig konstruktion."]
[505,"Isolering av bjälklagskanter t.o.m. 0,25 m höjd","m",0.06,null,0,null,{"$f":"G1694*D1694","v":0}]
[506,"Intermittent isolering","m",0.18,null,0,null,{"$f":"G1695*D1695","v":0},506,"T.ex. vid balkong."]
[]
[null,null,null,null,"Summa",{"$f":"SUM(F1674:F1695)","v":0},"Summa",{"$f":"SUM(H1674:H1695)","v":0}]
[]
[]
[null,"Arbetsart 28",null,null,null,null,null,null,null,"Arbetsart 28"]
[]
[null,"VÄRME- OCH LJUDISOLERING",null,null,null,null,null,null,null,"KOMMENTARER"]
[]
[null,null,null,null,null,"Nybyggnads",null,"Ombyggnads"]
["Punkt","Aktivitet","Enhet","Tid",null,"Listan",null,"Listan","Punkt","Aktivitet"]
[null,"28:6  Drevning och fogning",null,null,"Avs.","Avs.","Avs.","Avs."]
[601,"Drevning ","m",0.05,null,{"$f":"E1707*D1707","v":0},null,{"$f":"G1707*D1707","v":0},601,"Drevning till fullt djup."]
[602,"Synlig mjukfog","m",7.0000000000000007E-2,null,0,null,0]
[603,"Dold mjukfog","m",0.03,null,0,null,0]
[604,"Bottning eller svällband","m",0.04,null,0,null,0]
[null,"28:7  Höjdtillägg"]
[701,"För höjd över 2,80 till 9,80 per påbörjad m.                                                                                                               För höjd över 9,80 per påbörjad 2 m.","m2",0.01,null,0,null,{"$f":"G1712*D1712","v":0},701,"Gäller samtliga vertikala och horisontella ytor i arbetsart 28 som mätes i m2. Utgår för hela vägg- respektive takytan. Antalet höjdtillägg ska beräknas från det plan på vilket sax/bomliften är placerad alternativt ställningen börjar byggas upp till ovankanten av berört material. Höjdtillägg ska endast erhållas för den del av nettoytan som är beklädd med material som ger rätt till höjdtillägg. När saxlift eller bomlift används beräknas höjdtillägg från 5 m istället för 2,80 m."]
[]
[null,null,null,null,"Summa",{"$f":"SUM(F1707:F1712)","v":0},"Summa",{"$f":"SUM(H1707:H1712)","v":0}]
[]
[null,null,null,null,"AA:28",{"$f":"F1665+F1697+F1714","v":0},"AA:28",{"$f":"H1665+H1697+H1714","v":0}]
[null,"Arbetsart: 28    Värme-och Ljudisolering",null,null,null,{"$f":"F1716","v":0},null,{"$f":"H1716","v":0}]
[null,"Arbetsart 30"]
[]
[null,"INNEHÅLL"]
[]
[]
[null,"PLATTSÄTTNING"]
[]
[]
[null,null,null,"Sid"]
[null,"Särskilda bestämmelser",null,178]
["30:0"," Väggbeklädnad",null,180]
["30:1","Golvläggning",null,180]
["30:2","Trappor",null,184]
["30:3","Mosaik",null,184]
["30:4","Höjdtillägg",null,184]
[]
[]
[]
[]
[]
[null,"Arbetsart 30",null,null,null,null,null,null,null,"Arbetsart 30"]
[]
[null,"SÄRSKILDA BESTÄMMELSER",null,null,null,null,null,null,null,"KOMMENTARER"]
["A.","Förutsättningar"]
["a)","För företag med specialinriktning ska särskild hänsyn tas till \ngemensamma arbeten enligt Aa 51 och objekts tillägg",null,null,null,null,null,null,"a)","Med specialföretag menas företag som endast utför plattsättning"]
[" "]
[]
["B.","I tiderna ingår om annat inte angivs",null,null,null,null,null,null,"B.","I tiderna ingår om annat inte angivs"]
["a)","Vid sättning i bruk - erforderlig förlagning, grundning, utfyllning, tillputsning o.dyl.",null,null,null,null,null,null,"a)","Dubbellimning ingår inte. Oregelbunden mönsterläggning och svängd yta ingår inte."]
["b)","Vid sättning i fästmedel - erforderlig justering av underlaget och tillfogning vid avslutning.",null,null,null,null,null,null,"b)","Avser justering som kan utföras med fästmedel. Stockning eller utputsning av underlaget mäts enligt tillämpliga punkter i arbetsart 22."]
["c)","Vid läggning i betong - erforderlig slamning och komprimering av bruk."]
["d)","Vid läggning i fästmedel - erforderlig justering av underlaget.",null,null,null,null,null,null,"d)","Avser justering som kan utföras med fästmedel."]
["e)","Förekommande delarbeten såsom skärningar, begränsningar och håltagningar, fogfyllning, ventiler, galler, ramar samt vattning och rengöring av ytan m.m."]
["f)","Maskinell tillverkning av bruk, betong och fästmedel av förekommande slag eller mottagning av färdigt bruk samt tillsättning av cement, färg, plasticeringsmedel o.dyl. i bruk."]
[]
["C.","Mätningsbestämmelser"]
["a)","Beklädnad av fönsterbänkar samt överytor t.o.m. 2 m2 mäts såsom väggbeklädnad."]
["  b)","Vid större antal badrum och eller toaletter reduceras tiderna enligt nedan Antal badrum och eller toaletter > 50 st - 2,5 % Antal badrum och eller toaletter > 100 st - 5,0 %"]
[]
[]
[]
[]
[null,"Arbetsart 30",null,null,null,null,null,null,null,"Arbetsart 30"]
[]
[null,"PLATTSÄTTNING",null,null,null,null,null,null,null,"KOMMENTARER"]
[null,null,null,null,null,"Nybyggnads",null,"Ombyggnads"]
["Punkt","Aktivitet","Enhet","Tid",null,"Listan",null,"Listan","Punkt","Aktivitet"]
[null,"30:0  Väggbeklädnad",null,null,"Avs.","Avs.","Avs.","Avs."]
["001","Keramiska plattor på vägg i kök mellan skåp","m2",1.0900000000000001,null,{"$f":"E1766*D1766","v":0},null,{"$f":"G1766*D1766","v":0}]
["002","Keramiska plattor på vägg i våtutrymmen","m2",0.82,null,0,null,0,"002","Ytor mindre än 2,0 m2 mäts enligt 001. "]
["003","Tillägg - plattor mer än 65 st per m2 per påbörjat 10-tal över 65 st per m2","m2",0.08,null,0,null,0,"003","Gäller inte mosaik"]
["004","Tillägg - plattor mindre än 16 st per m2","m2",0.2,null,0,null,0,"004"]
["005","Tillägg - vattentät underbehandling","m2",0.36,null,0,null,0,null," "]
["006","Tillägg - vattenavvisande underbehandling","m2",0.14000000000000001,null,0,null,0," "]
["007","Tillägg - bård 1-5 skift ","m",0.18,null,0,null,0]
["008","Tillägg - diagonalsättning ","m2",0.09,null,0,null,0]
["009","Mjukfog","m",7.0000000000000007E-2,null,0,null,0]
[null,"30:1  Golvläggning"]
[101,"Keramiska plattor på golv i fästmassa inkl. primning mellan 16-25 plattor per m2","m2",0.61,null,0,null,0]
[102,"Keramiska plattor på golv i fästmassa inkl. primning mellan 26-40 plattor per m2","m2",0.73,null,0,null,0]
[103,"Keramiska plattor på golv i fästmassa inkl. primning mellan 41-65 plattor per m2","m2",0.82,null,0,null,0]
[104,"Keramiska plattor på golv i bruk 16-25 plattor per m2","m2",1,null,0,null,0]
[105,"Keramiska plattor på golv i bruk mellan 26-40 plattor per m2","m2",1.1299999999999999,null,0,null,0]
[106,"Keramiska plattor på golv i bruk mellan 41-65 plattor per m2","m2",1.23,null,0,null,0]
[107,"Tillägg plattor på golv fler än 65 st per m2 per påbörjat 10-tal över 65 st per m2","m2",0.08,null,0,null,0,107,"Gäller inte mosaik"]
[108,"Tillägg - keramiska plattor under 16 st per m2","m2",0.2,null,0,null,0,108]
[109,"Tillägg - vattentät underbehandling","m2",0.31,null,0,null,{"$f":"D1784*G1784","v":0}]
[110,"Tillägg - fris i avvikande tjocklek ","m",0.18,null,0,null,{"$f":"G1785*D1785","v":0}]
[111,"Tillägg - fris i avvikande format","m",0.06,null,0,null,{"$f":"G1786*D1786","v":0}]
[112,"Tillägg - diagonalläggning ","m2",0.09,null,{"$f":"E1787*D1787","v":0},null,0]
[113,"Sockel","m",0.3,null,0,null,0]
[114,"Tillägg - fall mot brunn vid golvläggning med plattor ","st",0.25,null,0,null,0]
[115,"Tillägg - plattor med hålkäl","m",0.03,null,0,null,0,115,"I tiden ingår intryckt fog."]
[116,"Tillägg - fogfyllning över 8 mm fogbredd eller fogning med slev","m2",0.06,null,0,null,0]
[117,"Tillägg - fogfyllning eller fogning av plattor med räfflad, nopprig eller flisig sträv yta","m2",0.05,null,0,null,0]
[118,"Tillägg - ytor < 5 m2","st",1.37,null,0,null,{"$f":"D1793*G1793","v":0}]
[119,"Mjukfog","m",7.0000000000000007E-2,null,0,null,{"$f":"G1794*D1794","v":0}]
[]
[null,null,null,null,"Summa",{"$f":"SUM(F1766:F1794)","v":0},"Summa",{"$f":"SUM(H1766:H1794)","v":0}]
[]
[]
[]
[null,"Arbetsart 30",null,null,null,null,null,null,null,"Arbetsart 30"]
[]
[null,"PLATTSÄTTNING",null,null,null,null,null,null,null,"KOMMENTARER"]
[]
[null,null,null,null,null,"Nybyggnads",null,"Ombyggnads"]
["Punkt","Aktivitet",null,null,null,"Listan",null,"Listan","Punkt","Aktivitet"]
[null,"30:2  Trappor","Enhet","Tid","Avs.","Avs.","Avs.","Avs."]
[201,"Trappor - keramiska plattor på plansteg","m",0.59,null,{"$f":"E1807*D1807","v":0},null,{"$f":"G1807*D1807","v":0}]
[202,"Trappor - keramiska plattor på sättsteg","m",0.5,null,0,null,0]
[203,"Sockel i trappor","m",0.4,null,0,null,0]
[null,"30:3  Övrigt"]
[301,"Tillägg - mosaik","m2",0.2,null,0,null,0,301,"Gäller hela arbetsarten"]
[null,"30:4  Höjdtillägg"]
[401,"För höjd över 2,80 till 9,80 per påbörjad m.                                                                                                               För höjd över 9,80 per påbörjad 2 m.","m2",0.01,null,0,null,{"$f":"G1813*D1813","v":0},401,"Gäller samtliga vertikala och horisontella ytor i arbetsart 30 som mätes i m2. Utgår för hela vägg- respektive takytan. Antalet höjdtillägg ska beräknas från det plan på vilket sax/bomliften är placerad alternativt ställningen börjar byggas upp till ovankanten av berört material. Höjdtillägg ska endast erhållas för den del av nettoytan som är beklädd med material som ger rätt till höjdtillägg. När saxlift eller bomlift används beräknas höjdtillägg från 5 m istället för 2,80 m."]
[]
[null,null,null,null,"Summa",{"$f":"SUM(F1807:F1813)","v":0},"Summa",{"$f":"SUM(H1807:H1813)","v":0}]
[null,"Vid större antal badrum och eller toaletter reduceras tiderna enligt nedan Antal badrum och eller toaletter > 50 st - 2,5 % Antal badrum och eller toaletter > 100 st - 5,0 %. Reduceringen är i timmar."]
[null,null,null,null,"AA:30",{"$f":"F1796+F1815-E1816","v":0},"AA:30",{"$f":"H1796+H1815-G1816","v":0}]
[null,"Arbetsart: 30    Plattsättning",null,null,null,{"$f":"F1817","v":0},null,{"$f":"H1817","v":0}]
[null,"Arbetsart 36"]
[]
[null,"INNEHÅLL"]
[]
[null,"STÄLLNINGAR"]
[]
[null,null,null,"Sid"]
[null,"Särskilda bestämmelser",null,188]
["36:0"," Fasad- och takställningar",null,190]
["36:1"," Övriga ställningar",null,190]
[]
[]
[null,"Arbetsart 36",null,null,null,null,null,null,null,"Arbetsart 36"]
[]
[null,"SÄRSKILDA BESTÄMMELSER",null,null,null,null,null,null,null,"KOMMENTARER"]
[]
["B.","I tiderna ingår om annat inte angivs"]
["a)","Uppsättning, nedtagning och rengöring av ställningar och avjämning för ställningsben."]
[]
["C.","Mätningsbestämmelser",null,null,null,null,null,null,"C","Mätningsbestämmelser"]
["a)","Ställningar för arbeten på vertikala ytor mäts från det plan varpå ställningen börjar byggas upp till överkant av skyddsräcke på ställningen "]
["b)","För ställningar till arbeten i tak mäts den i tak betjänade ytan med ett minst mått av 5,0 m2.",null,null,null,null,null,null,"b)","Ställning för exempelvis rördragning i tak mäts med en minsta bredd av 1,0 m."]
[]
["c)","Understiger arbetshöjden 2,80 m, men ersättning för ställning ändå skall utgå, mäts ställningen i tillämpliga punkter.",null,null,null,null,null,null,"c)","Ställning för betonggjutning, och murning mäts enligt tillämpliga punkter."]
[" "]
["d)","Normal förankring av ställning ingår",null,null,null,null,null,null,"d)","Exceptionell förankring pga vindlast och eller belastning är inte tidsatt"]
[" "," ",null,null,null,null,null,null,null," "]
[]
[null,"Arbetsart 36",null,null,null,null,null,null,null,"Arbetsart 36"]
[]
[null,"STÄLLNINGAR",null,null,null,null,null,null,null,"KOMMENTARER"]
[null,null,null,null,null,"Nybyggnads",null,"Ombyggnads"]
["Punkt","Aktivitet",null,null,null,"Listan",null,"Listan","Punkt","Aktivitet"]
[null,"36:0  Fasad- och takställningar","Enhet","Tid","Avs.","Avs.","Avs.","Avs.",null," "]
["001","Hak- eller systemställning t o m 1,05 m bredd","m2",0.1,null,{"$f":"E1853*D1853","v":0},null,{"$f":"G1853*D1853","v":0},"001","Tvärbomens längd och utanpåliggande konsol bestämmer ställningsbredden"]
["002","Hak- eller systemställning över 1,05 m bredd t o m 1,25 m bredd","m2",0.12,null,0,null,0]
["003","Hak- eller systemställning över 1,25 m bredd","m2",0.15,null,0,null,0,"003"," "]
["004","Ombyggnad hak- eller systemställning","m2",0.05,null,0,null,0]
["005","Ramställning av lättmetall","m2",7.0000000000000007E-2,null,0,null,0]
["006","Tillägg - över 6 m höjd per påbörjad 6,0 m","m2",0.02,null,0,null,0,"006","Utgår för hela ytan. "]
["007","Täckning fasadställning med presenning, plastfolie eller duk per m2 täckt yta","m2",0.03,null,0,null,0]
[null,"36:1  Övriga ställningar"]
[101,"Tillverkning av rullställning","m3",0.13,null,0,null,0,101,"Höjden räknas till överkant skyddsräcke. Inplankning och belastning \ningår. Gällande punkt 102 och 103 se även kommentarer till punkt \n110."]
[102,"Flyttning av rullställning för arbete på vertikala ytor","m2",0.02,null,{"$f":"E1862*D1862","v":0},null,0]
[103,"Flyttning av rullställning för arbete på horisontella ytor","m2",0.03,null,0,null,0]
[104,"Torn med intagsbrygga, hak- eller systemställning","m3",0.1,null,0,null,0]
[105,"Trapptorn, hak- eller systemställning","m3",0.13,null,0,null,0]
[106,"Ställning i hisschakt på konsoler, per m2 inbrädad yta","m2",0.46,null,0,null,0]
[107,"Ställning i hisschakt av hak- eller systemställning","m3",0.22,null,0,null,0,107,"Volymen mäts t.o.m. översta bomlaget."]
[108,"Utvändig konsolställning","m",0.36,null,{"$f":"E1868*D1868","v":0},null,{"$f":"G1868*D1868","v":0},108,"Avser även takfotsställning."]
[109,"Tillägg - över 6 m höjd per påbörjad 6,0 m","m3",0.02,null,0,null,0]
[110,"Flyttning av saxlift och bomlift för arbeten på vertikala och horisontella ytor","m2",0.01,null,0,null,{"$f":"G1870*D1870","v":0},110,"Ersättes per passage om arbetshöjden överstiger 2.80 m.\nErsättningen ska utges avseende uppsatt materials nettoyta. Ersättningen utgår inte för saxlift eller bomlift med matarband eller arbetsplattformar."]
[null,null,null," ",null,null,null,null,null,"När saxlift, bomlift eller rullställning enligt punkterna 102, 103 och 110 användes gäller följande:\nFör innerväggstyper 101 och 202 utgår för högst tre (3) passager och för innerväggstyp 303 med högst fem (5) passager med liften/rullställningen beroende på utförande. Med en passage avses att liften/rullställningen har flyttats över hela arbetsytan när arbete har utförts. Detta gäller oavsett typ av beklädnad. \nI de fall väggen innehåller ytterligare moment, till exempel isolering, ersättes detta med ytterligare en (1) passage om det utföres som enskilt moment.\nOm det i arbetsberedningen framkommer att fler eller färre passager behövs så ska detta justeras och ersättas enligt ovan."]
[]
[null,null,null,null,"Summa",{"$f":"SUM(F1853:F1872)","v":0},"Summa",{"$f":"SUM(H1853:H1872)","v":0}]
[]
[null,null,null,null,"AA:36",{"$f":"F1873","v":0},"AA:36",{"$f":"H1873","v":0}]
[null,"Arbetsart: 36    Ställningar",null,null,null,{"$f":"F1875","v":0},null,{"$f":"H1875","v":0}]
[null,"Arbetsart 42"]
[]
[null,"INNEHÅLL"]
[]
[null,"HÅLTAGNING OCH EFTERLAGNING"]
[]
[]
[null,null,"Sid"]
["Särskilda bestämmelser",null,196]
["42:0","42:0 Golv",198]
["42:1","42:1 Väggar",198]
["42:2","42:2 Yttertak",202]
["42:3","42:3 Efterlagning",202]
[]
[]
[]
[]
[]
[null,"Arbetsart 42",null,null,null,null,null,null,null,"Arbetsart 42"]
[]
[null,"SÄRSKILDA BESTÄMMELSER",null,null,null,null,null,null,null,"KOMMENTARER"]
[]
["Punkt","Aktivitet",null,null,null,null,null,null,"Punkt","Aktivitet"]
["A.","Förutsättningar"]
["a)","Vid maskinell bearbetning ingår komplettering med handverktyg."]
["b)","Vid maskinell bearbetning gäller tiderna oavsett maskintyp."]
["c)","Bilning är inte tidsatt"]
[]
["B.","I tiderna ingår om inte annat angives",null,null,null,null,null,null,"B.","I tiderna ingår om inte annat angives"]
["a)","Transport av massor till container eller störttrumma."]
["b)","Avstädning och dammsugning i erforderlig omfattning efter håltagningsarbetet."]
["c)","Byte av borr, borrkronor, sågklingor etc."]
["d)","Skyddsstämpning i normal omfattning ingår."]
["e)","Källsortering ingår.",null,null,null,null,null,null,"e)","Separation av sammansatta material ingår inte."]
[]
[]
[null,"Arbetsart 42",null,null,null,null,null,null,null,"Arbetsart 10"]
[]
[null,"HÅLTAGNING OCH EFTERLAGNING",null,null,null,null,null,null,null,"KOMMENTARER"]
[]
[null,null,null,null,null,"Nybyggnads",null,"Ombyggnads"]
["Punkt","Aktivitet","Enhet","Tid",null,"Listan",null,"Listan","Punkt","Aktivitet"]
[null,"42:0  Golv",null,null,"Avs.","Avs.","Avs.","Avs."]
["001","Sågning av betongbjälklag tom 250 mm","m",0.5,null,{"$f":"E1920*D1920","v":0},null,{"$f":"G1920*D1920","v":0}]
["002","Maskinell sågning lättbetongbjälklag","m",0.1,null,0,null,0]
["003","Manuell sågning lättbetongbjälklag","m",0.15,null,0,null,0]
["004","Håltagning träbjälklag t o m 0.20 m2","st",0.24,null,0,null,0]
["005","Håltagning träbjälklag över 0.20 m2 t o m 1,70 m2","st",0.5,null,0,null,0,"005","Vid håltagning av hål större än 1.70 m2 mäts enligt Aa 10 punkt 004 "]
[null,"42:1 Väggar"]
[101,"Sågning av betongvägg tom 220 mm","m",1.35,null,0,null,0,null," "]
[102,"Sågning av tom 1½-stens tegelvägg","m",0.9,null,0,null,0,null," "]
[103,"Borrning lättbetongväggar t o m Ø 50 mm, djup t o m 250 mm","st",0.2,null,0,null,0]
[104,"Maskinell sågning lättbetongväggar","m",0.15,null,0,null,0]
[105,"Manuell sågning lättbetongväggar","m",0.2,null,0,null,0]
[106,"Upptagning dörrhål i lättbetong t o m 2,75 m2","st",2.5,null,0,null,0,106,"I tiden ingår alla förekommande arbeten, putslagning i smyg ersättes enligt punkt 308."]
[107,"Upptagning dörrhål i lättbetong över 2,75 m2","st",3,null,0,null,0,107]
[108,"Borrning ½-stens tegel t o m Ø 50 mm","st",0.25,null,0,null,0]
[109,"Borrning över ½- t o m 1-stens tegel t o m Ø 50 mm","st",0.3,null,0,null,0]
[110,"Borrning över 1- t o m 1 ½-stens tegel t o m Ø 50 mm","st",0.35,null,0,null,0]
[111,"Borrning betonghålsten t o m Ø 50 mm","st",0.25,null,0,null,0]
[112,"Håltagning i plankväggar med puts t o m 1,0 m2","st",0.75,null,0,null,0]
[113,"Håltagning i plankväggar med puts över 1,0 m2 t o m 1,7 m2","st",1.25,null,0,null,0]
[114,"Upptagning dörrhål i plankväggar med puts t o m 2,75 m2","st",3,null,0,null,0,114,"I tiden ingår alla rivningsarbeten samt kortlingar."]
[115,"Upptagning dörrhål i plankväggar med puts över 2,75 m2","st",3.5,null,0,null,{"$f":"D1940*G1940","v":0},115]
[116,"Håltagning i regelvägg med skivbeklädnad t o m 1,0 m2","st",0.25,null,0,null,{"$f":"G1941*D1941","v":0}]
[117,"Håltagning i regelvägg med skivbeklädnad över 1,0 m2 t o m 1,70 m2","st",0.75,null,0,null,{"$f":"G1942*D1942","v":0}]
[118,"Upptagning dörrhål i regelvägg med skivbeklädnad t o m 2,75 m2","st",1.5,null,0,null,0,118,"I tiden ingår alla rivningsarbeten samt kortlingar."]
[119,"Upptagning i dörrhål i regelvägg med skivbeklädnad över 2,75 m2","st",1.75,null,{"$f":"E1944*D1944","v":0},null,{"$f":"G1944*D1944","v":0},119]
[]
[null,null,null,null,"Summa",{"$f":"SUM(F1920:F1944)","v":0},"Summa",{"$f":"SUM(H1920:H1944)","v":0}]
[]
[]
[null,"Arbetsart 42",null,null,null,null,null,null,null,"Arbetsart 42"]
[]
[null,"HÅLTAGNING OCH EFTERLAGNING",null,null,null,null,null,null,null,"KOMMENTARER"]
[]
[null,null,null,null,null,"Nybyggnads",null,"Ombyggnads"]
["Punkt","Aktivitet","Enhet","Tid",null,"Listan",null,"Listan","Punkt","Aktivitet"]
[null,"42:2  Yttertak",null,null,"Avs.","Avs.","Avs.","Avs."]
[201,"Håltagning i yttertak t o m 1,0 m2","m²",1,null,{"$f":"E1956*D1956","v":0},null,{"$f":"G1956*D1956","v":0},201,"Tiden avser komplett färdigt arbete inkl avväxlingar, tätningar etc. Minsta mått är 1.00 m²"]
[null,"42:3  Efterlagning"]
[null,"*) Se kommentarsida"]
[301,"Borttagning av lös puts i tak  (100%)","m²",0.3,null,0,null,0,301,"Helpris 0.30 tim/m2. Ex 20% av takytan tas bort. Enhetstid = 20% x 0.30 = 0.06 tim/m2. Hela takytan mäts."]
[302,"Borttagning av lös puts på vägg  (100%)","m²",0.25,null,0,null,0,302,"Helpris 0.25 tim/m2. Ex 10% av väggytan tas bort. Enhetstid = 10% x 0.25 = 0.025 tim/m2. Hela väggytan mäts."]
[303,"Lagning av putsad takyta  (100%)","m²",0.9,null,0,null,0,303,"Helpris 0.90 tim/m2. Ex 20% av takytan utlagas. Enhetstid = 20% x 0.90 = 0.18 tim/m2. Hela takytan mäts."]
[304,"Lagning av putsad väggyta  (100%)","m²",0.65,null,0,null,0,304,"Helpris 0.65 tim/m2. Ex 10% av väggytan utlagas. Enhetstid = 10% x 0.65 = 0.065 tim/m2. Hela väggytan mäts."]
[305,"Rensning och lagning av betongyta tak  (100%)","m²",0.12,null,0,null,0,305,"Helpris 0.12 tim/m2. Ex 20% av takytan utlagas. Enhetstid = 20% x 0.12 = 0.024 tim/m2. Hela takytan mäts. Om mer än 75% av takytan utlagas mäts arbetet enligt arbetsart 18 pkt 602."]
[306,"Rensning och lagning av betongyta vägg och pelare  (100%)","m²",0.14000000000000001,null,0,null,0,306,"Helpris 0.14 tim/m2. Ex 10% av vägg-och pelarytan utlagas. Enhetstid = 10% x 0.14 =0.014 tim/m2. Hela ytan mäts. Om mer än 75% av ytan utlagas mäts arbetet enligt arbetsart 18 pkt 603."]
[307,"Invändig täckning och avtäckning samt rengöring per m2 behandlad yta","m²",0.05,null,0,null,0,307,"Avser täckning av angränsande ytor t o m 2 m bredd samt karmar, snickerier o dyl i den behandlade ytan."]
[308,"Putskomplettering i smyg ","m",0.3,null,0,null,0]
[309,"Putsning smygar efter håltagning i tegel- och lättbetongväggar","m",0.2,null,0,null,0]
[310,"Putslagning efter elrör","m",0.1,null,0,null,0]
[311,"Hörnjärn med klamrar","m ",0.25,null,0,null,0,311,"Vid putsningsarbeten."]
[312,"Igengjutning av rännor < 0,30 m bredd","m",0.25,null,0,null,0,312,"I tiden ingår formsättning, armering, gjutning och ytbehandling."]
[313,"Igengjutning av hål < 0,5 m2","st",0.4,null,0,null,0]
[314,"Igengjutning av hål > 0,5 m2 < 1 m2","st",0.6,null,0,null,0,314]
[315,"Utlagning av spår efter väggar på golv eller vägg","m",0.2,null,0,null,0]
[316,"Dito i tak","m",0.3,null,0,null,0]
[317,"Igenmurning av slitsar i vägg < 0,5 m bredd inkl puts","m",1.6,null,0,null,0]
[318,"Igenmurning av fönster- eller dörröppning t o m ½-sten","m²",1.5,null,0,null,{"$f":"D1976*G1976","v":0}]
[319,"Dito t o m 1-sten","m²",2.2000000000000002,null,0,null,{"$f":"G1977*D1977","v":0}]
[320,"För putsning tilläggs","m²",0.75,null,0,null,{"$f":"G1978*D1978","v":0},320,"Tillämpas på punkt 318 och 319."]
[321,"Igenmurning av hål < 0,5 m2","st",1.2,null,0,null,0]
[322,"Igenmurning av hål > 0,5 m2 < 1,0 m2","st",1.7,null,{"$f":"E1980*D1980","v":0},null,{"$f":"G1980*D1980","v":0}]
[323,"Igensättning av dörrhål med reglar och beklädnad på en sida","m²",0.5,null,0,null,{"$f":"G1981*D1981","v":0}]
[324,"Dito med beklädnad på två sidor","m²",0.7,null,0,null,{"$f":"G1982*D1982","v":0}]
[]
[]
[" "]
[null,null,null,null,"Summa",{"$f":"SUM(F1956:F1984)","v":0},"Summa",{"$f":"SUM(H1956:H1984)","v":0}]
[]
[null,null,null,null,"AA:42",{"$f":"F1946+F1986","v":0},"AA:42",{"$f":"H1946+H1986","v":0}]
[null,"Arbetsart: 42    Håltagning och efterlagning",null,null,null,{"$f":"F1988","v":0},null,{"$f":"H1988","v":0}]
[null,"Arbetsart 50"]
[]
[null,"INNEHÅLL"]
[]
[null,"FÖNSTERBYTEN"]
[]
[]
[null,null,"Sid"]
["Särskilda bestämmelser",null,208]
["50:1"," Fönsterbyten",210]
["50:2"," Övrigt",210]
[]
[]
[]
[]
[]
[null,"Arbetsart 50",null,null,null,null,null,null,null,"Arbetsart 50"]
[]
[null,"SÄRSKILDA BESTÄMMELSER",null,null,null,null,null,null,null,"KOMMENTARER"]
[]
["Punkt","Aktivitet",null,null,null,null,null,null,"Punkt","Aktivitet"]
["B.","I tiden ingår om ej annat angives",null,null,null,null,null,null,"B.","I tiderna ingår om ej annat angives"]
["a)","Av- och påhängning av bågar jämte justering av dessa till fullt färdiga fungerande enheter"]
["b)","Erforderlig borrning och infällning."]
["c)","Propp över skruv eller spikhuvuden"]
["d)","Delarbeten som gerning, frånskärning och andra bearbetningar"]
["e)","Tiden förutsätter att någon bearbetning av karmar eller öppningar ej behöver utföras för arbetets genomförande."]
["f)","Ställningsbyggnad för invändiga arbeten t o m 2,80 m arbetshöjd."]
["g)","Kombineras flera fönster i ett parti mäts varje fönster separat."]
["h)","Om hyresgästerna bor kvar i lägenheterna förutsätts att möbler är undanstädade så att god framkomlighet föreligger."]
["i)","Tiderna förutsätter att maskinella hjälpmedel tillhandahålls i erforderlig omfattning."]
[]
["C.","Mätningsbestämmelser"]
["a)","Vid uppmätning mäts karmens yttermått."]
["b)","Avser glastjocklek t o m 4 mm."]
["c)","Transporterna beaktas i objektstillägget."]
["d)","Arbetsart 53 tillämpas när entreprenaden i huvudsak avser fönsterbyten."]
["e)","Vid större sammanhängande byte av fönster och eller fönsterdörrar reduceras tiderna enligt nedan                                                                                                      Antal enheter > 600 st - 2,5 %.                                                                             Antal enheter > 1000 st - 5,0 %."]
[]
[]
[]
[]
[null,"Arbetsart 50",null,null,null,null,null,null,null,"Arbetsart 50"]
[]
[null,"FÖNSTERBYTEN",null,null,null,null,null,null,null,"KOMMENTARER"]
[]
["Punkt","Aktivitet","Enhet","Tid",null,"Nybyggnads",null,"Ombyggnads","Punkt","Aktivitet"]
[null,"50:1  Fönsterbyten",null,null,null,"Listan",null,"Listan"]
[null,"Rivning och montering av fönster med stomme av trä, aluminium eller plast",null,null,"Avs.","Avs.","Avs.","Avs."]
[101,"a) < 1,7 m2","st",1.3,null,{"$f":"E2039*D2039","v":0},null,{"$f":"G2039*D2039","v":0},101,"I rivningen ingår borttagning av lister, fönsterbleck plåtar, tätningsmaterial. Montage av vred och vädringsbeslag ingår. Vid montage i tegel/betong ingår erforderlig borrning och proppning."]
[102,"b) > 1,7 m2 < 3,0 m2","st",1.6,null,0,null,0]
[103,"c) > 3 m2 < 4,5 m2","st",2.1,null,0,null,0]
[104,"d) > 4,5 m2","m²",0.6,null,0,null,0]
[105,"e) Rivning och montering av fönsterdörr","st",1.6,null,0,null,0,105]
[106,"Tillägg - för rivning och montering av fönster över 2,80 m höjd","st",0.25,null,0,null,0]
[107,"Insticksfönster exkl bearbetning av lister","st",1.3,null,0,null,0,107,"Avser arbete exkl punkter under rubrik 50:2."]
[108,"Insticksfönster inkl bearbetning av lister","st",1.8,null,0,null,0,108,"Avser komplett arbete exkl punkter under rubrik 50:2."]
[109,"Tillägg - demontering av hela fönster/fönsterdörr","st",0.35,null,0,null,0]
[110,"Tillägg - demontering av hela fönster/fönsterdörr vid putsad fasad","st",0.45,null,0,null,0]
[111,"Tillägg - vridfönster per karm","st",0.1,null,0,null,0,111,"Avser typ h-fönster"]
[112,"Tillägg - takfönster per karm","st",1,null,0,null,0,112,"Komplett med ram, underbeslag och tätning samt invändig komplettering."]
[null,"50:2  Övrigt"]
[201,"Fogning med skum med renskärning","m",0.05,null,0,null,0]
[202,"Drevning t o m två sidor","m",0.05,null,0,null,0]
[203,"Montering fönsterbleck","m",0.14000000000000001,null,0,null,0]
[204,"Omläggning fönsterfall","m",0.25,null,0,null,0]
[205,"Montage av list av trä","m",0.08,null,0,null,0]
[206,"Montage av smygbräda < 150 mm","m",0.12,null,0,null,0]
[207,"Montage av smygbräda > 150 <mm 200 mm","m",0.18,null,0,null,{"$f":"D2058*G2058","v":0}]
[208,"List av metall inkl bearbetning","m",0.11,null,0,null,{"$f":"G2059*D2059","v":0}]
[209,"Byte fönsterbänk inkl konsoler","m",0.5,null,0,null,{"$f":"G2060*D2060","v":0},209,"I tiden ingår borttagning av befintlig fönsterbänk samt uppsättning av ny."]
[210,"Byte av inmurade fönsterbänkar","m",0.7,null,0,null,0]
[211,"Putskomplettering i smyg","m",0.1,null,0,null,{"$f":"G2062*D2062","v":0},211,"I tiden ingår även ilagning efter karmklossar"]
[212,"Puts i smyg vid utflyttning av karm","m",0.2,null,0,null,{"$f":"G2063*D2063","v":0}]
[213,"Omputsning av smyg","m",0.35,null,0,null,0,213,"Avser hela smygens djup"]
[214,"Mjukfog synlig","m",0.06,null,0,null,{"$f":"G2065*D2065","v":0}]
[215,"Mjukfog dold","m",0.04,null,0,null,{"$f":"G2066*D2066","v":0}]
[216,"Bottningslist","m",0.03,null,0,null,{"$f":"G2067*D2067","v":0}]
[]
[]
[]
[null,null,null,null,"Summa",{"$f":"SUM(F2039:F2069)","v":0},"Summa",{"$f":"SUM(H2039:H2069)","v":0}]
[null,"Vid större sammanhängande byte av fönster och eller fönsterdörrar reduceras tiderna enligt nedan                                                                                                      Antal enheter > 600 st - 2,5 %.                                                                             Antal enheter > 1000 st - 5,0 %. Reduceringen är i timmar."]
[null,null,null,null,"AA:50",{"$f":"F2071-E2072","v":0},"AA:50",{"$f":"H2071-G2072","v":0}]
[null,"Arbetsart: 50    Fönsterbyten",null,null,null,{"$f":"F2073","v":0},null,{"$f":"H2073","v":0}]
[null,"Arbetsart 51"]
[]
[null,"INNEHÅLL"]
[]
[]
[null,"GEMENSAMMA ARBETEN"]
[]
[null,null,"Sid"]
[null,"Särskilda bestämmelser",216]
["51:0"," Bodar och inhägnader",218]
["51:1"," Allmänna arbeten under byggnadstiden",220]
[]
[]
[]
[]
[]
[null,"Arbetsart 51",null,null,null,null,null,null,null,"Arbetsart 51"]
[]
[null,"GEMENSAMMA ARBETEN",null,null,null,null,null,null,null,"KOMMENTARER"]
[]
["Punkt","Aktivitet","Enhet","Tid",null,null,null,null,"Punkt","Aktivitet"]
["B.","I tiderna ingår om annat inte angivs",null,null,null,null,null,null,"B.","I tiderna ingår om inte annat angivs"]
["a)","Mottagning, uppsättning, nedtagning, förekommande rengöring och upplastning av i arbetsarten omnämnda material och i projektet använda maskiner."]
["b)","Arbeten med provisoriska el-, vatten- och avloppsledningar.",null,null,null,null,null,null,"b)","Läggning av ledningar i mark ingår inte."]
["c)","Uppvärmning av byggnader, skydd för kyla och nederbörd, tätning av fönster- och dörröppningar samt uppställning och flyttning av väderskydd (tält).",null,null,null,null,null,null,"c)","Tätning av fönster, dörröppning och liknande med plast ingår."]
["   d)","Justeringsarbeten efter inflyttning ingår inte."]
[]
["e)","I förekommande fall så ingår både uppsättning, nedtagning och borttagning av provisoriska enheter."]
[]
[]
[]
[]
[]
[null,"Arbetsart 51",null,null,null,null,null,null,null,"Arbetsart 51"]
[]
[null,"GEMENSAMMA ARBETEN",null,null,null,null,null,null,null,"KOMMENTARER"]
[null,null,null,null,null,"Nybyggnads",null,"Ombyggnads"]
["Punkt","Aktivitet","Enhet","Tid",null,"Listan",null,"Listan","Punkt","Aktivitet"]
[null,"51:0  Bodar och inhägnader",null,null,"Avs.","Avs.","Avs.","Avs."]
["001","Färdiga transportabla kontors- och manskapsbodar oavsett storlek","st",3.5,null,{"$f":"E2114*D2114","v":0},null,{"$f":"G2114*D2114","v":0},"001","I tiderna ingår sammansättning."]
["002","Förrådscontainers små","st",1,null,0,null,0,"002","T.o.m. 10 fot = ca 2,5 m lång"]
["003","Omflyttning mellan våningsplan av förrådscontainers små","st",0.25,null,0,null,{"$f":"G2116*D2116","v":0},"003","T.o.m. 10 fot = ca 2,5 m lång"]
["004","Förrådscontainers stora","st",1.75,null,0,null,{"$f":"G2117*D2117","v":0},"004","20 fot = ca 6 m lång"]
["005","Inplankning framför och mellan bodar inkl. underrede","m2",0.23,null,0,null,0]
["006","Golv eller skyddstak vid trottoar inkl. underrede och skyddsräcke per m2 inplankning","m2",0.32,null,0,null,{"$f":"G2119*D2119","v":0},null," "]
["007","Loftgång till bodar i flera plan","m",0.32,null,0,null,{"$f":"G2120*D2120","v":0},"007","I tiden ingår uppsättning av trappor."]
["008","Inhägnad av monteringsbara lämmar","m",0.18,null,0,null,{"$f":"G2121*D2121","v":0},"008","I tiderna ingår förekommande arbeten med stolpar, portar, grindar och dörrar, typ Troax/Gunnebo eller likvärdigt"]
[]
[null,null,null,null,"Summa",{"$f":"SUM(F2092:F2121)","v":0},"Summa",{"$f":"SUM(H2092:H2121)","v":0}]
[]
[]
[null,"Arbetsart 51",null,null,null,null,null,null,null,"Arbetsart 51"]
[]
[null,"GEMENSAMMA ARBETEN",null,null,null,null,null,null,null,"KOMMENTARER"]
[]
["Punkt","Aktivitet","Enhet","Tid",null,"Nybyggnads",null,"Ombyggnads","Punkt","Aktivitet"]
[null,"51:1  Allmänna arbeten under byggnadstiden",null,null,null,"Listan",null,"Listan"]
[null,null,null,null,"Avs.","Avs.","Avs.","Avs."]
[101,"Allmänna arbeten och provisorier under byggtiden. Profiler, skyltar, trestegsbockar m.m. skydd av material och upplag samt skyddsanordningar. In- och utvändig städning inkl källsortering. Justerings- och kompletteringsarbeten före och efter slutbesiktning. ","%",0.06,null,{"$f":"E2133*D2133","v":0},null,{"$f":"G2133*D2133","v":0},101,"Baseras på uppmätta timmar i Ny- och Omb listan exkl arbetsart 51, vinterarbeten och objekts tg. Regleras även för tillkommande eller avgående mängder enligt samma listor."]
[102,"Skyddstäckning golv med papp eller plastfolie","m2",0.03,null,0,null,0,102,"Tejpning av skarvar ingår."]
[103,"Enbart borttagning av skyddstäckning enligt punkt 102 med papp eller plastfolie","m2",0.01,null,0,null,0]
[104,"Skyddstäckning golv med plastfolie och träfiberskiva","m2",0.05,null,0,null,0]
[105,"Skyddstäckning och avtäckning av trappor, balkong och vilplan per enhet med masonite, filt eller liknande","st",1.5,null,0,null,0]
[106,"Skyddstäckning och avtäckning av balkong och vilplan per enhet med masonite, filt eller liknande","st",0.75,null,0,null,0]
[107,"Enbart borttagning av skyddstäckning (fabriks\u0002täckning) av trappor, balkong och vilplan, per enhet","st",0.5,null,0,null,0]
[108,"Montering tält med konstruktion av stålrör per m2 tältduk","m2",0.27,null,0,null,0]
[109,"Täckning bjälklag med presenning per m2 täckt yta","m2",0.01,null,0,null,0]
[110,"Täckning bjälklag med presenning samt 1 lag reglar per m2 täckt yta","m2",0.02,null,0,null,0]
[111,"Täckning bjälklag med matta ”tjock” inkl. erforderliga reglar per m2 täckt yta","m2",0.03,null,0,null,0]
[112,"Täckning bjälklag med matta ”tunn” inkl. erforderliga reglar per m2 täckt yta","m2",0.02,null,0,null,0]
[113,"Täckning fasad eller vägg med presenning inkl. erforderliga reglar per m2 täckt yta","m2",0.03,null,0,null,0,113,"Punkten tillämpas inte då enbart fönster- och dörröppningar intäcks."]
[114,"Provisorisk avskärmning med uppregling och beklädnad","m2",0.26,null,0,null,0]
[115,"Provisorisk vägg/tätning av öppningar för värme eller avskärmning inkl. stolpverk, isolering och skivor","m2",0.23,null,0,null,0]
[116,"Montering av väderskydd (tält)","m2",0.26,null,0,null,0]
[117,"Flyttning av väderskydd (tält)","st",0.73,null,0,null,0,117,"Avser flyttning med kran."]
[118,"Täckning vägg med presenning inkl. underbyggnad för varmluft per m2 täckt yta","m2",0.04,null,0,null,0]
[119,"Täckning fasadställning med presenning eller plastfolie per m2 täckt yta","m2",0.03,null,0,null,0]
[120,"Montering elslingor på mark","m2",0.03,null,0,null,0]
[121,"Montering elslingor i bjälklag","m2",0.05,null,0,null,0]
[122,"Montering elslingor/tomrör för uppvärmning av btg i vägg","m2",0.04,null,0,null,{"$f":"D2154*G2154","v":0}]
[123,"Montering elslingor i pelare","st",0.16,null,0,null,{"$f":"G2155*D2155","v":0}]
[]
[null,null,null,null,"Summa",{"$f":"SUM(F2134:F2155)","v":0},"Summa",{"$f":"SUM(H2134:H2155)","v":0}]
[]
[null,null,null,null,"AA:51",{"$f":"F2157+F2123","v":0},"AA:51",{"$f":"H2157+H2123","v":0}]
[null,"Arbetsart: 51    Gemensamma arbeten",null,null,null,{"$f":"F2159","v":0},null,{"$f":"H2159","v":0},null," "]
[null,"ALLMÄNNA BESTÄMMELSER   "]
[]
[null,"Inledning"]
[null,"Ny- och ombyggnadslistan är ett systematiserat tidsunderlag som Sveriges Byggindustrier och Byggnads utarbetat. Materialet är framtaget i syfte att användas vid såväl kalkylering och produktionsplanering samt vid framtagande av ackordsunderlag."]
[null,"Ny- och ombyggnadslistan innehåller enhetstider för de flesta förekommande arbetsmoment inom nyproduktion samt ombyggnadsarbeten. "]
[null,"Lämplig löneform vid tillämpning av listan är blandackord."]
[null,"Listan bygger på enhetstider och objektstillägg som fastställs vid ackordsförhandlingen."]
[null,"Ackordsförhandlingen avser arbete enligt underlag, ritningar, arbetsbeskrivningar samt övriga bygghandlingar som föreligger vid förhandlingstillfället."]
[null,"Inarbetningsnivån på Ny-och Ombyggnadslistan 2023 är ca 15% vid genomsnittlig arbetsprestation."]
[null,"Allmänna och särskilda bestämmelser."]
[null,"Allmänna bestämmelser gäller för hela listan."]
[null,"Säskilda bestämmelser gäller för respektive arbetsart."]
[]
[]
[null,"ALLMÄNNA BESTÄMMELSER",null,null,null,null,null,null,null,"KOMMENTARER"]
[]
[]
["A","Förutsättningar",null,null,null,null,null,null,"A","Förutsättningar"]
[]
["a)","Tillämpningen av Ny- och ombyggnadslistan förutsätter att arbetet kan utföras under ”ackordsmässiga former”. ",null,null,null,null,null,null,"b)","Personlig verktygsutrustning tillhandahålls inte av arbetsgivaren"]
["b)","Arbetsgivaren tillhandahåller alla för arbetet erforderliga redskap, maskiner, specialverktyg, el- eller luftdrivna samt gas- och batteridrivna handverktyg."]
["c)","Materielen skall tillföras arbetsplatsen rengjorda och i sådant skick att de kan användas direkt."]
[null,null,null,null,null,null,null,null,"B","I tiderna ingår om inte annat angives"]
["d)","Underlag ska kodas om använt kalkylprogram så medger."]
["e)","Med kran avses tornkran",null,null,null,null,null,null,"b)","Gäller inte transport åt UE eller SE."]
["f)","Tillägget för mekanisk infästning i respektive arbetsart innebär infästning som kräver förborrning i hårt material och att infästning sker med skruv   eller expander.",null,null,null,null,null,null,"c)","Anvisningar lämnas av arbetsledningen, vilken också ansvarar för måttsättningen. Med biträde avses punktinsats."]
[]
[]
[null,null,null,null,null,null,null,null,"e)","Gäller inte material till UE och SE."]
["B","I tiderna ingår om inte annat angives",null,null,null,null,null,null,"f)","Gäller inte täckning och avtäckning åt UE eller SE."]
[]
["a)","Erforderlig daglig rengöring av redskap, maskiner, specialverktyg, el- eller luftdrivna samt gas- och batteridrivna handverktyg.",null,null,null,null,null,null,"C","Mätbestämmelser"]
["b)","Transport inom arbetsplatsen av för arbetet erforderliga handverktyg, arbetsbockar och bärbara eller lätt flyttbara redskap, maskiner och hjälpanordningar.",null,null,null,null,null,null,"c)","Transporter, lossning, montering och tätning (dock inte drevning). Höjdtillägg utgår inte för material sammansatta på fältverkstad. Iordningsställande av fältverkstad ingår inte."]
["c)","Måttsättning ”tumstocksmått” samt biträde vid avvägning och utsättning. "]
["d)","Ställningsbyggnad för arbeten t o m 2,80 m arbetshöjd."]
["e)","Erforderlig lastning, lossning och transport inom arbetsplatsen."]
["f)","Täckning och avtäckning av material. "]
[null," "]
[]
[]
["C","Mätningsbestämmelser"]
[]
["a)","Allt arbete mäts netto om inte annat angivs."]
["b)","Öppningar mindre än 0,25 m2 avdrages inte."]
["c)","Prefabricering av element på fältverkstad uppmätes i respektive arbetsart som platsbyggda. "]
["d)","Enhetstiderna är gemensamma för Ny- och ombyggnadslistan, för de delar som berörs av ombyggnad utgår ett tillägg med 9 % på uppmätta timma.                                                                 Undantagna arbetsarter är 10, 42 , 50 samt 51 punkt 101"]
[]
[]
[]
[]
[]
[]
[]
[]
[]
[]
[]
[null,"OBJEKTSTILLÄGG",null,null,null,null,null,null,null," VINTERTILLÄGG"]
[]
[null,"Ett objektstillägg kan vara både allmänt och riktat.",null,null,null,null,null,null,null,"Ett tillägg fastställs utifrån det enskilda projektets förutsättningar och är en ersättning för den tröghet i arbetet som uppstår på grund av vinter och arbetsplatsens utsatta läge."]
[null,"Hänsyn ska tas till projektets placering, svårighetsgrad och utformning.",null,null,null,null,null,null,null,"Tillägget kan utgå med högst 6 % för arbeten som utförs med direkt "]
[null,"Härutöver kan även avstånd till bodetablering, innerstadsprojekt eller fritt läge samt projektets byggtid oavsett om den är lång eller kort påverka det allmänna objektstillägget.",null,null,null,null,null,null,null,"påverkan av vinter under perioden 1 nov – 30 april."]
[null,null,null,null,null,null,null,null,null,"För reglering används fördelningstid under avstämd period."]
[null,"Projekt som är uppdelat i flera TBM-entreprenader beaktas särskilt."]
[null,null,null,null,null,null,null,null,null,"Reglering av vintertillägg ska framgå av prestationslöneöverenskommelsen, i annat fall utgår ingen ersättning."]
[null,"Utgångspunkt för det allmänna objektstilläggets utförs med hjälp av den totala summan uppmätta timmar exklusive arbetsarterna 15,17,18 och 51 samt vintertillägg."]
[null,null,null,null,null,null,null,null,null,"Snöröjning på eget arbetsställe ingår."]
[null,"Ett riktat objektstillägg ska ta hänsyn till enskilda arbetsmoments och/eller byggdelars komplexitet och svårighetsgrad samt specificeras i överenskommelsen.                       Riktat objektstillägg kan inte utges för arbetsart 51 samt vintertillägg."]
[null,null,null,null,null,null,null,null,null,"Övriga vinterarbeten på allmänna ytor ersätts enligt Byggavtalet."]
[null,"Vid ombyggnation ska objektstillägg utges på alla uppmätta timmar inklusive tillägget på 9 %.Se även allmänna bestämmelse avseende mätningsbestämmelser och punkten d."]
[]
[]
[]
[]
[]
[]
[]
[]
[]
[]
[]
[]
[]
[]
[]
[]
[]
[]
[]
[]
[null,"                          Allmänna bestämmelser"]
[]
[]
[]
[null,"Summa totalt på listan exklusive vintertillägg, objektstillägg och allmänna arbeten.",null,null,null,{"$f":"F166+F373+F503+F638+F751+F848+F941+F1093+F1321+F1547+F1606+F1716+F1817+F1875+F1988+F2073+F2159","v":0},null,{"$f":"H751+H848+H941+H1093+H1321+H1547+H1606+H1716+H1817+H1875","v":0}]
[null,"Summa AA 10, AA 42 och AA 50 (inte 9% för ombyggnad).",null,null,null,null,null,{"$f":"H166+H1988+H2073","v":0}]
[null,"Tillägg 9% för ombyggnad exklusive AA 15, AA 17, AA 18 och AA 51.",0.09,null,null,null,null,{"$f":"H2255*C2257","v":0}]
[null,"Tillägg 9% för ombyggnad AA 15, AA 17 och AA 18.",0.09,null,null,null,{"$f":"H373+H503+H638","v":0},{"$f":"G2258*C2258","v":0}]
[null,"Tillägg 9% för ombyggnad AA 51.",0.09,null,null,null,{"$f":"H2159","v":0},{"$f":"G2259*C2259","v":0}]
[null,"Summa för allmänt objektstillägg exklusive AA 15, AA 17, AA 18 och AA 51.",null,null,null,{"$f":"F166+F751+F848+F941+F1093+F1321+F1547+F1606+F1716+F1817+F1875+F1988+F2073","v":0},null,{"$f":"H166+H751+H848+H941+H1093+H1321+H1547+H1606+H1716+H1817+H1875+H1988+H2073","v":0}]
[null,"Objektstillägg är exklusive AA 15, AA 17, AA 18 och AA 51.",0.03,{"$f":"F2260","v":0},{"$f":"H2255+H2256+H2257","v":0},{"$f":"D2261*C2261","v":0},null,{"$f":"E2261*C2261","v":0}]
[null,"Allmänna arbeten 6%.",0.06,{"$f":"F2255-F2159","v":0},{"$f":"H2255+H2256+H2257+G2258+H2258","v":0},{"$f":"D2262*C2262","v":0},null,{"$f":"E2262*C2262","v":0}]
[null,"Summa timmar",null,null,null,{"$f":"F2255+F2261+F2262","v":0},null,{"$f":"H2255+H2256+H2257+G2258+H2258+G2259+H2259+H2261+H2262","v":0}]
[null,"Vintertillägg 1 Nov-30 April upp till 6% x timmar under perioden fylls i.",0.06,null,null,{"$f":"C2264*E2264","v":0},null,{"$f":"C2264*G2264","v":0}]
[null,"Riktat objektstillägg fylls i med timmar."]
[]
[null,"Summa totala timmar",null,null,null,{"$f":"F2263+F2264+F2265","v":0},null,{"$f":"H2263+H2264+H2265","v":0}]